Workbook

Sheet Main
B10: 2022-02-11
B12: Sheet No. | C12: Template Name | D12: Summary
B13: 1 | C13: Future Intra | D13: For Intraday trading in F&O segment
B14: 2 | C14: Cash Intra | D14: For Intraday trading in cash market segment
B15: 3 | C15: Mid-cap Intra | D15: For Intraday trading in Mid-cap stocks
B16: 4 | C16: Bulk Deals | D16: Reveals Bulk Deals carried on NSE & BSE
B17: 5 | C17: Call Tracker
K27: `

Sheet Future Intra
M5: Back to Main Page
A6: FOR INTRA DAY TRADING | L6: =Main!B10 -> 2022-02-11
A9: Sr.no | B9: Sector | C9: Scrip | D9: Expiry Date | E9: CLOSE RATE | F9: Pivot Point | G9: Supports | J9: Resistances
E10: Point | F10: Point | G10: S1 | H10: S2 | I10: S3 | J10: R1 | K10: R2 | L10: R3 | M10: HIGH | N10: LOW | O10: OI | P10: % Change in OI
A11: 1 | B11: Index | C11: NIFTY | D11: 2022-02-24 | E11: 17617.65 | F11: 17569.38 | G11: 17488.77 | H11: 17359.88 | I11: 17279.27 | J11: 17698.27 | K11: 17778.88 | L11: 17907.77 | M11: 17650 | N11: 17440.5 | O11: 10844450 | P11: -0.28%
A12: 2 | B12: Index | C12: BANKNIFTY | D12: 2022-02-24 | E12: 39054.00 | F12: 38966.95 | G12: 38679.00 | H12: 38304.00 | I12: 38016.05 | J12: 39341.95 | K12: 39629.90 | L12: 40004.90 | M12: 39254.9 | N12: 38591.95 | O12: 2145800 | P12: 3.31%
A13: 3 | B13: Index | C13: FINNIFTY | D13: 2022-02-22 | E13: 18116.85 | F13: 18079.02 | G13: 17918.03 | H13: 17719.22 | I13: 17558.23 | J13: 18277.83 | K13: 18438.82 | L13: 18637.63 | M13: 18240 | N13: 17880.2 | O13: 2800 | P13: 20.69%
A14: 4 | B14: Index | C14: MIDCPNIFTY | D14: 2022-02-28 | E14: 7761.55 | F14: 7697.62 | G14: 7633.68 | H14: 7505.82 | I14: 7441.88 | J14: 7825.48 | K14: 7889.42 | L14: 8017.28 | M14: 7761.55 | N14: 7569.75 | O14: 3075 | P14: 24.24%
A15: 5 | B15: Chemical | C15: AARTIIND | D15: 2022-02-28 | E15: 1021.05 | F15: 1018.42 | G15: 1011.08 | H15: 1001.12 | I15: 993.78 | J15: 1028.38 | K15: 1035.72 | L15: 1045.68 | M15: 1025.75 | N15: 1008.45 | O15: 2955450 | P15: -6.53%
A16: 6 | B16: Pharma | C16: ABBOTINDIA | D16: 2022-02-24 | E16: 16653.80 | F16: 16584.87 | G16: 16319.73 | H16: 15985.67 | I16: 15720.53 | J16: 16918.93 | K16: 17184.07 | L16: 17518.13 | M16: 16850 | N16: 16250.8 | O16: 76425 | P16: -5.30%
A17: 7 | B17: Others | C17: ABCAPITAL | D17: 2022-02-24 | E17: 121.00 | F17: 120.67 | G17: 118.93 | H17: 116.87 | I17: 115.13 | J17: 122.73 | K17: 124.47 | L17: 126.53 | M17: 122.4 | N17: 118.6 | O17: 17604400 | P17: 1.47%
A18: 8 | B18: Textile | C18: ABFRL | D18: 2022-02-24 | E18: 296.70 | F18: 297.73 | G18: 293.47 | H18: 290.23 | I18: 285.97 | J18: 300.97 | K18: 305.23 | L18: 308.47 | M18: 302 | N18: 294.5 | O18: 14463800 | P18: -2.23%
A19: 9 | B19: Cement | C19: ACC | D19: 2022-02-24 | E19: 2305.35 | F19: 2299.17 | G19: 2272.33 | H19: 2239.32 | I19: 2212.48 | J19: 2332.18 | K19: 2359.02 | L19: 2392.03 | M19: 2326 | N19: 2266.15 | O19: 2278250 | P19: -13.12%
A20: 10 | B20: Others | C20: ADANIENT | D20: 2022-02-24 | E20: 1790.55 | F20: 1791.20 | G20: 1770.40 | H20: 1750.25 | I20: 1729.45 | J20: 1811.35 | K20: 1832.15 | L20: 1852.30 | M20: 1812 | N20: 1771.05 | O20: 21487500 | P20: 1.43%
A21: 11 | B21: Others | C21: ADANIPORTS | D21: 2022-02-24 | E21: 734.30 | F21: 736.50 | G21: 728.15 | H21: 722.00 | I21: 713.65 | J21: 742.65 | K21: 751.00 | L21: 757.15 | M21: 744.85 | N21: 730.35 | O21: 89545000 | P21: 0.67%
A22: 12 | B22: Pharma | C22: ALKEM | D22: 2022-02-24 | E22: 3514.10 | F22: 3515.52 | G22: 3492.03 | H22: 3469.97 | I22: 3446.48 | J22: 3537.58 | K22: 3561.07 | L22: 3583.13 | M22: 3539 | N22: 3493.45 | O22: 313000 | P22: -1.01%
A23: 13 | B23: Automobile | C23: AMARAJABAT | D23: 2022-02-24 | E23: 621.75 | F23: 622.03 | G23: 618.07 | H23: 614.38 | I23: 610.42 | J23: 625.72 | K23: 629.68 | L23: 633.37 | M23: 626 | N23: 618.35 | O23: 8175000 | P23: 0.63%
A24: 14 | B24: Cement | C24: AMBUJACEM | D24: 2022-02-24 | E24: 376.45 | F24: 378.95 | G24: 372.55 | H24: 368.65 | I24: 362.25 | J24: 382.85 | K24: 389.25 | L24: 393.15 | M24: 385.35 | N24: 375.05 | O24: 15471000 | P24: 3.33%
A25: 15 | B25: Pharma | C25: APLLTD | D25: 2022-02-24 | E25: 761.15 | F25: 760.80 | G25: 746.60 | H25: 732.05 | I25: 717.85 | J25: 775.35 | K25: 789.55 | L25: 804.10 | M25: 775 | N25: 746.25 | O25: 1896300 | P25: 2.38%
A26: 16 | B26: Others | C26: APOLLOHOSP | D26: 2022-02-24 | E26: 4597.00 | F26: 4609.82 | G26: 4519.63 | H26: 4442.27 | I26: 4352.08 | J26: 4687.18 | K26: 4777.37 | L26: 4854.73 | M26: 4700 | N26: 4532.45 | O26: 2563625 | P26: 1.83%
A27: 17 | B27: Automobile | C27: APOLLOTYRE | D27: 2022-02-24 | E27: 227.65 | F27: 228.23 | G27: 226.47 | H27: 225.28 | I27: 223.52 | J27: 229.42 | K27: 231.18 | L27: 232.37 | M27: 230 | N27: 227.05 | O27: 13437500 | P27: 1.15%
A28: 18 | B28: Automobile | C28: ASHOKLEY | D28: 2022-02-24 | E28: 136.65 | F28: 137.13 | G28: 135.27 | H28: 133.88 | I28: 132.02 | J28: 138.52 | K28: 140.38 | L28: 141.77 | M28: 139 | N28: 135.75 | O28: 32521500 | P28: 1.18%
A29: 19 | B29: FMCG | C29: ASIANPAINT | D29: 2022-02-24 | E29: 3242.20 | F29: 3227.20 | G29: 3200.30 | H29: 3158.40 | I29: 3131.50 | J29: 3269.10 | K29: 3296.00 | L29: 3337.90 | M29: 3254.1 | N29: 3185.3 | O29: 3851850 | P29: 1.74%
A30: 20 | B30: Others | C30: ASTRAL | D30: 2022-02-24 | E30: 2131.90 | F30: 2134.62 | G30: 2109.23 | H30: 2086.57 | I30: 2061.18 | J30: 2157.28 | K30: 2182.67 | L30: 2205.33 | M30: 2160 | N30: 2111.95 | O30: 910250 | P30: 2.80%
A31: 21 | B31: Others | C31: ATUL | D31: 2022-02-24 | E31: 9679.75 | F31: 9698.00 | G31: 9588.05 | H31: 9496.35 | I31: 9386.40 | J31: 9789.70 | K31: 9899.65 | L31: 9991.35 | M31: 9807.95 | N31: 9606.3 | O31: 96075 | P31: 0.23%
A32: 22 | B32: Banking | C32: AUBANK | D32: 2022-02-24 | E32: 1374.00 | F32: 1370.52 | G32: 1360.03 | H32: 1346.07 | I32: 1335.58 | J32: 1384.48 | K32: 1394.97 | L32: 1408.93 | M32: 1381 | N32: 1356.55 | O32: 2609000 | P32: -0.34%
A33: 23 | B33: Pharma | C33: AUROPHARMA | D33: 2022-02-24 | E33: 683.50 | F33: 671.80 | G33: 654.70 | H33: 625.90 | I33: 608.80 | J33: 700.60 | K33: 717.70 | L33: 746.50 | M33: 688.9 | N33: 643 | O33: 14303250 | P33: -3.07%
A34: 24 | B34: Banking | C34: AXISBANK | D34: 2022-02-24 | E34: 809.60 | F34: 809.92 | G34: 803.68 | H34: 797.77 | I34: 791.53 | J34: 815.83 | K34: 822.07 | L34: 827.98 | M34: 816.15 | N34: 804 | O34: 38950800 | P34: -0.64%
A35: 25 | B35: Automobile | C35: BAJAJ-AUTO | D35: 2022-02-24 | E35: 3574.50 | F35: 3572.58 | G35: 3558.27 | H35: 3542.03 | I35: 3527.72 | J35: 3588.82 | K35: 3603.13 | L35: 3619.37 | M35: 3586.9 | N35: 3556.35 | O35: 2148500 | P35: -0.42%
A36: 26 | B36: Finance | C36: BAJAJFINSV | D36: 2022-02-24 | E36: 16423.40 | F36: 16365.17 | G36: 16118.23 | H36: 15813.07 | I36: 15566.13 | J36: 16670.33 | K36: 16917.27 | L36: 17222.43 | M36: 16612.1 | N36: 16060 | O36: 677650 | P36: -1.54%
A37: 27 | B37: Finance | C37: BAJFINANCE | D37: 2022-02-24 | E37: 7158.90 | F37: 7166.82 | G37: 7069.08 | H37: 6979.27 | I37: 6881.53 | J37: 7256.63 | K37: 7354.37 | L37: 7444.18 | M37: 7264.55 | N37: 7077 | O37: 4611750 | P37: 0.94%
A38: 28 | B38: Automobile | C38: BALKRISIND | D38: 2022-02-24 | E38: 2270.85 | F38: 2277.05 | G38: 2245.25 | H38: 2219.65 | I38: 2187.85 | J38: 2302.65 | K38: 2334.45 | L38: 2360.05 | M38: 2308.85 | N38: 2251.45 | O38: 1108200 | P38: 0.65%
A39: 29 | B39: Others | C39: BALRAMCHIN | D39: 2022-02-24 | E39: 439.50 | F39: 441.75 | G39: 435.60 | H39: 431.70 | I39: 425.55 | J39: 445.65 | K39: 451.80 | L39: 455.70 | M39: 447.9 | N39: 437.85 | O39: 7912000 | P39: 2.00%
A40: 30 | B40: Banking | C40: BANDHANBNK | D40: 2022-02-24 | E40: 322.45 | F40: 321.90 | G40: 318.40 | H40: 314.35 | I40: 310.85 | J40: 325.95 | K40: 329.45 | L40: 333.50 | M40: 325.4 | N40: 317.85 | O40: 20689200 | P40: -0.36%
A41: 31 | B41: Banking | C41: BANKBARODA | D41: 2022-02-24 | E41: 115.00 | F41: 115.07 | G41: 113.68 | H41: 112.37 | I41: 110.98 | J41: 116.38 | K41: 117.77 | L41: 119.08 | M41: 116.45 | N41: 113.75 | O41: 140107500 | P41: -2.75%
A42: 32 | B42: FMCG | C42: BATAINDIA | D42: 2022-02-24 | E42: 1905.65 | F42: 1906.42 | G42: 1893.83 | H42: 1882.02 | I42: 1869.43 | J42: 1918.23 | K42: 1930.82 | L42: 1942.63 | M42: 1919 | N42: 1894.6 | O42: 1665950 | P42: 2.57%
A43: 33 | B43: Capital_Goods | C43: BEL | D43: 2022-02-24 | E43: 203.50 | F43: 203.35 | G43: 201.35 | H43: 199.20 | I43: 197.20 | J43: 205.50 | K43: 207.50 | L43: 209.65 | M43: 205.35 | N43: 201.2 | O43: 35701000 | P43: 0.52%
A44: 34 | B44: FMCG | C44: BERGEPAINT | D44: 2022-02-24 | E44: 727.90 | F44: 728.03 | G44: 716.07 | H44: 704.23 | I44: 692.27 | J44: 739.87 | K44: 751.83 | L44: 763.67 | M44: 740 | N44: 716.2 | O44: 4645300 | P44: -3.01%
A45: 35 | B45: Automobile | C45: BHARATFORG | D45: 2022-02-24 | E45: 730.25 | F45: 736.78 | G45: 704.97 | H45: 679.68 | I45: 647.87 | J45: 762.07 | K45: 793.88 | L45: 819.17 | M45: 768.6 | N45: 711.5 | O45: 5981250 | P45: 8.93%
A46: 36 | B46: Telecom | C46: BHARTIARTL | D46: 2022-02-24 | E46: 726.00 | F46: 720.98 | G46: 713.82 | H46: 701.63 | I46: 694.47 | J46: 733.17 | K46: 740.33 | L46: 752.52 | M46: 728.15 | N46: 708.8 | O46: 57019000 | P46: -0.49%
A47: 37 | B47: Capital_Goods | C47: BHEL | D47: 2022-02-24 | E47: 57.40 | F47: 57.03 | G47: 56.37 | H47: 55.33 | I47: 54.67 | J47: 58.07 | K47: 58.73 | L47: 59.77 | M47: 57.7 | N47: 56 | O47: 133423500 | P47: -2.98%
A48: 38 | B48: Pharma | C48: BIOCON | D48: 2022-02-24 | E48: 404.90 | F48: 405.42 | G48: 401.93 | H48: 398.97 | I48: 395.48 | J48: 408.38 | K48: 411.87 | L48: 414.83 | M48: 408.9 | N48: 402.45 | O48: 13441200 | P48: -3.26%
A49: 39 | B49: Automobile | C49: BOSCHLTD | D49: 2022-02-24 | E49: 16704.40 | F49: 16523.13 | G49: 16256.27 | H49: 15808.13 | I49: 15541.27 | J49: 16971.27 | K49: 17238.13 | L49: 17686.27 | M49: 16790 | N49: 16075 | O49: 136700 | P49: -5.20%
A50: 40 | B50: Oil_Gas | C50: BPCL | D50: 2022-02-24 | E50: 371.15 | F50: 371.18 | G50: 368.72 | H50: 366.28 | I50: 363.82 | J50: 373.62 | K50: 376.08 | L50: 378.52 | M50: 373.65 | N50: 368.75 | O50: 27532800 | P50: 1.32%
A51: 41 | B51: FMCG | C51: BRITANNIA | D51: 2022-02-24 | E51: 3542.50 | F51: 3530.00 | G51: 3508.90 | H51: 3475.30 | I51: 3454.20 | J51: 3563.60 | K51: 3584.70 | L51: 3618.30 | M51: 3551.1 | N51: 3496.4 | O51: 1285600 | P51: -1.12%
A52: 42 | B52: Technology | C52: BSOFT | D52: 2022-02-24 | E52: 465.15 | F52: 463.02 | G52: 458.73 | H52: 452.32 | I52: 448.03 | J52: 469.43 | K52: 473.72 | L52: 480.13 | M52: 467.3 | N52: 456.6 | O52: 5060900 | P52: 1.43%
A53: 43 | B53: Pharma | C53: CADILAHC | D53: 2022-02-24 | E53: 403.10 | F53: 405.13 | G53: 400.27 | H53: 397.43 | I53: 392.57 | J53: 407.97 | K53: 412.83 | L53: 415.67 | M53: 410 | N53: 402.3 | O53: 21311400 | P53: 1.50%
A54: 44 | B54: Banking | C54: CANBK | D54: 2022-02-24 | E54: 259.30 | F54: 260.13 | G54: 256.52 | H54: 253.73 | I54: 250.12 | J54: 262.92 | K54: 266.53 | L54: 269.32 | M54: 263.75 | N54: 257.35 | O54: 46515600 | P54: -1.49%
A55: 45 | B55: Finance | C55: CANFINHOME | D55: 2022-02-24 | E55: 641.95 | F55: 642.05 | G55: 629.10 | H55: 616.25 | I55: 603.30 | J55: 654.90 | K55: 667.85 | L55: 680.70 | M55: 655 | N55: 629.2 | O55: 3594825 | P55: 1.12%
A56: 46 | B56: Others | C56: CHAMBLFERT | D56: 2022-02-24 | E56: 408.00 | F56: 406.55 | G56: 403.70 | H56: 399.40 | I56: 396.55 | J56: 410.85 | K56: 413.70 | L56: 418.00 | M56: 409.4 | N56: 402.25 | O56: 3139500 | P56: -3.10%
A57: 47 | B57: Finance | C57: CHOLAFIN | D57: 2022-02-24 | E57: 690.00 | F57: 687.25 | G57: 676.80 | H57: 663.60 | I57: 653.15 | J57: 700.45 | K57: 710.90 | L57: 724.10 | M57: 697.7 | N57: 674.05 | O57: 8445000 | P57: 0.54%
A58: 48 | B58: Pharma | C58: CIPLA | D58: 2022-02-24 | E58: 974.40 | F58: 972.07 | G58: 967.33 | H58: 960.27 | I58: 955.53 | J58: 979.13 | K58: 983.87 | L58: 990.93 | M58: 976.8 | N58: 965 | O58: 9827350 | P58: -0.87%
A59: 49 | B59: Others | C59: COALINDIA | D59: 2022-02-24 | E59: 163.15 | F59: 162.82 | G59: 160.13 | H59: 157.12 | I59: 154.43 | J59: 165.83 | K59: 168.52 | L59: 171.53 | M59: 165.5 | N59: 159.8 | O59: 48409200 | P59: 5.50%
A60: 50 | B60: Technology | C60: COFORGE | D60: 2022-02-24 | E60: 4727.40 | F60: 4726.20 | G60: 4671.60 | H60: 4615.80 | I60: 4561.20 | J60: 4782.00 | K60: 4836.60 | L60: 4892.40 | M60: 4780.8 | N60: 4670.4 | O60: 681700 | P60: 5.46%
A61: 51 | B61: FMCG | C61: COLPAL | D61: 2022-02-24 | E61: 1461.40 | F61: 1461.88 | G61: 1452.37 | H61: 1443.33 | I61: 1433.82 | J61: 1470.92 | K61: 1480.43 | L61: 1489.47 | M61: 1471.4 | N61: 1452.85 | O61: 2558500 | P61: 0.16%
A62: 52 | B62: Others | C62: CONCOR | D62: 2022-02-24 | E62: 622.50 | F62: 623.45 | G62: 616.15 | H62: 609.80 | I62: 602.50 | J62: 629.80 | K62: 637.10 | L62: 643.45 | M62: 630.75 | N62: 617.1 | O62: 5188800 | P62: -0.20%
A63: 53 | B63: Others | C63: COROMANDEL | D63: 2022-02-24 | E63: 805.05 | F63: 801.43 | G63: 795.32 | H63: 785.58 | I63: 779.47 | J63: 811.17 | K63: 817.28 | L63: 827.02 | M63: 807.55 | N63: 791.7 | O63: 1336250 | P63: 3.14%
A64: 54 | B64: Capital_Goods | C64: CROMPTON | D64: 2022-02-24 | E64: 398.35 | F64: 400.80 | G64: 394.60 | H64: 390.85 | I64: 384.65 | J64: 404.55 | K64: 410.75 | L64: 414.50 | M64: 407 | N64: 397.05 | O64: 2907300 | P64: 1.15%
A65: 55 | B65: Banking | C65: CUB | D65: 2022-02-24 | E65: 140.20 | F65: 140.38 | G65: 139.57 | H65: 138.93 | I65: 138.12 | J65: 141.02 | K65: 141.83 | L65: 142.47 | M65: 141.2 | N65: 139.75 | O65: 13232800 | P65: 0.91%
A66: 56 | B66: Capital_Goods | C66: CUMMINSIND | D66: 2022-02-24 | E66: 926.15 | F66: 925.57 | G66: 916.73 | H66: 907.32 | I66: 898.48 | J66: 934.98 | K66: 943.82 | L66: 953.23 | M66: 934.4 | N66: 916.15 | O66: 2022600 | P66: 3.53%
A67: 57 | B67: FMCG | C67: DABUR | D67: 2022-02-24 | E67: 566.65 | F67: 566.92 | G67: 561.73 | H67: 556.82 | I67: 551.63 | J67: 571.83 | K67: 577.02 | L67: 581.93 | M67: 572.1 | N67: 562 | O67: 11141250 | P67: 1.18%
A68: 58 | B68: Cement | C68: DALBHARAT | D68: 2022-02-24 | E68: 1956.55 | F68: 1952.30 | G68: 1924.60 | H68: 1892.65 | I68: 1864.95 | J68: 1984.25 | K68: 2011.95 | L68: 2043.90 | M68: 1980 | N68: 1920.35 | O68: 450250 | P68: -1.04%
A69: 59 | B69: Chemical | C69: DEEPAKNTR | D69: 2022-02-24 | E69: 2299.40 | F69: 2310.65 | G69: 2283.55 | H69: 2267.70 | I69: 2240.60 | J69: 2326.50 | K69: 2353.60 | L69: 2369.45 | M69: 2337.75 | N69: 2294.8 | O69: 1858250 | P69: 3.51%
A70: 60 | B70: Others | C70: DELTACORP | D70: 2022-02-24 | E70: 289.70 | F70: 288.52 | G70: 285.53 | H70: 281.37 | I70: 278.38 | J70: 292.68 | K70: 295.67 | L70: 299.83 | M70: 291.5 | N70: 284.35 | O70: 14542900 | P70: -0.24%
A71: 61 | B71: Pharma | C71: DIVISLAB | D71: 2022-02-24 | E71: 4334.35 | F71: 4340.93 | G71: 4307.07 | H71: 4279.78 | I71: 4245.92 | J71: 4368.22 | K71: 4402.08 | L71: 4429.37 | M71: 4374.8 | N71: 4313.65 | O71: 2776200 | P71: 1.21%
A72: 62 | B72: Others | C72: DIXON | D72: 2022-02-24 | E72: 4503.30 | F72: 4506.12 | G72: 4452.33 | H72: 4401.37 | I72: 4347.58 | J72: 4557.08 | K72: 4610.87 | L72: 4661.83 | M72: 4559.9 | N72: 4455.15 | O72: 668125 | P72: 0.47%
A73: 63 | B73: Realty | C73: DLF | D73: 2022-02-24 | E73: 392.60 | F73: 390.75 | G73: 385.20 | H73: 377.80 | I73: 372.25 | J73: 398.15 | K73: 403.70 | L73: 411.10 | M73: 396.3 | N73: 383.35 | O73: 35143350 | P73: 0.43%
A74: 64 | B74: Pharma | C74: DRREDDY | D74: 2022-02-24 | E74: 4381.45 | F74: 4376.55 | G74: 4357.90 | H74: 4334.35 | I74: 4315.70 | J74: 4400.10 | K74: 4418.75 | L74: 4442.30 | M74: 4395.2 | N74: 4353 | O74: 2680625 | P74: 0.03%
A75: 65 | B75: Automobile | C75: EICHERMOT | D75: 2022-02-24 | E75: 2654.25 | F75: 2652.47 | G75: 2630.93 | H75: 2607.62 | I75: 2586.08 | J75: 2675.78 | K75: 2697.32 | L75: 2720.63 | M75: 2674 | N75: 2629.15 | O75: 2936150 | P75: 4.76%
A76: 66 | B76: Automobile | C76: ESCORTS | D76: 2022-02-24 | E76: 1853.50 | F76: 1856.65 | G76: 1846.90 | H76: 1840.30 | I76: 1830.55 | J76: 1863.25 | K76: 1873.00 | L76: 1879.60 | M76: 1866.4 | N76: 1850.05 | O76: 7160450 | P76: -0.21%
A77: 67 | B77: Automobile | C77: EXIDEIND | D77: 2022-02-24 | E77: 167.00 | F77: 167.13 | G77: 166.02 | H77: 165.03 | I77: 163.92 | J77: 168.12 | K77: 169.23 | L77: 170.22 | M77: 168.25 | N77: 166.15 | O77: 27140400 | P77: 1.78%
A78: 68 | B78: Banking | C78: FEDERALBNK | D78: 2022-02-24 | E78: 104.50 | F78: 103.72 | G78: 101.98 | H78: 99.47 | I78: 97.73 | J78: 106.23 | K78: 107.97 | L78: 110.48 | M78: 105.45 | N78: 101.2 | O78: 84690000 | P78: -2.93%
A79: 69 | B79: Technology | C79: FSL | D79: 2022-02-24 | E79: 147.55 | F79: 146.17 | G79: 143.33 | H79: 139.12 | I79: 136.28 | J79: 150.38 | K79: 153.22 | L79: 157.43 | M79: 149 | N79: 141.95 | O79: 12641200 | P79: 0.56%
A80: 70 | B80: Oil_Gas | C80: GAIL | D80: 2022-02-24 | E80: 142.15 | F80: 142.25 | G80: 140.75 | H80: 139.35 | I80: 137.85 | J80: 143.65 | K80: 145.15 | L80: 146.55 | M80: 143.75 | N80: 140.85 | O80: 35422700 | P80: 7.76%
A81: 71 | B81: Pharma | C81: GLENMARK | D81: 2022-02-24 | E81: 503.55 | F81: 501.32 | G81: 497.53 | H81: 491.52 | I81: 487.73 | J81: 507.33 | K81: 511.12 | L81: 517.13 | M81: 505.1 | N81: 495.3 | O81: 7578500 | P81: 0.97%
A82: 72 | B82: Infrastructure | C82: GMRINFRA | D82: 2022-02-24 | E82: 42.65 | F82: 42.98 | G82: 41.97 | H82: 41.28 | I82: 40.27 | J82: 43.67 | K82: 44.68 | L82: 45.37 | M82: 44 | N82: 42.3 | O82: 94230000 | P82: 6.16%
A83: 73 | B83: Others | C83: GNFC | D83: 2022-02-24 | E83: 570.95 | F83: 562.40 | G83: 551.55 | H83: 532.15 | I83: 521.30 | J83: 581.80 | K83: 592.65 | L83: 612.05 | M83: 573.25 | N83: 543 | O83: 3346200 | P83: 16.89%
A84: 74 | B84: FMCG | C84: GODREJCP | D84: 2022-02-24 | E84: 856.50 | F84: 857.82 | G84: 851.08 | H84: 845.67 | I84: 838.93 | J84: 863.23 | K84: 869.97 | L84: 875.38 | M84: 864.55 | N84: 852.4 | O84: 4762500 | P84: 2.76%
A85: 75 | B85: Realty | C85: GODREJPROP | D85: 2022-02-24 | E85: 1582.25 | F85: 1573.75 | G85: 1556.50 | H85: 1530.75 | I85: 1513.50 | J85: 1599.50 | K85: 1616.75 | L85: 1642.50 | M85: 1591 | N85: 1548 | O85: 6311175 | P85: -2.75%
A86: 76 | B86: Pharma | C86: GRANULES | D86: 2022-02-24 | E86: 314.65 | F86: 313.93 | G86: 311.77 | H86: 308.88 | I86: 306.72 | J86: 316.82 | K86: 318.98 | L86: 321.87 | M86: 316.1 | N86: 311.05 | O86: 12460450 | P86: -0.42%
A87: 77 | B87: Cement | C87: GRASIM | D87: 2022-02-24 | E87: 1771.90 | F87: 1761.97 | G87: 1746.23 | H87: 1720.57 | I87: 1704.83 | J87: 1787.63 | K87: 1803.37 | L87: 1829.03 | M87: 1777.7 | N87: 1736.3 | O87: 10372575 | P87: -0.21%
A88: 78 | B88: Oil_Gas | C88: GSPL | D88: 2022-02-24 | E88: 299.10 | F88: 301.13 | G88: 295.47 | H88: 291.83 | I88: 286.17 | J88: 304.77 | K88: 310.43 | L88: 314.07 | M88: 306.8 | N88: 297.5 | O88: 1353200 | P88: -1.73%
A89: 79 | B89: Oil_Gas | C89: GUJGASLTD | D89: 2022-02-24 | E89: 648.40 | F89: 650.20 | G89: 641.60 | H89: 634.80 | I89: 626.20 | J89: 657.00 | K89: 665.60 | L89: 672.40 | M89: 658.8 | N89: 643.4 | O89: 1948750 | P89: -0.76%
A90: 80 | B90: Others | C90: HAL | D90: 2022-02-24 | E90: 1376.75 | F90: 1387.12 | G90: 1353.83 | H90: 1330.92 | I90: 1297.63 | J90: 1410.03 | K90: 1443.32 | L90: 1466.23 | M90: 1420.4 | N90: 1364.2 | O90: 2627225 | P90: 2.63%
A91: 81 | B91: Capital_Goods | C91: HAVELLS | D91: 2022-02-24 | E91: 1220.35 | F91: 1218.47 | G91: 1207.18 | H91: 1194.02 | I91: 1182.73 | J91: 1231.63 | K91: 1242.92 | L91: 1256.08 | M91: 1229.75 | N91: 1205.3 | O91: 4065500 | P91: -0.95%
A92: 82 | B92: Technology | C92: HCLTECH | D92: 2022-02-24 | E92: 1191.65 | F92: 1187.72 | G92: 1182.43 | H92: 1173.22 | I92: 1167.93 | J92: 1196.93 | K92: 1202.22 | L92: 1211.43 | M92: 1193 | N92: 1178.5 | O92: 23641800 | P92: -0.26%
A93: 83 | B93: Finance | C93: HDFC | D93: 2022-02-24 | E93: 2484.45 | F93: 2481.83 | G93: 2452.72 | H93: 2420.98 | I93: 2391.87 | J93: 2513.57 | K93: 2542.68 | L93: 2574.42 | M93: 2510.95 | N93: 2450.1 | O93: 23507100 | P93: -0.39%
A94: 84 | B94: Finance | C94: HDFCAMC | D94: 2022-02-24 | E94: 2229.40 | F94: 2228.37 | G94: 2208.08 | H94: 2186.77 | I94: 2166.48 | J94: 2249.68 | K94: 2269.97 | L94: 2291.28 | M94: 2248.65 | N94: 2207.05 | O94: 3226200 | P94: 1.37%
A95: 85 | B95: Banking | C95: HDFCBANK | D95: 2022-02-24 | E95: 1526.35 | F95: 1521.65 | G95: 1507.35 | H95: 1488.35 | I95: 1474.05 | J95: 1540.65 | K95: 1554.95 | L95: 1573.95 | M95: 1535.95 | N95: 1502.65 | O95: 29072450 | P95: -6.54%
A96: 86 | B96: Finance | C96: HDFCLIFE | D96: 2022-02-24 | E96: 608.70 | F96: 605.05 | G96: 596.40 | H96: 584.10 | I96: 575.45 | J96: 617.35 | K96: 626.00 | L96: 638.30 | M96: 613.7 | N96: 592.75 | O96: 24153800 | P96: 4.74%
A97: 87 | B97: Automobile | C97: HEROMOTOCO | D97: 2022-02-24 | E97: 2675.55 | F97: 2673.12 | G97: 2648.08 | H97: 2620.62 | I97: 2595.58 | J97: 2700.58 | K97: 2725.62 | L97: 2753.08 | M97: 2698.15 | N97: 2645.65 | O97: 3432000 | P97: 0.31%
A98: 88 | B98: Metals | C98: HINDALCO | D98: 2022-02-24 | E98: 547.60 | F98: 547.58 | G98: 541.72 | H98: 535.83 | I98: 529.97 | J98: 553.47 | K98: 559.33 | L98: 565.22 | M98: 553.45 | N98: 541.7 | O98: 32796100 | P98: 1.30%
A99: 89 | B99: Metals | C99: HINDCOPPER | D99: 2022-02-24 | E99: 143.00 | F99: 143.85 | G99: 140.65 | H99: 138.30 | I99: 135.10 | J99: 146.20 | K99: 149.40 | L99: 151.75 | M99: 147.05 | N99: 141.5 | O99: 20141200 | P99: 17.87%
A100: 90 | B100: Oil_Gas | C100: HINDPETRO | D100: 2022-02-24 | E100: 299.25 | F100: 298.47 | G100: 296.23 | H100: 293.22 | I100: 290.98 | J100: 301.48 | K100: 303.72 | L100: 306.73 | M100: 300.7 | N100: 295.45 | O100: 14555700 | P100: 1.30%
A101: 91 | B101: FMCG | C101: HINDUNILVR | D101: 2022-02-24 | E101: 2288.60 | F101: 2281.95 | G101: 2269.95 | H101: 2251.30 | I101: 2239.30 | J101: 2300.60 | K101: 2312.60 | L101: 2331.25 | M101: 2293.95 | N101: 2263.3 | O101: 9944700 | P101: -0.61%
A102: 92 | B102: Others | C102: HONAUT | D102: 2022-02-24 | E102: 44947.65 | F102: 44596.92 | G102: 44050.73 | H102: 43153.82 | I102: 42607.63 | J102: 45493.83 | K102: 46040.02 | L102: 46936.93 | M102: 45143.1 | N102: 43700 | O102: 9855 | P102: 3.46%
A103: 93 | B103: Finance | C103: IBULHSGFIN | D103: 2022-02-24 | E103: 206.20 | F103: 205.93 | G103: 202.47 | H103: 198.73 | I103: 195.27 | J103: 209.67 | K103: 213.13 | L103: 216.87 | M103: 209.4 | N103: 202.2 | O103: 40582100 | P103: 0.19%
A104: 94 | B104: Banking | C104: ICICIBANK | D104: 2022-02-24 | E104: 807.20 | F104: 805.85 | G104: 800.20 | H104: 793.20 | I104: 787.55 | J104: 812.85 | K104: 818.50 | L104: 825.50 | M104: 811.5 | N104: 798.85 | O104: 81827625 | P104: -0.87%
A105: 95 | B105: Finance | C105: ICICIGI | D105: 2022-02-24 | E105: 1347.05 | F105: 1353.18 | G105: 1336.67 | H105: 1326.28 | I105: 1309.77 | J105: 1363.57 | K105: 1380.08 | L105: 1390.47 | M105: 1369.7 | N105: 1342.8 | O105: 2988600 | P105: 2.18%
A106: 96 | B106: Finance | C106: ICICIPRULI | D106: 2022-02-24 | E106: 529.80 | F106: 522.58 | G106: 514.27 | H106: 498.73 | I106: 490.42 | J106: 538.12 | K106: 546.43 | L106: 561.97 | M106: 530.9 | N106: 507.05 | O106: 6228750 | P106: 6.93%
A107: 97 | B107: Telecom | C107: IDEA | D107: 2022-02-24 | E107: 11.20 | F107: 11.13 | G107: 10.72 | H107: 10.23 | I107: 9.82 | J107: 11.62 | K107: 12.03 | L107: 12.52 | M107: 11.55 | N107: 10.65 | O107: 729470000 | P107: 1.30%
A108: 98 | B108: Finance | C108: IDFC | D108: 2022-02-24 | E108: 66.05 | F108: 65.73 | G108: 64.87 | H108: 63.68 | I108: 62.82 | J108: 66.92 | K108: 67.78 | L108: 68.97 | M108: 66.6 | N108: 64.55 | O108: 90110000 | P108: -0.87%
A109: 99 | B109: Banking | C109: IDFCFIRSTB | D109: 2022-02-24 | E109: 47.45 | F109: 47.43 | G109: 46.87 | H109: 46.28 | I109: 45.72 | J109: 48.02 | K109: 48.58 | L109: 49.17 | M109: 48 | N109: 46.85 | O109: 155078100 | P109: 0.71%
A110: 100 | B110: Others | C110: IEX | D110: 2022-02-24 | E110: 226.30 | F110: 225.77 | G110: 223.08 | H110: 219.87 | I110: 217.18 | J110: 228.98 | K110: 231.67 | L110: 234.88 | M110: 228.45 | N110: 222.55 | O110: 51371250 | P110: -0.42%
A111: 101 | B111: Oil_Gas | C111: IGL | D111: 2022-02-24 | E111: 390.55 | F111: 389.98 | G111: 386.72 | H111: 382.88 | I111: 379.62 | J111: 393.82 | K111: 397.08 | L111: 400.92 | M111: 393.25 | N111: 386.15 | O111: 20244125 | P111: -0.32%
A112: 102 | B112: Infrastructure | C112: INDHOTEL | D112: 2022-02-24 | E112: 216.10 | F112: 214.78 | G112: 212.37 | H112: 208.63 | I112: 206.22 | J112: 218.52 | K112: 220.93 | L112: 224.67 | M112: 217.2 | N112: 211.05 | O112: 18288034 | P112: 0.22%
A113: 103 | B113: Cement | C113: INDIACEM | D113: 2022-02-24 | E113: 223.30 | F113: 223.52 | G113: 219.63 | H113: 215.97 | I113: 212.08 | J113: 227.18 | K113: 231.07 | L113: 234.73 | M113: 227.4 | N113: 219.85 | O113: 12214800 | P113: -2.77%
A114: 104 | B114: Others | C114: INDIAMART | D114: 2022-02-24 | E114: 5038.90 | F114: 5040.77 | G114: 4929.18 | H114: 4819.47 | I114: 4707.88 | J114: 5150.48 | K114: 5262.07 | L114: 5371.78 | M114: 5152.35 | N114: 4931.05 | O114: 366150 | P114: 1.39%
A115: 105 | B115: Others | C115: INDIGO | D115: 2022-02-24 | E115: 2242.50 | F115: 2245.22 | G115: 2202.38 | H115: 2162.27 | I115: 2119.43 | J115: 2285.33 | K115: 2328.17 | L115: 2368.28 | M115: 2288.05 | N115: 2205.1 | O115: 3339500 | P115: -3.63%
A116: 106 | B116: Banking | C116: INDUSINDBK | D116: 2022-02-24 | E116: 973.00 | F116: 971.35 | G116: 963.95 | H116: 954.90 | I116: 947.50 | J116: 980.40 | K116: 987.80 | L116: 996.85 | M116: 978.75 | N116: 962.3 | O116: 26226900 | P116: -3.75%
A117: 107 | B117: Telecom | C117: INDUSTOWER | D117: 2022-02-24 | E117: 253.70 | F117: 253.15 | G117: 251.45 | H117: 249.20 | I117: 247.50 | J117: 255.40 | K117: 257.10 | L117: 259.35 | M117: 254.85 | N117: 250.9 | O117: 10043600 | P117: 4.33%
A118: 108 | B118: Technology | C118: INFY | D118: 2022-02-24 | E118: 1771.65 | F118: 1764.95 | G118: 1754.90 | H118: 1738.15 | I118: 1728.10 | J118: 1781.70 | K118: 1791.75 | L118: 1808.50 | M118: 1775 | N118: 1748.2 | O118: 45015300 | P118: -2.56%
A119: 109 | B119: Oil_Gas | C119: IOC | D119: 2022-02-24 | E119: 120.40 | F119: 120.73 | G119: 119.72 | H119: 119.03 | I119: 118.02 | J119: 121.42 | K119: 122.43 | L119: 123.12 | M119: 121.75 | N119: 120.05 | O119: 42731000 | P119: 0.97%
A120: 110 | B120: Pharma | C120: IPCALAB | D120: 2022-02-24 | E120: 1010.15 | F120: 1007.33 | G120: 988.57 | H120: 966.98 | I120: 948.22 | J120: 1028.92 | K120: 1047.68 | L120: 1069.27 | M120: 1026.1 | N120: 985.75 | O120: 1291500 | P120: 1.85%
A121: 111 | B121: Others | C121: IRCTC | D121: 2022-02-24 | E121: 846.80 | F121: 846.77 | G121: 839.53 | H121: 832.27 | I121: 825.03 | J121: 854.03 | K121: 861.27 | L121: 868.53 | M121: 854 | N121: 839.5 | O121: 10976000 | P121: 0.82%
A122: 112 | B122: FMCG | C122: ITC | D122: 2022-02-24 | E122: 227.35 | F122: 226.45 | G122: 224.25 | H122: 221.15 | I122: 218.95 | J122: 229.55 | K122: 231.75 | L122: 234.85 | M122: 228.65 | N122: 223.35 | O122: 184675200 | P122: -1.16%
A123: 113 | B123: Metals | C123: JINDALSTEL | D123: 2022-02-24 | E123: 442.55 | F123: 435.07 | G123: 426.18 | H123: 409.82 | I123: 400.93 | J123: 451.43 | K123: 460.32 | L123: 476.68 | M123: 443.95 | N123: 418.7 | O123: 35800000 | P123: 8.80%
A124: 114 | B124: Cement | C124: JKCEMENT | D124: 2022-02-24 | E124: 3284.80 | F124: 3293.50 | G124: 3261.30 | H124: 3237.80 | I124: 3205.60 | J124: 3317.00 | K124: 3349.20 | L124: 3372.70 | M124: 3325.7 | N124: 3270 | O124: 281925 | P124: -1.23%
A125: 115 | B125: Metals | C125: JSWSTEEL | D125: 2022-02-24 | E125: 674.65 | F125: 673.98 | G125: 668.07 | H125: 661.48 | I125: 655.57 | J125: 680.57 | K125: 686.48 | L125: 693.07 | M125: 679.9 | N125: 667.4 | O125: 40192200 | P125: -0.87%
A126: 116 | B126: Others | C126: JUBLFOOD | D126: 2022-02-24 | E126: 3194.35 | F126: 3205.77 | G126: 3158.58 | H126: 3122.82 | I126: 3075.63 | J126: 3241.53 | K126: 3288.72 | L126: 3324.48 | M126: 3252.95 | N126: 3170 | O126: 2538625 | P126: 1.64%
A127: 117 | B127: Banking | C127: KOTAKBANK | D127: 2022-02-24 | E127: 1868.45 | F127: 1864.45 | G127: 1837.60 | H127: 1806.75 | I127: 1779.90 | J127: 1895.30 | K127: 1922.15 | L127: 1953.00 | M127: 1891.3 | N127: 1833.6 | O127: 15798000 | P127: -2.32%
A128: 118 | B128: Finance | C128: L&TFH | D128: 2022-02-24 | E128: 76.10 | F128: 75.92 | G128: 75.18 | H128: 74.27 | I128: 73.53 | J128: 76.83 | K128: 77.57 | L128: 78.48 | M128: 76.65 | N128: 75 | O128: 67911640 | P128: -1.67%
A129: 119 | B129: Others | C129: LALPATHLAB | D129: 2022-02-24 | E129: 2928.75 | F129: 2935.07 | G129: 2880.33 | H129: 2831.92 | I129: 2777.18 | J129: 2983.48 | K129: 3038.22 | L129: 3086.63 | M129: 2989.8 | N129: 2886.65 | O129: 782000 | P129: 1.81%
A130: 120 | B130: Pharma | C130: LAURUSLABS | D130: 2022-02-24 | E130: 542.75 | F130: 538.30 | G130: 527.60 | H130: 512.45 | I130: 501.75 | J130: 553.45 | K130: 564.15 | L130: 579.30 | M130: 549 | N130: 523.15 | O130: 5453100 | P130: 10.79%
A131: 121 | B131: Finance | C131: LICHSGFIN | D131: 2022-02-24 | E131: 404.95 | F131: 402.22 | G131: 394.83 | H131: 384.72 | I131: 377.33 | J131: 412.33 | K131: 419.72 | L131: 429.83 | M131: 409.6 | N131: 392.1 | O131: 22154000 | P131: 1.47%
A132: 122 | B132: Capital_Goods | C132: LT | D132: 2022-02-24 | E132: 1907.90 | F132: 1903.20 | G132: 1891.20 | H132: 1874.50 | I132: 1862.50 | J132: 1919.90 | K132: 1931.90 | L132: 1948.60 | M132: 1915.2 | N132: 1886.5 | O132: 14560150 | P132: 0.26%
A133: 123 | B133: Technology | C133: LTI | D133: 2022-02-24 | E133: 6331.50 | F133: 6321.23 | G133: 6279.77 | H133: 6228.03 | I133: 6186.57 | J133: 6372.97 | K133: 6414.43 | L133: 6466.17 | M133: 6362.7 | N133: 6269.5 | O133: 994350 | P133: 1.08%
A134: 124 | B134: Technology | C134: LTTS | D134: 2022-02-24 | E134: 4704.25 | F134: 4671.07 | G134: 4618.43 | H134: 4532.62 | I134: 4479.98 | J134: 4756.88 | K134: 4809.52 | L134: 4895.33 | M134: 4723.7 | N134: 4585.25 | O134: 886600 | P134: 10.80%
A135: 125 | B135: Pharma | C135: LUPIN | D135: 2022-02-24 | E135: 809.30 | F135: 808.42 | G135: 802.83 | H135: 796.37 | I135: 790.78 | J135: 814.88 | K135: 820.47 | L135: 826.93 | M135: 814 | N135: 801.95 | O135: 9721450 | P135: -2.66%
A136: 126 | B136: Automobile | C136: M&M | D136: 2022-02-24 | E136: 856.30 | F136: 849.70 | G136: 838.65 | H136: 821.00 | I136: 809.95 | J136: 867.35 | K136: 878.40 | L136: 896.05 | M136: 860.75 | N136: 832.05 | O136: 14265300 | P136: 12.37%
A137: 127 | B137: Finance | C137: M&MFIN | D137: 2022-02-24 | E137: 157.95 | F137: 157.43 | G137: 155.22 | H137: 152.48 | I137: 150.27 | J137: 160.17 | K137: 162.38 | L137: 165.12 | M137: 159.65 | N137: 154.7 | O137: 37548000 | P137: -2.05%
A138: 128 | B138: Finance | C138: MANAPPURAM | D138: 2022-02-24 | E138: 159.10 | F138: 158.63 | G138: 157.07 | H138: 155.03 | I138: 153.47 | J138: 160.67 | K138: 162.23 | L138: 164.27 | M138: 160.2 | N138: 156.6 | O138: 19251000 | P138: -0.06%
A139: 129 | B139: FMCG | C139: MARICO | D139: 2022-02-24 | E139: 508.15 | F139: 509.68 | G139: 504.47 | H139: 500.78 | I139: 495.57 | J139: 513.37 | K139: 518.58 | L139: 522.27 | M139: 514.9 | N139: 506 | O139: 8478000 | P139: 1.61%
A140: 130 | B140: Automobile | C140: MARUTI | D140: 2022-02-24 | E140: 8836.85 | F140: 8883.35 | G140: 8774.70 | H140: 8712.55 | I140: 8603.90 | J140: 8945.50 | K140: 9054.15 | L140: 9116.30 | M140: 8992 | N140: 8821.2 | O140: 3022700 | P140: -2.10%
A141: 131 | B141: FMCG | C141: MCDOWELL-N | D141: 2022-02-24 | E141: 862.55 | F141: 859.08 | G141: 851.17 | H141: 839.78 | I141: 831.87 | J141: 870.47 | K141: 878.38 | L141: 889.77 | M141: 867 | N141: 847.7 | O141: 15915000 | P141: -0.14%
A142: 132 | B142: Others | C142: MCX | D142: 2022-02-24 | E142: 1456.40 | F142: 1449.02 | G142: 1433.08 | H142: 1409.77 | I142: 1393.83 | J142: 1472.33 | K142: 1488.27 | L142: 1511.58 | M142: 1464.95 | N142: 1425.7 | O142: 2229850 | P142: -1.91%
A143: 133 | B143: Pharma | C143: METROPOLIS | D143: 2022-02-24 | E143: 2462.75 | F143: 2464.52 | G143: 2429.03 | H143: 2395.32 | I143: 2359.83 | J143: 2498.23 | K143: 2533.72 | L143: 2567.43 | M143: 2500 | N143: 2430.8 | O143: 583400 | P143: -1.25%
A144: 134 | B144: Finance | C144: MFSL | D144: 2022-02-24 | E144: 885.20 | F144: 877.70 | G144: 866.20 | H144: 847.20 | I144: 835.70 | J144: 896.70 | K144: 908.20 | L144: 927.20 | M144: 889.2 | N144: 858.7 | O144: 1716650 | P144: -1.16%
A145: 135 | B145: Oil_Gas | C145: MGL | D145: 2022-02-24 | E145: 787.20 | F145: 789.50 | G145: 783.65 | H145: 780.10 | I145: 774.25 | J145: 793.05 | K145: 798.90 | L145: 802.45 | M145: 795.35 | N145: 785.95 | O145: 4639200 | P145: 2.55%
A146: 136 | B146: Technology | C146: MINDTREE | D146: 2022-02-24 | E146: 4045.50 | F146: 3997.45 | G146: 3939.40 | H146: 3833.30 | I146: 3775.25 | J146: 4103.55 | K146: 4161.60 | L146: 4267.70 | M146: 4055.5 | N146: 3891.35 | O146: 2808200 | P146: -0.88%
A147: 137 | B147: Automobile | C147: MOTHERSUMI | D147: 2022-02-24 | E147: 180.70 | F147: 180.37 | G147: 178.53 | H147: 176.37 | I147: 174.53 | J147: 182.53 | K147: 184.37 | L147: 186.53 | M147: 182.2 | N147: 178.2 | O147: 17391500 | P147: 2.22%
A148: 138 | B148: Technology | C148: MPHASIS | D148: 2022-02-24 | E148: 3120.55 | F148: 3093.52 | G148: 3059.03 | H148: 2997.52 | I148: 2963.03 | J148: 3155.03 | K148: 3189.52 | L148: 3251.03 | M148: 3128 | N148: 3032 | O148: 1512175 | P148: 2.54%
A149: 139 | B149: Automobile | C149: MRF | D149: 2022-02-24 | E149: 69903.40 | F149: 70231.07 | G149: 69372.33 | H149: 68841.27 | I149: 67982.53 | J149: 70762.13 | K149: 71620.87 | L149: 72151.93 | M149: 71089.8 | N149: 69700 | O149: 64420 | P149: 2.34%
A150: 140 | B150: Finance | C150: MUTHOOTFIN | D150: 2022-02-24 | E150: 1468.75 | F150: 1462.12 | G150: 1448.43 | H150: 1428.12 | I150: 1414.43 | J150: 1482.43 | K150: 1496.12 | L150: 1516.43 | M150: 1475.8 | N150: 1441.8 | O150: 3739125 | P150: -1.41%
A151: 141 | B151: Others | C151: NAM-INDIA | D151: 2022-02-24 | E151: 331.35 | F151: 331.52 | G151: 328.03 | H151: 324.72 | I151: 321.23 | J151: 334.83 | K151: 338.32 | L151: 341.63 | M151: 335 | N151: 328.2 | O151: 2942400 | P151: 1.10%
A152: 142 | B152: Metals | C152: NATIONALUM | D152: 2022-02-24 | E152: 123.20 | F152: 123.97 | G152: 121.98 | H152: 120.77 | I152: 118.78 | J152: 125.18 | K152: 127.17 | L152: 128.38 | M152: 125.95 | N152: 122.75 | O152: 105808000 | P152: -0.63%
A153: 143 | B153: Others | C153: NAUKRI | D153: 2022-02-24 | E153: 4903.05 | F153: 4911.53 | G153: 4843.42 | H153: 4783.78 | I153: 4715.67 | J153: 4971.17 | K153: 5039.28 | L153: 5098.92 | M153: 4979.65 | N153: 4851.9 | O153: 1710000 | P153: 1.10%
A154: 144 | B154: Chemical | C154: NAVINFLUOR | D154: 2022-02-24 | E154: 4101.65 | F154: 4079.33 | G154: 4040.32 | H154: 3978.98 | I154: 3939.97 | J154: 4140.67 | K154: 4179.68 | L154: 4241.02 | M154: 4118.35 | N154: 4018 | O154: 528075 | P154: -0.55%
A155: 145 | B155: Others | C155: NBCC | D155: 2022-02-24 | E155: 46.00 | F155: 45.82 | G155: 45.48 | H155: 44.97 | I155: 44.63 | J155: 46.33 | K155: 46.67 | L155: 47.18 | M155: 46.15 | N155: 45.3 | O155: 30288000 | P155: -0.43%
A156: 146 | B156: FMCG | C156: NESTLEIND | D156: 2022-02-24 | E156: 18189.55 | F156: 18172.47 | G156: 18074.73 | H156: 17959.92 | I156: 17862.18 | J156: 18287.28 | K156: 18385.02 | L156: 18499.83 | M156: 18270.2 | N156: 18057.65 | O156: 314425 | P156: 1.01%
A157: 147 | B157: Metals | C157: NMDC | D157: 2022-02-24 | E157: 154.35 | F157: 153.80 | G157: 151.95 | H157: 149.55 | I157: 147.70 | J157: 156.20 | K157: 158.05 | L157: 160.45 | M157: 155.65 | N157: 151.4 | O157: 95937300 | P157: 3.92%
A158: 148 | B158: Power | C158: NTPC | D158: 2022-02-24 | E158: 136.65 | F158: 136.07 | G158: 135.13 | H158: 133.62 | I158: 132.68 | J158: 137.58 | K158: 138.52 | L158: 140.03 | M158: 137 | N158: 134.55 | O158: 53961900 | P158: 6.32%
A159: 149 | B159: Realty | C159: OBEROIRLTY | D159: 2022-02-24 | E159: 941.15 | F159: 941.83 | G159: 931.02 | H159: 920.88 | I159: 910.07 | J159: 951.97 | K159: 962.78 | L159: 972.92 | M159: 952.65 | N159: 931.7 | O159: 2482200 | P159: -0.31%
A160: 150 | B160: Technology | C160: OFSS | D160: 2022-02-24 | E160: 3726.55 | F160: 3740.15 | G160: 3677.30 | H160: 3628.05 | I160: 3565.20 | J160: 3789.40 | K160: 3852.25 | L160: 3901.50 | M160: 3803 | N160: 3690.9 | O160: 654125 | P160: 11.17%
A161: 151 | B161: Oil_Gas | C161: ONGC | D161: 2022-02-24 | E161: 165.25 | F161: 164.35 | G161: 162.70 | H161: 160.15 | I161: 158.50 | J161: 166.90 | K161: 168.55 | L161: 171.10 | M161: 166 | N161: 161.8 | O161: 41495300 | P161: -1.34%
A162: 152 | B162: Textile | C162: PAGEIND | D162: 2022-02-24 | E162: 40828.15 | F162: 41176.95 | G162: 39853.75 | H162: 38879.35 | I162: 37556.15 | J162: 42151.35 | K162: 43474.55 | L162: 44448.95 | M162: 42500.15 | N162: 40202.55 | O162: 90450 | P162: 13.22%
A163: 153 | B163: Pharma | C163: PEL | D163: 2022-02-24 | E163: 2504.75 | F163: 2495.83 | G163: 2456.97 | H163: 2409.18 | I163: 2370.32 | J163: 2543.62 | K163: 2582.48 | L163: 2630.27 | M163: 2534.7 | N163: 2448.05 | O163: 3734775 | P163: 1.94%
A164: 154 | B164: Technology | C164: PERSISTENT | D164: 2022-02-24 | E164: 4432.55 | F164: 4413.92 | G164: 4356.58 | H164: 4280.62 | I164: 4223.28 | J164: 4489.88 | K164: 4547.22 | L164: 4623.18 | M164: 4471.25 | N164: 4337.95 | O164: 382500 | P164: 0.00%
A165: 155 | B165: Oil_Gas | C165: PETRONET | D165: 2022-02-24 | E165: 219.90 | F165: 220.15 | G165: 217.40 | H165: 214.90 | I165: 212.15 | J165: 222.65 | K165: 225.40 | L165: 227.90 | M165: 222.9 | N165: 217.65 | O165: 19638000 | P165: 4.15%
A166: 156 | B166: Finance | C166: PFC | D166: 2022-02-24 | E166: 122.05 | F166: 121.22 | G166: 119.83 | H166: 117.62 | I166: 116.23 | J166: 123.43 | K166: 124.82 | L166: 127.03 | M166: 122.6 | N166: 119 | O166: 53698200 | P166: 11.11%
A167: 157 | B167: Pharma | C167: PFIZER | D167: 2022-02-24 | E167: 4529.10 | F167: 4532.55 | G167: 4496.60 | H167: 4464.10 | I167: 4428.15 | J167: 4565.05 | K167: 4601.00 | L167: 4633.50 | M167: 4568.5 | N167: 4500.05 | O167: 175375 | P167: 1.01%
A168: 158 | B168: FMCG | C168: PIDILITIND | D168: 2022-02-24 | E168: 2492.80 | F168: 2485.30 | G168: 2472.60 | H168: 2452.40 | I168: 2439.70 | J168: 2505.50 | K168: 2518.20 | L168: 2538.40 | M168: 2498 | N168: 2465.1 | O168: 2818250 | P168: -1.07%
A169: 159 | B169: Chemical | C169: PIIND | D169: 2022-02-24 | E169: 2628.20 | F169: 2623.53 | G169: 2599.67 | H169: 2571.13 | I169: 2547.27 | J169: 2652.07 | K169: 2675.93 | L169: 2704.47 | M169: 2647.4 | N169: 2595 | O169: 1992500 | P169: -0.34%
A170: 160 | B170: Banking | C170: PNB | D170: 2022-02-24 | E170: 40.85 | F170: 41.12 | G170: 40.48 | H170: 40.12 | I170: 39.48 | J170: 41.48 | K170: 42.12 | L170: 42.48 | M170: 41.75 | N170: 40.75 | O170: 299680000 | P170: -3.00%
A171: 161 | B171: Others | C171: POLYCAB | D171: 2022-02-24 | E171: 2421.35 | F171: 2429.32 | G171: 2405.53 | H171: 2389.72 | I171: 2365.93 | J171: 2445.13 | K171: 2468.92 | L171: 2484.73 | M171: 2453.1 | N171: 2413.5 | O171: 794400 | P171: 0.42%
A172: 162 | B172: Power | C172: POWERGRID | D172: 2022-02-24 | E172: 207.60 | F172: 208.33 | G172: 205.82 | H172: 204.03 | I172: 201.52 | J172: 210.12 | K172: 212.63 | L172: 214.42 | M172: 210.85 | N172: 206.55 | O172: 27896923 | P172: 4.10%
A173: 163 | B173: Media | C173: PVR | D173: 2022-02-24 | E173: 1670.25 | F173: 1666.83 | G173: 1648.82 | H173: 1627.38 | I173: 1609.37 | J173: 1688.27 | K173: 1706.28 | L173: 1727.72 | M173: 1684.85 | N173: 1645.4 | O173: 2867315 | P173: 0.67%
A174: 164 | B174: Others | C174: RAIN | D174: 2022-02-24 | E174: 240.10 | F174: 240.08 | G174: 237.82 | H174: 235.53 | I174: 233.27 | J174: 242.37 | K174: 244.63 | L174: 246.92 | M174: 242.35 | N174: 237.8 | O174: 6692500 | P174: -0.22%
A175: 165 | B175: Cement | C175: RAMCOCEM | D175: 2022-02-24 | E175: 893.20 | F175: 893.13 | G175: 887.17 | H175: 881.13 | I175: 875.17 | J175: 899.17 | K175: 905.13 | L175: 911.17 | M175: 899.1 | N175: 887.1 | O175: 1991550 | P175: -4.95%
A176: 166 | B176: Banking | C176: RBLBANK | D176: 2022-02-24 | E176: 146.80 | F176: 147.35 | G176: 145.40 | H176: 144.00 | I176: 142.05 | J176: 148.75 | K176: 150.70 | L176: 152.10 | M176: 149.3 | N176: 145.95 | O176: 36661800 | P176: -0.75%
A177: 167 | B177: Power | C177: RECLTD | D177: 2022-02-24 | E177: 135.45 | F177: 134.73 | G177: 133.67 | H177: 131.88 | I177: 130.82 | J177: 136.52 | K177: 137.58 | L177: 139.37 | M177: 135.8 | N177: 132.95 | O177: 30438000 | P177: -3.70%
A178: 168 | B178: Oil_Gas | C178: RELIANCE | D178: 2022-02-24 | E178: 2386.30 | F178: 2383.93 | G178: 2370.22 | H178: 2354.13 | I178: 2340.42 | J178: 2400.02 | K178: 2413.73 | L178: 2429.82 | M178: 2397.65 | N178: 2367.85 | O178: 32107000 | P178: -2.51%
A179: 169 | B179: Metals | C179: SAIL | D179: 2022-02-24 | E179: 103.85 | F179: 104.20 | G179: 101.15 | H179: 98.45 | I179: 95.40 | J179: 106.90 | K179: 109.95 | L179: 112.65 | M179: 107.25 | N179: 101.5 | O179: 179512000 | P179: 5.12%
A180: 170 | B180: Banking | C180: SBICARD | D180: 2022-02-24 | E180: 870.75 | F180: 866.70 | G180: 859.55 | H180: 848.35 | I180: 841.20 | J180: 877.90 | K180: 885.05 | L180: 896.25 | M180: 873.85 | N180: 855.5 | O180: 5186500 | P180: -1.69%
A181: 171 | B181: Finance | C181: SBILIFE | D181: 2022-02-24 | E181: 1147.80 | F181: 1137.35 | G181: 1122.75 | H181: 1097.70 | I181: 1083.10 | J181: 1162.40 | K181: 1177.00 | L181: 1202.05 | M181: 1151.95 | N181: 1112.3 | O181: 6840000 | P181: 0.03%
A182: 172 | B182: Banking | C182: SBIN | D182: 2022-02-24 | E182: 540.90 | F182: 539.98 | G182: 535.57 | H182: 530.23 | I182: 525.82 | J182: 545.32 | K182: 549.73 | L182: 555.07 | M182: 544.4 | N182: 534.65 | O182: 83955000 | P182: -1.03%
A183: 173 | B183: Cement | C183: SHREECEM | D183: 2022-02-24 | E183: 25307.55 | F183: 25362.67 | G183: 25155.03 | H183: 25002.52 | I183: 24794.88 | J183: 25515.18 | K183: 25722.82 | L183: 25875.33 | M183: 25570.3 | N183: 25210.15 | O183: 163950 | P183: -1.66%
A184: 174 | B184: Capital_Goods | C184: SIEMENS | D184: 2022-02-24 | E184: 2448.70 | F184: 2436.50 | G184: 2416.70 | H184: 2384.70 | I184: 2364.90 | J184: 2468.50 | K184: 2488.30 | L184: 2520.30 | M184: 2456.3 | N184: 2404.5 | O184: 1663750 | P184: -1.96%
A185: 175 | B185: Textile | C185: SRF | D185: 2022-02-24 | E185: 2585.85 | F185: 2584.35 | G185: 2557.45 | H185: 2529.05 | I185: 2502.15 | J185: 2612.75 | K185: 2639.65 | L185: 2668.05 | M185: 2611.25 | N185: 2555.95 | O185: 2893875 | P185: -0.68%
A186: 176 | B186: Finance | C186: SRTRANSFIN | D186: 2022-02-24 | E186: 1268.40 | F186: 1261.00 | G186: 1242.35 | H186: 1216.30 | I186: 1197.65 | J186: 1287.05 | K186: 1305.70 | L186: 1331.75 | M186: 1279.65 | N186: 1234.95 | O186: 3166400 | P186: 1.05%
A187: 177 | B187: Pharma | C187: STAR | D187: 2022-02-24 | E187: 392.45 | F187: 392.85 | G187: 382.50 | H187: 372.55 | I187: 362.20 | J187: 402.80 | K187: 413.15 | L187: 423.10 | M187: 403.2 | N187: 382.9 | O187: 4591800 | P187: 7.48%
A188: 178 | B188: Pharma | C188: SUNPHARMA | D188: 2022-02-24 | E188: 895.30 | F188: 891.08 | G188: 885.22 | H188: 875.13 | I188: 869.27 | J188: 901.17 | K188: 907.03 | L188: 917.12 | M188: 896.95 | N188: 881 | O188: 23656500 | P188: -0.54%
A189: 179 | B189: Media | C189: SUNTV | D189: 2022-02-24 | E189: 520.00 | F189: 519.80 | G189: 513.15 | H189: 506.30 | I189: 499.65 | J189: 526.65 | K189: 533.30 | L189: 540.15 | M189: 526.45 | N189: 512.95 | O189: 12421500 | P189: 0.90%
A190: 180 | B190: Pharma | C190: SYNGENE | D190: 2022-02-24 | E190: 600.15 | F190: 596.63 | G190: 590.32 | H190: 580.48 | I190: 574.17 | J190: 606.47 | K190: 612.78 | L190: 622.62 | M190: 602.95 | N190: 586.8 | O190: 960500 | P190: -12.54%
A191: 181 | B191: Chemical | C191: TATACHEM | D191: 2022-02-24 | E191: 961.85 | F191: 965.30 | G191: 953.00 | H191: 944.15 | I191: 931.85 | J191: 974.15 | K191: 986.45 | L191: 995.30 | M191: 977.6 | N191: 956.45 | O191: 6506000 | P191: 2.23%
A192: 182 | B192: Telecom | C192: TATACOMM | D192: 2022-02-24 | E192: 1310.00 | F192: 1301.67 | G192: 1287.38 | H192: 1264.77 | I192: 1250.48 | J192: 1324.28 | K192: 1338.57 | L192: 1361.18 | M192: 1315.95 | N192: 1279.05 | O192: 3260800 | P192: -1.70%
A193: 183 | B193: FMCG | C193: TATACONSUM | D193: 2022-02-24 | E193: 709.15 | F193: 707.82 | G193: 701.73 | H193: 694.32 | I193: 688.23 | J193: 715.23 | K193: 721.32 | L193: 728.73 | M193: 713.9 | N193: 700.4 | O193: 11223900 | P193: 0.76%
A194: 184 | B194: Automobile | C194: TATAMOTORS | D194: 2022-02-24 | E194: 509.00 | F194: 508.77 | G194: 505.53 | H194: 502.07 | I194: 498.83 | J194: 512.23 | K194: 515.47 | L194: 518.93 | M194: 512 | N194: 505.3 | O194: 78346500 | P194: -5.33%
A195: 185 | B195: Power | C195: TATAPOWER | D195: 2022-02-24 | E195: 242.25 | F195: 240.68 | G195: 235.92 | H195: 229.58 | I195: 224.82 | J195: 247.02 | K195: 251.78 | L195: 258.12 | M195: 245.45 | N195: 234.35 | O195: 142114500 | P195: -1.77%
A196: 186 | B196: Metals | C196: TATASTEEL | D196: 2022-02-24 | E196: 1252.25 | F196: 1246.87 | G196: 1234.43 | H196: 1216.62 | I196: 1204.18 | J196: 1264.68 | K196: 1277.12 | L196: 1294.93 | M196: 1259.3 | N196: 1229.05 | O196: 46289725 | P196: 1.23%
A197: 187 | B197: Technology | C197: TCS | D197: 2022-02-24 | E197: 3785.65 | F197: 3785.23 | G197: 3770.47 | H197: 3755.28 | I197: 3740.52 | J197: 3800.42 | K197: 3815.18 | L197: 3830.37 | M197: 3800 | N197: 3770.05 | O197: 13744350 | P197: 1.86%
A198: 188 | B198: Technology | C198: TECHM | D198: 2022-02-24 | E198: 1471.00 | F198: 1466.62 | G198: 1460.13 | H198: 1449.27 | I198: 1442.78 | J198: 1477.48 | K198: 1483.97 | L198: 1494.83 | M198: 1473.1 | N198: 1455.75 | O198: 16851000 | P198: -0.78%
A199: 189 | B199: FMCG | C199: TITAN | D199: 2022-02-24 | E199: 2493.10 | F199: 2487.90 | G199: 2472.40 | H199: 2451.70 | I199: 2436.20 | J199: 2508.60 | K199: 2524.10 | L199: 2544.80 | M199: 2503.4 | N199: 2467.2 | O199: 5310375 | P199: -1.93%
A200: 190 | B200: Pharma | C200: TORNTPHARM | D200: 2022-02-24 | E200: 2600.00 | F200: 2608.12 | G200: 2575.23 | H200: 2550.47 | I200: 2517.58 | J200: 2632.88 | K200: 2665.77 | L200: 2690.53 | M200: 2641 | N200: 2583.35 | O200: 873250 | P200: -0.14%
A201: 191 | B201: Power | C201: TORNTPOWER | D201: 2022-02-24 | E201: 506.40 | F201: 506.02 | G201: 500.93 | H201: 495.47 | I201: 490.38 | J201: 511.48 | K201: 516.57 | L201: 522.03 | M201: 511.1 | N201: 500.55 | O201: 4695000 | P201: 0.26%
A202: 192 | B202: Others | C202: TRENT | D202: 2022-02-24 | E202: 1076.45 | F202: 1072.78 | G202: 1061.27 | H202: 1046.08 | I202: 1034.57 | J202: 1087.97 | K202: 1099.48 | L202: 1114.67 | M202: 1084.3 | N202: 1057.6 | O202: 2416425 | P202: 1.25%
A203: 193 | B203: Automobile | C203: TVSMOTOR | D203: 2022-02-24 | E203: 665.35 | F203: 666.50 | G203: 659.70 | H203: 654.05 | I203: 647.25 | J203: 672.15 | K203: 678.95 | L203: 684.60 | M203: 673.3 | N203: 660.85 | O203: 10535000 | P203: 9.89%
A204: 194 | B204: FMCG | C204: UBL | D204: 2022-02-24 | E204: 1619.05 | F204: 1611.03 | G204: 1593.07 | H204: 1567.08 | I204: 1549.12 | J204: 1637.02 | K204: 1654.98 | L204: 1680.97 | M204: 1629 | N204: 1585.05 | O204: 1033200 | P204: -2.77%
A205: 195 | B205: Cement | C205: ULTRACEMCO | D205: 2022-02-24 | E205: 7504.25 | F205: 7520.12 | G205: 7470.73 | H205: 7437.22 | I205: 7387.83 | J205: 7553.63 | K205: 7603.02 | L205: 7636.53 | M205: 7569.5 | N205: 7486.6 | O205: 1805200 | P205: 0.24%
A206: 196 | B206: Chemical | C206: UPL | D206: 2022-02-24 | E206: 772.45 | F206: 774.70 | G206: 768.80 | H206: 765.15 | I206: 759.25 | J206: 778.35 | K206: 784.25 | L206: 787.90 | M206: 780.6 | N206: 771.05 | O206: 28441400 | P206: 0.17%
... 20 more rows

Sheet Cash Intra
M5: Back to Main Page
A6: FOR INTRA DAY TRADING | K6: =Main!B10 -> 2022-02-11
A8: Sr.no | C8: CLOSE RATE | D8: Pivot Point | E8: Supports | H8: Resistances
E9: S1 | F9: S2 | G9: S3 | H9: R1 | I9: R2 | J9: R3 | K9: HIGH | L9: LOW | M9: Total Trade Quanity in Lakhs
A10: 1 | B10: Nifty 50 | C10: 17605.85 | D10: 17557.48 | E10: 17475.52 | F10: 17345.18 | G10: 17263.22 | H10: 17687.82 | I10: 17769.78 | J10: 17900.12 | K10: 17639.45 | L10: 17427.15
A11: 2 | B11: Nifty Bank | C11: 39010.95 | D11: 38909.38 | E11: 38621.57 | F11: 38232.18 | G11: 37944.37 | H11: 39298.77 | I11: 39586.58 | J11: 39975.97 | K11: 39197.2 | L11: 38520
A12: 3 | B12: Nifty CPSE | C12: 2484.6 | D12: 2479.30 | E12: 2467.60 | F12: 2450.60 | G12: 2438.90 | H12: 2496.30 | I12: 2508.00 | J12: 2525.00 | K12: 2491 | L12: 2462.3
A13: 4 | B13: Nifty Infra | C13: 5048.75 | D13: 5039.65 | E13: 5021.10 | F13: 4993.45 | G13: 4974.90 | H13: 5067.30 | I13: 5085.85 | J13: 5113.50 | K13: 5058.2 | L13: 5012
A14: 5 | B14: Nifty IT | C14: 35341.85 | D14: 35238.82 | E14: 35097.78 | F14: 34853.72 | G14: 34712.68 | H14: 35482.88 | I14: 35623.92 | J14: 35867.98 | K14: 35379.85 | L14: 34994.75
A15: 6 | B15: Nifty PSE | C15: 4102.05 | D15: 4098.95 | E15: 4083.60 | F15: 4065.15 | G15: 4049.80 | H15: 4117.40 | I15: 4132.75 | J15: 4151.20 | K15: 4114.3 | L15: 4080.5
A16: 7 | B16: Nifty Midcap 50 | C16: 8392.85 | D16: 8379.67 | E16: 8336.53 | F16: 8280.22 | G16: 8237.08 | H16: 8435.98 | I16: 8479.12 | J16: 8535.43 | K16: 8422.8 | L16: 8323.35
A17: 8 | B17: ACC | C17: 2303.55 | D17: 2297.78 | E17: 2270.77 | F17: 2237.98 | G17: 2210.97 | H17: 2330.57 | I17: 2357.58 | J17: 2390.37 | K17: 2324.8 | L17: 2265 | M17: 8.76424
A18: 9 | B18: AUBANK | C18: 1377.95 | D18: 1372.93 | E18: 1362.02 | F18: 1346.08 | G18: 1335.17 | H18: 1388.87 | I18: 1399.78 | J18: 1415.72 | K18: 1383.85 | L18: 1357 | M18: 7.54309
A19: 10 | B19: AARTIIND | C19: 1022.2 | D19: 1019.57 | E19: 1012.13 | F19: 1002.07 | G19: 994.63 | H19: 1029.63 | I19: 1037.07 | J19: 1047.13 | K19: 1027 | L19: 1009.5 | M19: 7.00879
A20: 11 | B20: ADANIENT | C20: 1786.1 | D20: 1787.03 | E20: 1765.07 | F20: 1744.03 | G20: 1722.07 | H20: 1808.07 | I20: 1830.03 | J20: 1851.07 | K20: 1809 | L20: 1766 | M20: 17.47943
A21: 12 | B21: ADANIGREEN | C21: 1907.95 | D21: 1913.65 | E21: 1882.30 | F21: 1856.65 | G21: 1825.30 | H21: 1939.30 | I21: 1970.65 | J21: 1996.30 | K21: 1945 | L21: 1888 | M21: 5.55955
A22: 13 | B22: ADANIPORTS | C22: 731.05 | D22: 733.55 | E22: 725.55 | F22: 720.05 | G22: 712.05 | H22: 739.05 | I22: 747.05 | J22: 752.55 | K22: 741.55 | L22: 728.05 | M22: 47.52601
A23: 14 | B23: ATGL | C23: 1810.55 | D23: 1772.43 | E23: 1714.87 | F23: 1619.18 | G23: 1561.62 | H23: 1868.12 | I23: 1925.68 | J23: 2021.37 | K23: 1830 | L23: 1676.75 | M23: 3.47972
A24: 15 | B24: ADANITRANS | C24: 2036.4 | D24: 2014.88 | E24: 1976.82 | F24: 1917.23 | G24: 1879.17 | H24: 2074.47 | I24: 2112.53 | J24: 2172.12 | K24: 2052.95 | L24: 1955.3 | M24: 3.01717
A25: 16 | B25: ABCAPITAL | C25: 120.45 | D25: 120.20 | E25: 118.55 | F25: 116.65 | G25: 115.00 | H25: 122.10 | I25: 123.75 | J25: 125.65 | K25: 121.85 | L25: 118.3 | M25: 30.37306
A26: 17 | B26: ABFRL | C26: 295.6 | D26: 296.87 | E26: 292.33 | F26: 289.07 | G26: 284.53 | H26: 300.13 | I26: 304.67 | J26: 307.93 | K26: 301.4 | L26: 293.6 | M26: 25.14519
A27: 18 | B27: AJANTPHARM | C27: 2058.85 | D27: 2063.37 | E27: 2046.73 | F27: 2034.62 | G27: 2017.98 | H27: 2075.48 | I27: 2092.12 | J27: 2104.23 | K27: 2080 | L27: 2051.25 | M27: 0.21692
A28: 19 | B28: APLLTD | C28: 758.45 | D28: 757.98 | E28: 743.47 | F28: 728.48 | G28: 713.97 | H28: 772.97 | I28: 787.48 | J28: 802.47 | K28: 772.5 | L28: 743 | M28: 9.49804
A29: 20 | B29: ALKEM | C29: 3500.55 | D29: 3508.83 | E29: 3481.72 | F29: 3462.88 | G29: 3435.77 | H29: 3527.67 | I29: 3554.78 | J29: 3573.62 | K29: 3535.95 | L29: 3490 | M29: 0.14214
A30: 21 | B30: AMARAJABAT | C30: 620.25 | D30: 620.70 | E30: 616.15 | F30: 612.05 | G30: 607.50 | H30: 624.80 | I30: 629.35 | J30: 633.45 | K30: 625.25 | L30: 616.6 | M30: 4.01286
A31: 22 | B31: AMBUJACEM | C31: 374.85 | D31: 377.55 | E31: 370.70 | F31: 366.55 | G31: 359.70 | H31: 381.70 | I31: 388.55 | J31: 392.70 | K31: 384.4 | L31: 373.4 | M31: 46.38095
A32: 23 | B32: APOLLOHOSP | C32: 4590.65 | D32: 4580.58 | E32: 4538.17 | F32: 4485.68 | G32: 4443.27 | H32: 4633.07 | I32: 4675.48 | J32: 4727.97 | K32: 4623 | L32: 4528.1 | M32: 4.87802
A33: 24 | B33: APOLLOTYRE | C33: 226.65 | D33: 227.33 | E33: 225.52 | F33: 224.38 | G33: 222.57 | H33: 228.47 | I33: 230.28 | J33: 231.42 | K33: 229.15 | L33: 226.2 | M33: 16.80142
A34: 25 | B34: ASHOKLEY | C34: 136.2 | D34: 136.75 | E34: 134.65 | F34: 133.10 | G34: 131.00 | H34: 138.30 | I34: 140.40 | J34: 141.95 | K34: 138.85 | L34: 135.2 | M34: 82.1523
A35: 26 | B35: ASIANPAINT | C35: 3238.75 | D35: 3220.92 | E35: 3193.83 | F35: 3148.92 | G35: 3121.83 | H35: 3265.83 | I35: 3292.92 | J35: 3337.83 | K35: 3248 | L35: 3176 | M35: 7.28666
A36: 27 | B36: ASTRAL | C36: 2122.95 | D36: 2128.70 | E36: 2097.40 | F36: 2071.85 | G36: 2040.55 | H36: 2154.25 | I36: 2185.55 | J36: 2211.10 | K36: 2160 | L36: 2103.15 | M36: 2.8813
A37: 28 | B37: AUROPHARMA | C37: 684.4 | D37: 672.12 | E37: 655.28 | F37: 626.17 | G37: 609.33 | H37: 701.23 | I37: 718.07 | J37: 747.18 | K37: 688.95 | L37: 643 | M37: 82.12849
A38: 29 | B38: DMART | C38: 4162.7 | D38: 4115.23 | E38: 4048.47 | F38: 3934.23 | G38: 3867.47 | H38: 4229.47 | I38: 4296.23 | J38: 4410.47 | K38: 4182 | L38: 4001 | M38: 6.9925
A39: 30 | B39: AXISBANK | C39: 809.8 | D39: 809.62 | E39: 803.28 | F39: 796.77 | G39: 790.43 | H39: 816.13 | I39: 822.47 | J39: 828.98 | K39: 815.95 | L39: 803.1 | M39: 128.48281
A40: 31 | B40: BAJAJ-AUTO | C40: 3569.35 | D40: 3565.52 | E40: 3549.48 | F40: 3529.62 | G40: 3513.58 | H40: 3585.38 | I40: 3601.42 | J40: 3621.28 | K40: 3581.55 | L40: 3545.65 | M40: 2.39918
A41: 32 | B41: BAJFINANCE | C41: 7137 | D41: 7147.33 | E41: 7054.67 | F41: 6972.33 | G41: 6879.67 | H41: 7229.67 | I41: 7322.33 | J41: 7404.67 | K41: 7240 | L41: 7065 | M41: 12.442
A42: 33 | B42: BAJAJFINSV | C42: 16393.6 | D42: 16325.53 | E42: 16101.07 | F42: 15808.53 | G42: 15584.07 | H42: 16618.07 | I42: 16842.53 | J42: 17135.07 | K42: 16550 | L42: 16033 | M42: 2.9977
A43: 34 | B43: BAJAJHLDNG | C43: 5215.35 | D43: 5210.60 | E43: 5162.75 | F43: 5110.15 | G43: 5062.30 | H43: 5263.20 | I43: 5311.05 | J43: 5363.65 | K43: 5258.45 | L43: 5158 | M43: 0.18628
A44: 35 | B44: BALKRISIND | C44: 2271.35 | D44: 2276.58 | E44: 2243.27 | F44: 2215.18 | G44: 2181.87 | H44: 2304.67 | I44: 2337.98 | J44: 2366.07 | K44: 2309.9 | L44: 2248.5 | M44: 1.40576
A45: 36 | B45: BANDHANBNK | C45: 321.45 | D45: 320.90 | E45: 317.80 | F45: 314.15 | G45: 311.05 | H45: 324.55 | I45: 327.65 | J45: 331.30 | K45: 324 | L45: 317.25 | M45: 41.07513
A46: 37 | B46: BANKBARODA | C46: 114.7 | D46: 114.90 | E46: 113.40 | F46: 112.10 | G46: 110.60 | H46: 116.20 | I46: 117.70 | J46: 119.00 | K46: 116.4 | L46: 113.6 | M46: 401.78477
A47: 38 | B47: BANKINDIA | C47: 56.25 | D47: 56.65 | E47: 55.60 | F47: 54.95 | G47: 53.90 | H47: 57.30 | I47: 58.35 | J47: 59.00 | K47: 57.7 | L47: 56 | M47: 68.21612
A48: 39 | B48: BATAINDIA | C48: 1900.8 | D48: 1903.62 | E48: 1889.23 | F48: 1877.67 | G48: 1863.28 | H48: 1915.18 | I48: 1929.57 | J48: 1941.13 | K48: 1918 | L48: 1892.05 | M48: 5.00272
A49: 40 | B49: BERGEPAINT | C49: 726.75 | D49: 726.03 | E49: 714.32 | F49: 701.88 | G49: 690.17 | H49: 738.47 | I49: 750.18 | J49: 762.62 | K49: 737.75 | L49: 713.6 | M49: 8.73044
A50: 41 | B50: BEL | C50: 202.8 | D50: 202.68 | E50: 200.62 | F50: 198.43 | G50: 196.37 | H50: 204.87 | I50: 206.93 | J50: 209.12 | K50: 204.75 | L50: 200.5 | M50: 40.34747
A51: 42 | B51: BHARATFORG | C51: 729.9 | D51: 736.35 | E51: 705.55 | F51: 681.20 | G51: 650.40 | H51: 760.70 | I51: 791.50 | J51: 815.85 | K51: 767.15 | L51: 712 | M51: 47.38129
A52: 43 | B52: BHEL | C52: 57.05 | D52: 56.70 | E52: 55.95 | F52: 54.85 | G52: 54.10 | H52: 57.80 | I52: 58.55 | J52: 59.65 | K52: 57.45 | L52: 55.6 | M52: 194.9866
A53: 44 | B53: BPCL | C53: 369.65 | D53: 370.55 | E53: 367.60 | F53: 365.55 | G53: 362.60 | H53: 372.60 | I53: 375.55 | J53: 377.60 | K53: 373.5 | L53: 368.5 | M53: 61.41529
A54: 45 | B54: BHARTIARTL | C54: 724.05 | D54: 719.87 | E54: 712.78 | F54: 701.52 | G54: 694.43 | H54: 731.13 | I54: 738.22 | J54: 749.48 | K54: 726.95 | L54: 708.6 | M54: 60.74014
A55: 46 | B55: BIOCON | C55: 403.7 | D55: 404.32 | E55: 400.63 | F55: 397.57 | G55: 393.88 | H55: 407.38 | I55: 411.07 | J55: 414.13 | K55: 408 | L55: 401.25 | M55: 15.56043
A56: 47 | B56: BOSCHLTD | C56: 16634.85 | D56: 16465.80 | E56: 16206.65 | F56: 15778.45 | G56: 15519.30 | H56: 16894.00 | I56: 17153.15 | J56: 17581.35 | K56: 16724.95 | L56: 16037.6 | M56: 0.33726
A57: 48 | B57: BRITANNIA | C57: 3534.55 | D57: 3521.13 | E57: 3498.42 | F57: 3462.28 | G57: 3439.57 | H57: 3557.27 | I57: 3579.98 | J57: 3616.12 | K57: 3543.85 | L57: 3485 | M57: 1.72088
A58: 49 | B58: CADILAHC | C58: 401.3 | D58: 403.30 | E58: 398.00 | F58: 394.70 | G58: 389.40 | H58: 406.60 | I58: 411.90 | J58: 415.20 | K58: 408.6 | L58: 400 | M58: 16.45393
A59: 50 | B59: CANBK | C59: 258.8 | D59: 259.50 | E59: 256.10 | F59: 253.40 | G59: 250.00 | H59: 262.20 | I59: 265.60 | J59: 268.30 | K59: 262.9 | L59: 256.8 | M59: 88.41159
A60: 51 | B60: CASTROLIND | C60: 120.1 | D60: 121.02 | E60: 119.08 | F60: 118.07 | G60: 116.13 | H60: 122.03 | I60: 123.97 | J60: 124.98 | K60: 122.95 | L60: 120 | M60: 13.76217
A61: 52 | B61: CHOLAFIN | C61: 690.75 | D61: 687.57 | E61: 676.78 | F61: 662.82 | G61: 652.03 | H61: 701.53 | I61: 712.32 | J61: 726.28 | K61: 698.35 | L61: 673.6 | M61: 40.68283
A62: 53 | B62: CIPLA | C62: 975.05 | D62: 971.80 | E62: 966.25 | F62: 957.45 | G62: 951.90 | H62: 980.60 | I62: 986.15 | J62: 994.95 | K62: 977.35 | L62: 963 | M62: 20.44733
A63: 54 | B63: CUB | C63: 139.9 | D63: 139.95 | E63: 138.95 | F63: 138.00 | G63: 137.00 | H63: 140.90 | I63: 141.90 | J63: 142.85 | K63: 140.95 | L63: 139 | M63: 9.17906
A64: 55 | B64: COALINDIA | C64: 168.05 | D64: 167.78 | E64: 165.27 | F64: 162.48 | G64: 159.97 | H64: 170.57 | I64: 173.08 | J64: 175.87 | K64: 170.3 | L64: 165 | M64: 177.24098
A65: 56 | B65: COFORGE | C65: 4729.55 | D65: 4754.07 | E65: 4688.98 | F65: 4648.42 | G65: 4583.33 | H65: 4794.63 | I65: 4859.72 | J65: 4900.28 | K65: 4819.15 | L65: 4713.5 | M65: 1.88286
A66: 57 | B66: COLPAL | C66: 1458.85 | D66: 1458.60 | E66: 1448.25 | F66: 1437.65 | G66: 1427.30 | H66: 1469.20 | I66: 1479.55 | J66: 1490.15 | K66: 1468.95 | L66: 1448 | M66: 2.38551
A67: 58 | B67: CONCOR | C67: 621.2 | D67: 621.88 | E67: 614.42 | F67: 607.63 | G67: 600.17 | H67: 628.67 | I67: 636.13 | J67: 642.92 | K67: 629.35 | L67: 615.1 | M67: 12.41177
A68: 59 | B68: COROMANDEL | C68: 807.75 | D68: 805.13 | E68: 798.92 | F68: 790.08 | G68: 783.87 | H68: 813.97 | I68: 820.18 | J68: 829.02 | K68: 811.35 | L68: 796.3 | M68: 1.40942
A69: 60 | B69: CROMPTON | C69: 398.05 | D69: 400.50 | E69: 393.60 | F69: 389.15 | G69: 382.25 | H69: 404.95 | I69: 411.85 | J69: 416.30 | K69: 407.4 | L69: 396.05 | M69: 13.5112
A70: 61 | B70: CUMMINSIND | C70: 930.2 | D70: 930.63 | E70: 919.02 | F70: 907.83 | G70: 896.22 | H70: 941.82 | I70: 953.43 | J70: 964.62 | K70: 942.25 | L70: 919.45 | M70: 7.10697
A71: 62 | B71: DLF | C71: 391.15 | D71: 389.25 | E71: 383.90 | F71: 376.65 | G71: 371.30 | H71: 396.50 | I71: 401.85 | J71: 409.10 | K71: 394.6 | L71: 382 | M71: 47.47069
A72: 63 | B72: DABUR | C72: 564.6 | D72: 565.37 | E72: 559.58 | F72: 554.57 | G72: 548.78 | H72: 570.38 | I72: 576.17 | J72: 581.18 | K72: 571.15 | L72: 560.35 | M72: 20.44201
A73: 64 | B73: DALBHARAT | C73: 1948.15 | D73: 1946.40 | E73: 1916.75 | F73: 1885.35 | G73: 1855.70 | H73: 1977.80 | I73: 2007.45 | J73: 2038.85 | K73: 1976.05 | L73: 1915 | M73: 0.84587
A74: 65 | B74: DEEPAKNTR | C74: 2289.75 | D74: 2302.52 | E74: 2271.18 | F74: 2252.62 | G74: 2221.28 | H74: 2321.08 | I74: 2352.42 | J74: 2370.98 | K74: 2333.85 | L74: 2283.95 | M74: 3.81875
A75: 66 | B75: DHANI | C75: 140.95 | D75: 143.18 | E75: 137.32 | F75: 133.68 | G75: 127.82 | H75: 146.82 | I75: 152.68 | J75: 156.32 | K75: 149.05 | L75: 139.55 | M75: 82.00723
A76: 67 | B76: DIVISLAB | C76: 4313.75 | D76: 4325.25 | E76: 4288.55 | F76: 4263.35 | G76: 4226.65 | H76: 4350.45 | I76: 4387.15 | J76: 4412.35 | K76: 4361.95 | L76: 4300.05 | M76: 5.59595
A77: 68 | B77: DIXON | C77: 4499.55 | D77: 4495.32 | E77: 4452.63 | F77: 4405.72 | G77: 4363.03 | H77: 4542.23 | I77: 4584.92 | J77: 4631.83 | K77: 4538 | L77: 4448.4 | M77: 1.56483
A78: 69 | B78: LALPATHLAB | C78: 2928.2 | D78: 2939.92 | E78: 2883.88 | F78: 2839.57 | G78: 2783.53 | H78: 2984.23 | I78: 3040.27 | J78: 3084.58 | K78: 2995.95 | L78: 2895.6 | M78: 3.47918
A79: 70 | B79: DRREDDY | C79: 4370.7 | D79: 4364.38 | E79: 4340.02 | F79: 4309.33 | G79: 4284.97 | H79: 4395.07 | I79: 4419.43 | J79: 4450.12 | K79: 4388.75 | L79: 4333.7 | M79: 2.37865
A80: 71 | B80: EICHERMOT | C80: 2640.35 | D80: 2639.97 | E80: 2615.93 | F80: 2591.52 | G80: 2567.48 | H80: 2664.38 | I80: 2688.42 | J80: 2712.83 | K80: 2664 | L80: 2615.55 | M80: 5.58179
A81: 72 | B81: EMAMILTD | C81: 501.3 | D81: 499.47 | E81: 494.43 | F81: 487.57 | G81: 482.53 | H81: 506.33 | I81: 511.37 | J81: 518.23 | K81: 504.5 | L81: 492.6 | M81: 1.5642
A82: 73 | B82: ENDURANCE | C82: 1466.5 | D82: 1458.12 | E82: 1432.18 | F82: 1397.87 | G82: 1371.93 | H82: 1492.43 | I82: 1518.37 | J82: 1552.68 | K82: 1484.05 | L82: 1423.8 | M82: 0.89592
A83: 74 | B83: ESCORTS | C83: 1846.8 | D83: 1852.02 | E83: 1839.33 | F83: 1831.87 | G83: 1819.18 | H83: 1859.48 | I83: 1872.17 | J83: 1879.63 | K83: 1864.7 | L83: 1844.55 | M83: 4.11418
A84: 75 | B84: EXIDEIND | C84: 166.3 | D84: 166.58 | E84: 165.42 | F84: 164.53 | G84: 163.37 | H84: 167.47 | I84: 168.63 | J84: 169.52 | K84: 167.75 | L84: 165.7 | M84: 20.19215
A85: 76 | B85: FEDERALBNK | C85: 104.45 | D85: 103.45 | E85: 101.90 | F85: 99.35 | G85: 97.80 | H85: 106.00 | I85: 107.55 | J85: 110.10 | K85: 105 | L85: 100.9 | M85: 301.17303
A86: 77 | B86: FORTIS | C86: 261.9 | D86: 260.12 | E86: 257.03 | F86: 252.17 | G86: 249.08 | H86: 264.98 | I86: 268.07 | J86: 272.93 | K86: 263.2 | L86: 255.25 | M86: 16.76825
A87: 78 | B87: GAIL | C87: 141.6 | D87: 141.80 | E87: 140.15 | F87: 138.70 | G87: 137.05 | H87: 143.25 | I87: 144.90 | J87: 146.35 | K87: 143.45 | L87: 140.35 | M87: 203.79088
A88: 79 | B88: GMRINFRA | C88: 42.55 | D88: 42.93 | E88: 41.87 | F88: 41.18 | G88: 40.12 | H88: 43.62 | I88: 44.68 | J88: 45.37 | K88: 44 | L88: 42.25 | M88: 220.25673
A89: 80 | B89: GLAND | C89: 3454.65 | D89: 3477.88 | E89: 3406.77 | F89: 3358.88 | G89: 3287.77 | H89: 3525.77 | I89: 3596.88 | J89: 3644.77 | K89: 3549 | L89: 3430 | M89: 1.9385
A90: 81 | B90: GLENMARK | C90: 501.45 | D90: 500.40 | E90: 495.80 | F90: 490.15 | G90: 485.55 | H90: 506.05 | I90: 510.65 | J90: 516.30 | K90: 505 | L90: 494.75 | M90: 13.29495
A91: 82 | B91: GODREJCP | C91: 853.1 | D91: 855.75 | E91: 846.55 | F91: 840.00 | G91: 830.80 | H91: 862.30 | I91: 871.50 | J91: 878.05 | K91: 864.95 | L91: 849.2 | M91: 7.11095
A92: 83 | B92: GODREJIND | C92: 582.9 | D92: 584.60 | E92: 576.35 | F92: 569.80 | G92: 561.55 | H92: 591.15 | I92: 599.40 | J92: 605.95 | K92: 592.85 | L92: 578.05 | M92: 0.90867
A93: 84 | B93: GODREJPROP | C93: 1576.7 | D93: 1567.90 | E93: 1550.80 | F93: 1524.90 | G93: 1507.80 | H93: 1593.80 | I93: 1610.90 | J93: 1636.80 | K93: 1585 | L93: 1542 | M93: 11.50733
A94: 85 | B94: GRASIM | C94: 1768.55 | D94: 1755.48 | E94: 1739.67 | F94: 1710.78 | G94: 1694.97 | H94: 1784.37 | I94: 1800.18 | J94: 1829.07 | K94: 1771.3 | L94: 1726.6 | M94: 6.22393
A95: 86 | B95: GUJGASLTD | C95: 647.65 | D95: 649.43 | E95: 639.77 | F95: 631.88 | G95: 622.22 | H95: 657.32 | I95: 666.98 | J95: 674.87 | K95: 659.1 | L95: 641.55 | M95: 12.78455
A96: 87 | B96: GSPL | C96: 299.25 | D96: 301.22 | E96: 295.68 | F96: 292.12 | G96: 286.58 | H96: 304.78 | I96: 310.32 | J96: 313.88 | K96: 306.75 | L96: 297.65 | M96: 4.88662
A97: 88 | B97: HCLTECH | C97: 1190.35 | D97: 1185.45 | E97: 1179.00 | F97: 1167.65 | G97: 1161.20 | H97: 1196.80 | I97: 1203.25 | J97: 1214.60 | K97: 1191.9 | L97: 1174.1 | M97: 20.53245
A98: 89 | B98: HDFCAMC | C98: 2220.9 | D98: 2223.20 | E98: 2201.40 | F98: 2181.90 | G98: 2160.10 | H98: 2242.70 | I98: 2264.50 | J98: 2284.00 | K98: 2245 | L98: 2203.7 | M98: 2.04512
A99: 90 | B99: HDFCBANK | C99: 1525.1 | D99: 1520.75 | E99: 1506.00 | F99: 1486.90 | G99: 1472.15 | H99: 1539.85 | I99: 1554.60 | J99: 1573.70 | K99: 1535.5 | L99: 1501.65 | M99: 71.57265
A100: 91 | B100: HDFCLIFE | C100: 606.25 | D100: 602.73 | E100: 593.97 | F100: 581.68 | G100: 572.92 | H100: 615.02 | I100: 623.78 | J100: 636.07 | K100: 611.5 | L100: 590.45 | M100: 62.31536
A101: 92 | B101: HAVELLS | C101: 1219.3 | D101: 1216.03 | E101: 1203.07 | F101: 1186.83 | G101: 1173.87 | H101: 1232.27 | I101: 1245.23 | J101: 1261.47 | K101: 1229 | L101: 1199.8 | M101: 7.04743
A102: 93 | B102: HEROMOTOCO | C102: 2734.1 | D102: 2728.72 | E102: 2706.43 | F102: 2678.77 | G102: 2656.48 | H102: 2756.38 | I102: 2778.67 | J102: 2806.33 | K102: 2751 | L102: 2701.05 | M102: 4.48648
A103: 94 | B103: HINDALCO | C103: 547.25 | D103: 547.25 | E103: 541.00 | F103: 534.75 | G103: 528.50 | H103: 553.50 | I103: 559.75 | J103: 566.00 | K103: 553.5 | L103: 541 | M103: 109.06403
A104: 95 | B104: HAL | C104: 1397.85 | D104: 1406.28 | E104: 1374.57 | F104: 1351.28 | G104: 1319.57 | H104: 1429.57 | I104: 1461.28 | J104: 1484.57 | K104: 1438 | L104: 1383 | M104: 9.9682
A105: 96 | B105: HINDCOPPER | C105: 142.25 | D105: 143.03 | E105: 139.72 | F105: 137.18 | G105: 133.87 | H105: 145.57 | I105: 148.88 | J105: 151.42 | K105: 146.35 | L105: 140.5 | M105: 160.68827
A106: 97 | B106: HINDPETRO | C106: 299.5 | D106: 298.52 | E106: 296.18 | F106: 292.87 | G106: 290.53 | H106: 301.83 | I106: 304.17 | J106: 307.48 | K106: 300.85 | L106: 295.2 | M106: 33.21223
A107: 98 | B107: HINDUNILVR | C107: 2283.15 | D107: 2274.67 | E107: 2264.33 | F107: 2245.52 | G107: 2235.18 | H107: 2293.48 | I107: 2303.82 | J107: 2322.63 | K107: 2285 | L107: 2255.85 | M107: 11.951
A108: 99 | B108: HINDZINC | C108: 331.8 | D108: 333.62 | E108: 329.23 | F108: 326.67 | G108: 322.28 | H108: 336.18 | I108: 340.57 | J108: 343.13 | K108: 338 | L108: 331.05 | M108: 6.91056
A109: 100 | B109: HDFC | C109: 2476.55 | D109: 2474.62 | E109: 2443.53 | F109: 2410.52 | G109: 2379.43 | H109: 2507.63 | I109: 2538.72 | J109: 2571.73 | K109: 2505.7 | L109: 2441.6 | M109: 63.46218
A110: 101 | B110: ICICIBANK | C110: 805.5 | D110: 803.53 | E110: 798.27 | F110: 791.03 | G110: 785.77 | H110: 810.77 | I110: 816.03 | J110: 823.27 | K110: 808.8 | L110: 796.3 | M110: 131.59771
A111: 102 | B111: ICICIGI | C111: 1344.25 | D111: 1349.52 | E111: 1332.83 | F111: 1321.42 | G111: 1304.73 | H111: 1360.93 | I111: 1377.62 | J111: 1389.03 | K111: 1366.2 | L111: 1338.1 | M111: 5.79032
A112: 103 | B112: ICICIPRULI | C112: 527.85 | D112: 520.73 | E112: 512.47 | F112: 497.08 | G112: 488.82 | H112: 536.12 | I112: 544.38 | J112: 559.77 | K112: 529 | L112: 505.35 | M112: 23.1715
A113: 104 | B113: ISEC | C113: 737.75 | D113: 736.92 | E113: 725.83 | F113: 713.92 | G113: 702.83 | H113: 748.83 | I113: 759.92 | J113: 771.83 | K113: 748 | L113: 725 | M113: 2.88387
A114: 105 | B114: IDFCFIRSTB | C114: 47.25 | D114: 47.27 | E114: 46.73 | F114: 46.22 | G114: 45.68 | H114: 47.78 | I114: 48.32 | J114: 48.83 | K114: 47.8 | L114: 46.75 | M114: 129.99351
A115: 106 | B115: ITC | C115: 232.25 | D115: 231.13 | E115: 228.87 | F115: 225.48 | G115: 223.22 | H115: 234.52 | I115: 236.78 | J115: 240.17 | K115: 233.4 | L115: 227.75 | M115: 195.6358
A116: 107 | B116: INDIAMART | C116: 5139 | D116: 5141.43 | E116: 5032.97 | F116: 4926.93 | G116: 4818.47 | H116: 5247.47 | I116: 5355.93 | J116: 5461.97 | K116: 5249.9 | L116: 5035.4 | M116: 1.0987
A117: 108 | B117: INDIANB | C117: 157.8 | D117: 156.97 | E117: 155.43 | F117: 153.07 | G117: 151.53 | H117: 159.33 | I117: 160.87 | J117: 163.23 | K117: 158.5 | L117: 154.6 | M117: 28.60373
A118: 109 | B118: INDHOTEL | C118: 215.25 | D118: 214.15 | E118: 211.80 | F118: 208.35 | G118: 206.00 | H118: 217.60 | I118: 219.95 | J118: 223.40 | K118: 216.5 | L118: 210.7 | M118: 28.3003
A119: 110 | B119: IOC | C119: 119.95 | D119: 120.35 | E119: 119.25 | F119: 118.55 | G119: 117.45 | H119: 121.05 | I119: 122.15 | J119: 122.85 | K119: 121.45 | L119: 119.65 | M119: 120.80112
A120: 111 | B120: IRCTC | C120: 845.9 | D120: 847.12 | E120: 839.08 | F120: 832.27 | G120: 824.23 | H120: 853.93 | I120: 861.97 | J120: 868.78 | K120: 855.15 | L120: 840.3 | M120: 25.69073
A121: 112 | B121: IRFC | C121: 23.15 | D121: 23.23 | E121: 22.97 | F121: 22.78 | G121: 22.52 | H121: 23.42 | I121: 23.68 | J121: 23.87 | K121: 23.5 | L121: 23.05 | M121: 98.1483
A122: 113 | B122: IGL | C122: 389.9 | D122: 389.20 | E122: 385.95 | F122: 382.00 | G122: 378.75 | H122: 393.15 | I122: 396.40 | J122: 400.35 | K122: 392.45 | L122: 385.25 | M122: 16.65999
A123: 114 | B123: INDUSTOWER | C123: 252.9 | D123: 252.47 | E123: 251.13 | F123: 249.37 | G123: 248.03 | H123: 254.23 | I123: 255.57 | J123: 257.33 | K123: 253.8 | L123: 250.7 | M123: 17.77969
A124: 115 | B124: INDUSINDBK | C124: 972.35 | D124: 970.12 | E124: 962.48 | F124: 952.62 | G124: 944.98 | H124: 979.98 | I124: 987.62 | J124: 997.48 | K124: 977.75 | L124: 960.25 | M124: 40.37566
A125: 116 | B125: NAUKRI | C125: 4888.5 | D125: 4916.63 | E125: 4812.92 | F125: 4737.33 | G125: 4633.62 | H125: 4992.22 | I125: 5095.93 | J125: 5171.52 | K125: 5020.35 | L125: 4841.05 | M125: 2.64005
A126: 117 | B126: INFY | C126: 1769.6 | D126: 1764.08 | E126: 1754.27 | F126: 1738.93 | G126: 1729.12 | H126: 1779.42 | I126: 1789.23 | J126: 1804.57 | K126: 1773.9 | L126: 1748.75 | M126: 43.3463
A127: 118 | B127: INDIGO | C127: 2236.75 | D127: 2237.98 | E127: 2193.87 | F127: 2150.98 | G127: 2106.87 | H127: 2280.87 | I127: 2324.98 | J127: 2367.87 | K127: 2282.1 | L127: 2195.1 | M127: 11.82724
A128: 119 | B128: IPCALAB | C128: 1004 | D128: 1006.05 | E128: 983.10 | F128: 962.20 | G128: 939.25 | H128: 1026.95 | I128: 1049.90 | J128: 1070.80 | K128: 1029 | L128: 985.15 | M128: 1.18579
A129: 120 | B129: JSWENERGY | C129: 325.05 | D129: 317.40 | E129: 309.75 | F129: 294.45 | G129: 286.80 | H129: 332.70 | I129: 340.35 | J129: 355.65 | K129: 325.05 | L129: 302.1 | M129: 13.62602
A130: 121 | B130: JSWSTEEL | C130: 672.55 | D130: 671.55 | E130: 665.10 | F130: 657.65 | G130: 651.20 | H130: 679.00 | I130: 685.45 | J130: 692.90 | K130: 678 | L130: 664.1 | M130: 42.8488
A131: 122 | B131: JINDALSTEL | C131: 440.9 | D131: 433.67 | E131: 425.23 | F131: 409.57 | G131: 401.13 | H131: 449.33 | I131: 457.77 | J131: 473.43 | K131: 442.1 | L131: 418 | M131: 164.83464
A132: 123 | B132: JUBLFOOD | C132: 3180.25 | D132: 3196.75 | E132: 3145.50 | F132: 3110.75 | G132: 3059.50 | H132: 3231.50 | I132: 3282.75 | J132: 3317.50 | K132: 3248 | L132: 3162 | M132: 7.43416
A133: 124 | B133: KOTAKBANK | C133: 1867.2 | D133: 1862.12 | E133: 1835.33 | F133: 1803.47 | G133: 1776.68 | H133: 1893.98 | I133: 1920.77 | J133: 1952.63 | K133: 1888.9 | L133: 1830.25 | M133: 25.08081
A134: 125 | B134: L&TFH | C134: 75.75 | D134: 75.60 | E134: 74.90 | F134: 74.05 | G134: 73.35 | H134: 76.45 | I134: 77.15 | J134: 78.00 | K134: 76.3 | L134: 74.75 | M134: 47.65434
A135: 126 | B135: LTTS | C135: 4686.7 | D135: 4655.33 | E135: 4610.67 | F135: 4534.63 | G135: 4489.97 | H135: 4731.37 | I135: 4776.03 | J135: 4852.07 | K135: 4700 | L135: 4579.3 | M135: 3.27004
A136: 127 | B136: LICHSGFIN | C136: 403.15 | D136: 400.92 | E136: 393.83 | F136: 384.52 | G136: 377.43 | H136: 410.23 | I136: 417.32 | J136: 426.63 | K136: 408 | L136: 391.6 | M136: 59.90222
A137: 128 | B137: LTI | C137: 6317.4 | D137: 6302.47 | E137: 6264.93 | F137: 6212.47 | G137: 6174.93 | H137: 6354.93 | I137: 6392.47 | J137: 6444.93 | K137: 6340 | L137: 6250 | M137: 1.41271
A138: 129 | B138: LT | C138: 1901 | D138: 1897.67 | E138: 1884.33 | F138: 1867.67 | G138: 1854.33 | H138: 1914.33 | I138: 1927.67 | J138: 1944.33 | K138: 1911 | L138: 1881 | M138: 12.88856
A139: 130 | B139: LAURUSLABS | C139: 540 | D139: 536.33 | E139: 526.77 | F139: 513.53 | G139: 503.97 | H139: 549.57 | I139: 559.13 | J139: 572.37 | K139: 545.9 | L139: 523.1 | M139: 38.67685
A140: 131 | B140: LUPIN | C140: 806.35 | D140: 806.12 | E140: 800.23 | F140: 794.12 | G140: 788.23 | H140: 812.23 | I140: 818.12 | J140: 824.23 | K140: 812 | L140: 800 | M140: 15.83276
A141: 132 | B141: MRF | C141: 69769.2 | D141: 70063.27 | E141: 69206.93 | F141: 68644.67 | G141: 67788.33 | H141: 70625.53 | I141: 71481.87 | J141: 72044.13 | K141: 70919.6 | L141: 69501 | M141: 0.14416
A142: 133 | B142: MGL | C142: 793.3 | D142: 796.57 | E142: 788.13 | F142: 782.97 | G142: 774.53 | H142: 801.73 | I142: 810.17 | J142: 815.33 | K142: 805 | L142: 791.4 | M142: 5.84987
A143: 134 | B143: M&MFIN | C143: 157.4 | D143: 156.83 | E143: 154.67 | F143: 151.93 | G143: 149.77 | H143: 159.57 | I143: 161.73 | J143: 164.47 | K143: 159 | L143: 154.1 | M143: 53.16155
A144: 135 | B144: M&M | C144: 853.05 | D144: 846.98 | E144: 836.22 | F144: 819.38 | G144: 808.62 | H144: 863.82 | I144: 874.58 | J144: 891.42 | K144: 857.75 | L144: 830.15 | M144: 69.49276
A145: 136 | B145: MANAPPURAM | C145: 159 | D145: 158.77 | E145: 157.23 | F145: 155.47 | G145: 153.93 | H145: 160.53 | I145: 162.07 | J145: 163.83 | K145: 160.3 | L145: 157 | M145: 14.96525
A146: 137 | B146: MARICO | C146: 507.55 | D146: 509.08 | E146: 503.47 | F146: 499.38 | G146: 493.77 | H146: 513.17 | I146: 518.78 | J146: 522.87 | K146: 514.7 | L146: 505 | M146: 7.74115
A147: 138 | B147: MARUTI | C147: 8805.45 | D147: 8881.78 | E147: 8713.57 | F147: 8621.68 | G147: 8453.47 | H147: 8973.67 | I147: 9141.88 | J147: 9233.77 | K147: 9050 | L147: 8789.9 | M147: 8.11887
A148: 139 | B148: MFSL | C148: 878.3 | D148: 873.82 | E148: 862.63 | F148: 846.97 | G148: 835.78 | H148: 889.48 | I148: 900.67 | J148: 916.33 | K148: 885 | L148: 858.15 | M148: 17.37453
A149: 140 | B149: MINDTREE | C149: 4029.55 | D149: 4012.08 | E149: 3982.52 | F149: 3935.48 | G149: 3905.92 | H149: 4059.12 | I149: 4088.68 | J149: 4135.72 | K149: 4041.65 | L149: 3965.05 | M149: 3.77038
A150: 141 | B150: MPHASIS | C150: 3110.15 | D150: 3082.72 | E150: 3047.43 | F150: 2984.72 | G150: 2949.43 | H150: 3145.43 | I150: 3180.72 | J150: 3243.43 | K150: 3118 | L150: 3020 | M150: 6.34918
A151: 142 | B151: MUTHOOTFIN | C151: 1465.5 | D151: 1458.52 | E151: 1447.03 | F151: 1428.57 | G151: 1417.08 | H151: 1476.98 | I151: 1488.47 | J151: 1506.93 | K151: 1470 | L151: 1440.05 | M151: 3.1499
A152: 143 | B152: NATCOPHARM | C152: 921.1 | D152: 919.63 | E152: 913.77 | F152: 906.43 | G152: 900.57 | H152: 926.97 | I152: 932.83 | J152: 940.17 | K152: 925.5 | L152: 912.3 | M152: 0.96886
A153: 144 | B153: NMDC | C153: 159.3 | D153: 158.63 | E153: 156.77 | F153: 154.23 | G153: 152.37 | H153: 161.17 | I153: 163.03 | J153: 165.57 | K153: 160.5 | L153: 156.1 | M153: 184.33104
A154: 145 | B154: NTPC | C154: 136.45 | D154: 135.87 | E154: 134.88 | F154: 133.32 | G154: 132.33 | H154: 137.43 | I154: 138.42 | J154: 139.98 | K154: 136.85 | L154: 134.3 | M154: 60.8146
A155: 146 | B155: NATIONALUM | C155: 125.9 | D155: 126.48 | E155: 124.72 | F155: 123.53 | G155: 121.77 | H155: 127.67 | I155: 129.43 | J155: 130.62 | K155: 128.25 | L155: 125.3 | M155: 286.40085
A156: 147 | B156: NAVINFLUOR | C156: 4091.2 | D156: 4069.27 | E156: 4028.03 | F156: 3964.87 | G156: 3923.63 | H156: 4132.43 | I156: 4173.67 | J156: 4236.83 | K156: 4110.5 | L156: 4006.1 | M156: 0.77212
A157: 148 | B157: NESTLEIND | C157: 18139.85 | D157: 18120.92 | E157: 18028.93 | F157: 17918.02 | G157: 17826.03 | H157: 18231.83 | I157: 18323.82 | J157: 18434.73 | K157: 18212.9 | L157: 18010 | M157: 0.50422
A158: 149 | B158: NAM-INDIA | C158: 333.2 | D158: 332.13 | E158: 329.27 | F158: 325.33 | G158: 322.47 | H158: 336.07 | I158: 338.93 | J158: 342.87 | K158: 335 | L158: 328.2 | M158: 4.96917
A159: 150 | B159: OBEROIRLTY | C159: 939.2 | D159: 939.53 | E159: 930.07 | F159: 920.93 | G159: 911.47 | H159: 948.67 | I159: 958.13 | J159: 967.27 | K159: 949 | L159: 930.4 | M159: 4.84049
A160: 151 | B160: ONGC | C160: 169.1 | D160: 168.22 | E160: 166.03 | F160: 162.97 | G160: 160.78 | H160: 171.28 | I160: 173.47 | J160: 176.53 | K160: 170.4 | L160: 165.15 | M160: 267.63203
A161: 152 | B161: OIL | C161: 230.2 | D161: 231.12 | E161: 228.68 | F161: 227.17 | G161: 224.73 | H161: 232.63 | I161: 235.07 | J161: 236.58 | K161: 233.55 | L161: 229.6 | M161: 3.70009
A162: 153 | B162: PIIND | C162: 2625.25 | D162: 2625.50 | E162: 2589.20 | F162: 2553.15 | G162: 2516.85 | H162: 2661.55 | I162: 2697.85 | J162: 2733.90 | K162: 2661.8 | L162: 2589.45 | M162: 2.03281
A163: 154 | B163: PAGEIND | C163: 40953.5 | D163: 41294.15 | E163: 39959.35 | F163: 38965.20 | G163: 37630.40 | H163: 42288.30 | I163: 43623.10 | J163: 44617.25 | K163: 42628.95 | L163: 40300 | M163: 0.52366
A164: 155 | B164: PETRONET | C164: 219.55 | D164: 219.85 | E164: 216.70 | F164: 213.85 | G164: 210.70 | H164: 222.70 | I164: 225.85 | J164: 228.70 | K164: 223 | L164: 217 | M164: 53.82874
A165: 156 | B165: PFIZER | C165: 4518.95 | D165: 4523.53 | E165: 4481.07 | F165: 4443.18 | G165: 4400.72 | H165: 4561.42 | I165: 4603.88 | J165: 4641.77 | K165: 4566 | L165: 4485.65 | M165: 0.69798
A166: 157 | B166: PIDILITIND | C166: 2489.05 | D166: 2482.62 | E166: 2466.98 | F166: 2444.92 | G166: 2429.28 | H166: 2504.68 | I166: 2520.32 | J166: 2542.38 | K166: 2498.25 | L166: 2460.55 | M166: 1.72476
A167: 158 | B167: PEL | C167: 2496.25 | D167: 2489.08 | E167: 2452.17 | F167: 2408.08 | G167: 2371.17 | H167: 2533.17 | I167: 2570.08 | J167: 2614.17 | K167: 2526 | L167: 2445 | M167: 11.95915
A168: 159 | B168: POLYCAB | C168: 2416.65 | D168: 2428.22 | E168: 2398.43 | F168: 2380.22 | G168: 2350.43 | H168: 2446.43 | I168: 2476.22 | J168: 2494.43 | K168: 2458 | L168: 2410 | M168: 1.29427
A169: 160 | B169: PFC | C169: 123.15 | D169: 122.45 | E169: 121.10 | F169: 119.05 | G169: 117.70 | H169: 124.50 | I169: 125.85 | J169: 127.90 | K169: 123.8 | L169: 120.4 | M169: 79.13066
A170: 161 | B170: POWERGRID | C170: 212.05 | D170: 212.60 | E170: 209.50 | F170: 206.95 | G170: 203.85 | H170: 215.15 | I170: 218.25 | J170: 220.80 | K170: 215.7 | L170: 210.05 | M170: 143.85251
A171: 162 | B171: PRESTIGE | C171: 460.95 | D171: 461.17 | E171: 454.83 | F171: 448.72 | G171: 442.38 | H171: 467.28 | I171: 473.62 | J171: 479.73 | K171: 467.5 | L171: 455.05 | M171: 4.06057
A172: 163 | B172: PGHH | C172: 15641.15 | D172: 15553.70 | E172: 15407.40 | F172: 15173.65 | G172: 15027.35 | H172: 15787.45 | I172: 15933.75 | J172: 16167.50 | K172: 15700 | L172: 15319.95 | M172: 0.11333
A173: 164 | B173: PNB | C173: 40.8 | D173: 41.10 | E173: 40.40 | F173: 40.00 | G173: 39.30 | H173: 41.50 | I173: 42.20 | J173: 42.60 | K173: 41.8 | L173: 40.7 | M173: 347.12483
A174: 165 | B174: RBLBANK | C174: 146.4 | D174: 146.88 | E174: 145.07 | F174: 143.73 | G174: 141.92 | H174: 148.22 | I174: 150.03 | J174: 151.37 | K174: 148.7 | L174: 145.55 | M174: 67.35909
A175: 166 | B175: RECLTD | C175: 140.85 | D175: 140.13 | E175: 139.07 | F175: 137.28 | G175: 136.22 | H175: 141.92 | I175: 142.98 | J175: 144.77 | K175: 141.2 | L175: 138.35 | M175: 47.15871
A176: 167 | B176: RELIANCE | C176: 2381.05 | D176: 2380.62 | E176: 2365.53 | F176: 2350.02 | G176: 2334.93 | H176: 2396.13 | I176: 2411.22 | J176: 2426.73 | K176: 2395.7 | L176: 2365.1 | M176: 57.52361
A177: 168 | B177: SBICARD | C177: 869.7 | D177: 865.72 | E177: 858.33 | F177: 846.97 | G177: 839.58 | H177: 877.08 | I177: 884.47 | J177: 895.83 | K177: 873.1 | L177: 854.35 | M177: 12.48047
A178: 169 | B178: SBILIFE | C178: 1146.25 | D178: 1134.75 | E178: 1119.50 | F178: 1092.75 | G178: 1077.50 | H178: 1161.50 | I178: 1176.75 | J178: 1203.50 | K178: 1150 | L178: 1108 | M178: 20.30639
A179: 170 | B179: SRF | C179: 2584.55 | D179: 2582.17 | E179: 2552.48 | F179: 2520.42 | G179: 2490.73 | H179: 2614.23 | I179: 2643.92 | J179: 2675.98 | K179: 2611.85 | L179: 2550.1 | M179: 6.98527
A180: 171 | B180: SANOFI | C180: 7296.65 | D180: 7333.27 | E180: 7246.43 | F180: 7196.22 | G180: 7109.38 | H180: 7383.48 | I180: 7470.32 | J180: 7520.53 | K180: 7420.1 | L180: 7283.05 | M180: 0.05093
A181: 172 | B181: SHREECEM | C181: 25247.4 | D181: 25330.15 | E181: 25100.40 | F181: 24953.40 | G181: 24723.65 | H181: 25477.15 | I181: 25706.90 | J181: 25853.90 | K181: 25559.9 | L181: 25183.15 | M181: 0.19294
A182: 173 | B182: SRTRANSFIN | C182: 1265.6 | D182: 1257.57 | E182: 1240.13 | F182: 1214.67 | G182: 1197.23 | H182: 1283.03 | I182: 1300.47 | J182: 1325.93 | K182: 1275 | L182: 1232.1 | M182: 6.33358
A183: 174 | B183: SIEMENS | C183: 2442.4 | D183: 2429.00 | E183: 2408.50 | F183: 2374.60 | G183: 2354.10 | H183: 2462.90 | I183: 2483.40 | J183: 2517.30 | K183: 2449.5 | L183: 2395.1 | M183: 1.8403
A184: 175 | B184: SBIN | C184: 540.55 | D184: 539.63 | E184: 535.32 | F184: 530.08 | G184: 525.77 | H184: 544.87 | I184: 549.18 | J184: 554.42 | K184: 543.95 | L184: 534.4 | M184: 186.5937
A185: 176 | B185: SAIL | C185: 103.4 | D185: 103.72 | E185: 100.68 | F185: 97.97 | G185: 94.93 | H185: 106.43 | I185: 109.47 | J185: 112.18 | K185: 106.75 | L185: 101 | M185: 846.38735
A186: 177 | B186: SUNPHARMA | C186: 894.3 | D186: 890.18 | E186: 884.12 | F186: 873.93 | G186: 867.87 | H186: 900.37 | I186: 906.43 | J186: 916.62 | K186: 896.25 | L186: 880 | M186: 31.59839
A187: 178 | B187: SUNTV | C187: 521.6 | D187: 521.62 | E187: 515.23 | F187: 508.87 | G187: 502.48 | H187: 527.98 | I187: 534.37 | J187: 540.73 | K187: 528 | L187: 515.25 | M187: 11.2521
A188: 179 | B188: SYNGENE | C188: 597.95 | D188: 596.57 | E188: 589.23 | F188: 580.52 | G188: 573.18 | H188: 605.28 | I188: 612.62 | J188: 621.33 | K188: 603.9 | L188: 587.85 | M188: 4.67381
A189: 180 | B189: TVSMOTOR | C189: 668.45 | D189: 670.15 | E189: 663.30 | F189: 658.15 | G189: 651.30 | H189: 675.30 | I189: 682.15 | J189: 687.30 | K189: 677 | L189: 665 | M189: 35.02156
A190: 181 | B190: TATACHEM | C190: 959.8 | D190: 963.60 | E190: 952.20 | F190: 944.60 | G190: 933.20 | H190: 971.20 | I190: 982.60 | J190: 990.20 | K190: 975 | L190: 956 | M190: 13.9598
A191: 182 | B191: TATACOMM | C191: 1307 | D191: 1299.00 | E191: 1286.00 | F191: 1265.00 | G191: 1252.00 | H191: 1320.00 | I191: 1333.00 | J191: 1354.00 | K191: 1312 | L191: 1278 | M191: 3.4283
A192: 183 | B192: TCS | C192: 3770.35 | D192: 3772.72 | E192: 3755.63 | F192: 3740.92 | G192: 3723.83 | H192: 3787.43 | I192: 3804.52 | J192: 3819.23 | K192: 3789.8 | L192: 3758 | M192: 21.12459
A193: 184 | B193: TATACONSUM | C193: 706.7 | D193: 705.57 | E193: 700.13 | F193: 693.57 | G193: 688.13 | H193: 712.13 | I193: 717.57 | J193: 724.13 | K193: 711 | L193: 699 | M193: 17.70292
A194: 185 | B194: TATAELXSI | C194: 7603.6 | D194: 7623.88 | E194: 7540.37 | F194: 7477.13 | G194: 7393.62 | H194: 7687.12 | I194: 7770.63 | J194: 7833.87 | K194: 7707.4 | L194: 7560.65 | M194: 1.37948
A195: 186 | B195: TATAMOTORS | C195: 507.45 | D195: 507.38 | E195: 504.27 | F195: 501.08 | G195: 497.97 | H195: 510.57 | I195: 513.68 | J195: 516.87 | K195: 510.5 | L195: 504.2 | M195: 145.37945
A196: 187 | B196: TATAPOWER | C196: 241.3 | D196: 239.97 | E196: 235.43 | F196: 229.57 | G196: 225.03 | H196: 245.83 | I196: 250.37 | J196: 256.23 | K196: 244.5 | L196: 234.1 | M196: 551.53254
A197: 188 | B197: TATASTEEL | C197: 1248.35 | D197: 1242.87 | E197: 1231.48 | F197: 1214.62 | G197: 1203.23 | H197: 1259.73 | I197: 1271.12 | J197: 1287.98 | K197: 1254.25 | L197: 1226 | M197: 93.92057
A198: 189 | B198: TECHM | C198: 1468.5 | D198: 1463.60 | E198: 1455.20 | F198: 1441.90 | G198: 1433.50 | H198: 1476.90 | I198: 1485.30 | J198: 1498.60 | K198: 1472 | L198: 1450.3 | M198: 18.50405
A199: 190 | B199: RAMCOCEM | C199: 890.45 | D199: 891.53 | E199: 884.87 | F199: 879.28 | G199: 872.62 | H199: 897.12 | I199: 903.78 | J199: 909.37 | K199: 898.2 | L199: 885.95 | M199: 1.68295
A200: 191 | B200: TITAN | C200: 2491.85 | D200: 2487.12 | E200: 2470.28 | F200: 2448.72 | G200: 2431.88 | H200: 2508.68 | I200: 2525.52 | J200: 2547.08 | K200: 2503.95 | L200: 2465.55 | M200: 7.88689
A201: 192 | B201: TORNTPHARM | C201: 2597.15 | D201: 2602.10 | E201: 2571.30 | F201: 2545.45 | G201: 2514.65 | H201: 2627.95 | I201: 2658.75 | J201: 2684.60 | K201: 2632.9 | L201: 2576.25 | M201: 2.61929
A202: 193 | B202: TORNTPOWER | C202: 506.2 | D202: 506.05 | E202: 500.65 | F202: 495.10 | G202: 489.70 | H202: 511.60 | I202: 517.00 | J202: 522.55 | K202: 511.45 | L202: 500.5 | M202: 9.17329
A203: 194 | B203: TRENT | C203: 1075.6 | D203: 1071.87 | E203: 1058.73 | F203: 1041.87 | G203: 1028.73 | H203: 1088.73 | I203: 1101.87 | J203: 1118.73 | K203: 1085 | L203: 1055 | M203: 4.11046
A204: 195 | B204: UPL | C204: 770.1 | D204: 772.33 | E204: 765.72 | F204: 761.33 | G204: 754.72 | H204: 776.72 | I204: 783.33 | J204: 787.72 | K204: 778.95 | L204: 767.95 | M204: 25.61635
A205: 196 | B205: ULTRACEMCO | C205: 7474.5 | D205: 7494.58 | E205: 7440.22 | F205: 7405.93 | G205: 7351.57 | H205: 7528.87 | I205: 7583.23 | J205: 7617.52 | K205: 7548.95 | L205: 7460.3 | M205: 2.84223
... 29 more rows

Sheet MidCap Intra
L5: Back To Main Page
A6: FOR INTRA DAY TRADING | K6: =Main!B10 -> 2022-02-11
A9: Sr.no | B9: Scrip | C9: CLOSE RATE | D9: Pivot Point | E9: Supports | H9: Resistances
E10: S1 | F10: S2 | G10: S3 | H10: R1 | I10: R2 | J10: R3 | K10: HIGH | L10: LOW | M10: Total Trade Quanity in Lakhs
A11: 1 | B11: 3MINDIA | C11: 23767.95 | D11: 23923.85 | E11: 23500.70 | F11: 23233.45 | G11: 22810.30 | H11: 24191.10 | I11: 24614.25 | J11: 24881.50 | K11: 24347 | L11: 23656.6 | M11: 0.02447
A12: 2 | B12: AARTIDRUGS | C12: 525.15 | D12: 525.50 | E12: 522.05 | F12: 518.95 | G12: 515.50 | H12: 528.60 | I12: 532.05 | J12: 535.15 | K12: 528.95 | L12: 522.4 | M12: 0.93492
A13: 3 | B13: AARTIIND | C13: 1022.2 | D13: 1019.57 | E13: 1012.13 | F13: 1002.07 | G13: 994.63 | H13: 1029.63 | I13: 1037.07 | J13: 1047.13 | K13: 1027 | L13: 1009.5 | M13: 7.00879
A14: 4 | B14: AAVAS | C14: 3099 | D14: 3074.57 | E14: 3009.43 | F14: 2919.87 | G14: 2854.73 | H14: 3164.13 | I14: 3229.27 | J14: 3318.83 | K14: 3139.7 | L14: 2985 | M14: 2.68592
A15: 5 | B15: ABB | C15: 2238 | D15: 2256.30 | E15: 2192.70 | F15: 2147.40 | G15: 2083.80 | H15: 2301.60 | I15: 2365.20 | J15: 2410.50 | K15: 2319.9 | L15: 2211 | M15: 3.69714
A16: 6 | B16: ABBOTINDIA | C16: 16615 | D16: 16576.68 | E16: 16253.37 | F16: 15891.73 | G16: 15568.42 | H16: 16938.32 | I16: 17261.63 | J16: 17623.27 | K16: 16900 | L16: 16215.05 | M16: 0.72856
A17: 7 | B17: ABCAPITAL | C17: 120.45 | D17: 120.20 | E17: 118.55 | F17: 116.65 | G17: 115.00 | H17: 122.10 | I17: 123.75 | J17: 125.65 | K17: 121.85 | L17: 118.3 | M17: 30.37306
A18: 8 | B18: ABFRL | C18: 295.6 | D18: 296.87 | E18: 292.33 | F18: 289.07 | G18: 284.53 | H18: 300.13 | I18: 304.67 | J18: 307.93 | K18: 301.4 | L18: 293.6 | M18: 25.14519
A19: 9 | B19: ACC | C19: 2303.55 | D19: 2297.78 | E19: 2270.77 | F19: 2237.98 | G19: 2210.97 | H19: 2330.57 | I19: 2357.58 | J19: 2390.37 | K19: 2324.8 | L19: 2265 | M19: 8.76424
A20: 10 | B20: ADANIENT | C20: 1786.1 | D20: 1787.03 | E20: 1765.07 | F20: 1744.03 | G20: 1722.07 | H20: 1808.07 | I20: 1830.03 | J20: 1851.07 | K20: 1809 | L20: 1766 | M20: 17.47943
A21: 11 | B21: ADANIGREEN | C21: 1907.95 | D21: 1913.65 | E21: 1882.30 | F21: 1856.65 | G21: 1825.30 | H21: 1939.30 | I21: 1970.65 | J21: 1996.30 | K21: 1945 | L21: 1888 | M21: 5.55955
A22: 12 | B22: ADANIPORTS | C22: 731.05 | D22: 733.55 | E22: 725.55 | F22: 720.05 | G22: 712.05 | H22: 739.05 | I22: 747.05 | J22: 752.55 | K22: 741.55 | L22: 728.05 | M22: 47.52601
A23: 13 | B23: ADANITRANS | C23: 2036.4 | D23: 2014.88 | E23: 1976.82 | F23: 1917.23 | G23: 1879.17 | H23: 2074.47 | I23: 2112.53 | J23: 2172.12 | K23: 2052.95 | L23: 1955.3 | M23: 3.01717
A24: 14 | B24: ADVENZYMES | C24: 311.85 | D24: 312.90 | E24: 309.10 | F24: 306.35 | G24: 302.55 | H24: 315.65 | I24: 319.45 | J24: 322.20 | K24: 316.7 | L24: 310.15 | M24: 1.17497
A25: 15 | B25: AEGISCHEM | C25: 213.25 | D25: 212.45 | E25: 207.50 | F25: 201.75 | G25: 196.80 | H25: 218.20 | I25: 223.15 | J25: 228.90 | K25: 217.4 | L25: 206.7 | M25: 5.23123
A26: 16 | B26: AFFLE | C26: 1262.2 | D26: 1271.55 | E26: 1246.65 | F26: 1231.10 | G26: 1206.20 | H26: 1287.10 | I26: 1312.00 | J26: 1327.55 | K26: 1296.45 | L26: 1256 | M26: 3.299
A27: 17 | B27: AIAENG | C27: 1883.5 | D27: 1875.15 | E27: 1845.50 | F27: 1807.50 | G27: 1777.85 | H27: 1913.15 | I27: 1942.80 | J27: 1980.80 | K27: 1904.8 | L27: 1837.15 | M27: 1.17775
A28: 18 | B28: AJANTPHARM | C28: 2058.85 | D28: 2063.37 | E28: 2046.73 | F28: 2034.62 | G28: 2017.98 | H28: 2075.48 | I28: 2092.12 | J28: 2104.23 | K28: 2080 | L28: 2051.25 | M28: 0.21692
A29: 19 | B29: ALEMBICLTD | C29: 98.05 | D29: 98.02 | E29: 96.88 | F29: 95.72 | G29: 94.58 | H29: 99.18 | I29: 100.32 | J29: 101.48 | K29: 99.15 | L29: 96.85 | M29: 2.31566
A30: 20 | B30: ALKEM | C30: 3500.55 | D30: 3508.83 | E30: 3481.72 | F30: 3462.88 | G30: 3435.77 | H30: 3527.67 | I30: 3554.78 | J30: 3573.62 | K30: 3535.95 | L30: 3490 | M30: 0.14214
A31: 21 | B31: ALKYLAMINE | C31: 3142.45 | D31: 3147.55 | E31: 3097.10 | F31: 3051.75 | G31: 3001.30 | H31: 3192.90 | I31: 3243.35 | J31: 3288.70 | K31: 3198 | L31: 3102.2 | M31: 0.59408
A32: 22 | B32: ALOKINDS | C32: 29.5 | D32: 28.87 | E32: 27.93 | F32: 26.37 | G32: 25.43 | H32: 30.43 | I32: 31.37 | J32: 32.93 | K32: 29.8 | L32: 27.3 | M32: 346.03651
A33: 23 | B33: AMARAJABAT | C33: 620.25 | D33: 620.70 | E33: 616.15 | F33: 612.05 | G33: 607.50 | H33: 624.80 | I33: 629.35 | J33: 633.45 | K33: 625.25 | L33: 616.6 | M33: 4.01286
A34: 24 | B34: AMBER | C34: 3489.45 | D34: 3514.48 | E34: 3414.97 | F34: 3340.48 | G34: 3240.97 | H34: 3588.97 | I34: 3688.48 | J34: 3762.97 | K34: 3614 | L34: 3440 | M34: 0.91729
A35: 25 | B35: AMBUJACEM | C35: 374.85 | D35: 377.55 | E35: 370.70 | F35: 366.55 | G35: 359.70 | H35: 381.70 | I35: 388.55 | J35: 392.70 | K35: 384.4 | L35: 373.4 | M35: 46.38095
A36: 26 | B36: ANGELONE | C36: 1363.5 | D36: 1357.87 | E36: 1333.28 | F36: 1303.07 | G36: 1278.48 | H36: 1388.08 | I36: 1412.67 | J36: 1442.88 | K36: 1382.45 | L36: 1327.65 | M36: 3.90501
A37: 27 | B37: ANURAS | C37: 985.1 | D37: 987.10 | E37: 978.30 | F37: 971.50 | G37: 962.70 | H37: 993.90 | I37: 1002.70 | J37: 1009.50 | K37: 995.9 | L37: 980.3 | M37: 0.61718
A38: 28 | B38: APLAPOLLO | C38: 896.25 | D38: 889.65 | E38: 875.60 | F38: 854.95 | G38: 840.90 | H38: 910.30 | I38: 924.35 | J38: 945.00 | K38: 903.7 | L38: 869 | M38: 4.131
A39: 29 | B39: APLLTD | C39: 758.45 | D39: 757.98 | E39: 743.47 | F39: 728.48 | G39: 713.97 | H39: 772.97 | I39: 787.48 | J39: 802.47 | K39: 772.5 | L39: 743 | M39: 9.49804
A40: 30 | B40: APOLLOHOSP | C40: 4590.65 | D40: 4580.58 | E40: 4538.17 | F40: 4485.68 | G40: 4443.27 | H40: 4633.07 | I40: 4675.48 | J40: 4727.97 | K40: 4623 | L40: 4528.1 | M40: 4.87802
A41: 31 | B41: APOLLOTYRE | C41: 226.65 | D41: 227.33 | E41: 225.52 | F41: 224.38 | G41: 222.57 | H41: 228.47 | I41: 230.28 | J41: 231.42 | K41: 229.15 | L41: 226.2 | M41: 16.80142
A42: 32 | B42: ASAHIINDIA | C42: 547.8 | D42: 552.95 | E42: 538.90 | F42: 530.00 | G42: 515.95 | H42: 561.85 | I42: 575.90 | J42: 584.80 | K42: 567 | L42: 544.05 | M42: 0.89564
A43: 33 | B43: ASHOKA | C43: 96.15 | D43: 96.03 | E43: 95.32 | F43: 94.48 | G43: 93.77 | H43: 96.87 | I43: 97.58 | J43: 98.42 | K43: 96.75 | L43: 95.2 | M43: 4.47999
A44: 34 | B44: ASHOKLEY | C44: 136.2 | D44: 136.75 | E44: 134.65 | F44: 133.10 | G44: 131.00 | H44: 138.30 | I44: 140.40 | J44: 141.95 | K44: 138.85 | L44: 135.2 | M44: 82.1523
A45: 35 | B45: ASIANPAINT | C45: 3238.75 | D45: 3220.92 | E45: 3193.83 | F45: 3148.92 | G45: 3121.83 | H45: 3265.83 | I45: 3292.92 | J45: 3337.83 | K45: 3248 | L45: 3176 | M45: 7.28666
A46: 36 | B46: ASTERDM | C46: 190.45 | D46: 191.13 | E46: 188.27 | F46: 186.08 | G46: 183.22 | H46: 193.32 | I46: 196.18 | J46: 198.37 | K46: 194 | L46: 188.95 | M46: 3.66508
A47: 37 | B47: ASTRAL | C47: 2122.95 | D47: 2128.70 | E47: 2097.40 | F47: 2071.85 | G47: 2040.55 | H47: 2154.25 | I47: 2185.55 | J47: 2211.10 | K47: 2160 | L47: 2103.15 | M47: 2.8813
A48: 38 | B48: ASTRAZEN | C48: 2804.7 | D48: 2822.22 | E48: 2782.48 | F48: 2760.27 | G48: 2720.53 | H48: 2844.43 | I48: 2884.17 | J48: 2906.38 | K48: 2861.95 | L48: 2800 | M48: 0.09237
A49: 39 | B49: ATGL | C49: 1810.55 | D49: 1772.43 | E49: 1714.87 | F49: 1619.18 | G49: 1561.62 | H49: 1868.12 | I49: 1925.68 | J49: 2021.37 | K49: 1830 | L49: 1676.75 | M49: 3.47972
A50: 40 | B50: ATUL | C50: 9688.7 | D50: 9693.42 | E50: 9590.33 | F50: 9491.97 | G50: 9388.88 | H50: 9791.78 | I50: 9894.87 | J50: 9993.23 | K50: 9796.5 | L50: 9595.05 | M50: 0.12909
A51: 41 | B51: AUBANK | C51: 1377.95 | D51: 1372.93 | E51: 1362.02 | F51: 1346.08 | G51: 1335.17 | H51: 1388.87 | I51: 1399.78 | J51: 1415.72 | K51: 1383.85 | L51: 1357 | M51: 7.54309
A52: 42 | B52: AUROPHARMA | C52: 684.4 | D52: 672.12 | E52: 655.28 | F52: 626.17 | G52: 609.33 | H52: 701.23 | I52: 718.07 | J52: 747.18 | K52: 688.95 | L52: 643 | M52: 82.12849
A53: 43 | B53: AVANTIFEED | C53: 600.3 | D53: 599.58 | E53: 594.17 | F53: 588.03 | G53: 582.62 | H53: 605.72 | I53: 611.13 | J53: 617.27 | K53: 605 | L53: 593.45 | M53: 0.65919
A54: 44 | B54: AXISBANK | C54: 809.8 | D54: 809.62 | E54: 803.28 | F54: 796.77 | G54: 790.43 | H54: 816.13 | I54: 822.47 | J54: 828.98 | K54: 815.95 | L54: 803.1 | M54: 128.48281
A55: 45 | B55: BAJAJ-AUTO | C55: 3569.35 | D55: 3565.52 | E55: 3549.48 | F55: 3529.62 | G55: 3513.58 | H55: 3585.38 | I55: 3601.42 | J55: 3621.28 | K55: 3581.55 | L55: 3545.65 | M55: 2.39918
A56: 46 | B56: BAJAJCON | C56: 174.95 | D56: 174.83 | E56: 172.52 | F56: 170.08 | G56: 167.77 | H56: 177.27 | I56: 179.58 | J56: 182.02 | K56: 177.15 | L56: 172.4 | M56: 6.57673
A57: 47 | B57: BAJAJELEC | C57: 1187.45 | D57: 1185.88 | E57: 1178.07 | F57: 1168.68 | G57: 1160.87 | H57: 1195.27 | I57: 1203.08 | J57: 1212.47 | K57: 1193.7 | L57: 1176.5 | M57: 0.90174
A58: 48 | B58: BAJAJFINSV | C58: 16393.6 | D58: 16325.53 | E58: 16101.07 | F58: 15808.53 | G58: 15584.07 | H58: 16618.07 | I58: 16842.53 | J58: 17135.07 | K58: 16550 | L58: 16033 | M58: 2.9977
A59: 49 | B59: BAJAJHLDNG | C59: 5215.35 | D59: 5210.60 | E59: 5162.75 | F59: 5110.15 | G59: 5062.30 | H59: 5263.20 | I59: 5311.05 | J59: 5363.65 | K59: 5258.45 | L59: 5158 | M59: 0.18628
A60: 50 | B60: BAJFINANCE | C60: 7137 | D60: 7147.33 | E60: 7054.67 | F60: 6972.33 | G60: 6879.67 | H60: 7229.67 | I60: 7322.33 | J60: 7404.67 | K60: 7240 | L60: 7065 | M60: 12.442
A61: 51 | B61: BALAMINES | C61: 3127 | D61: 3152.47 | E61: 3079.93 | F61: 3032.87 | G61: 2960.33 | H61: 3199.53 | I61: 3272.07 | J61: 3319.13 | K61: 3225 | L61: 3105.4 | M61: 0.97436
A62: 52 | B62: BALKRISIND | C62: 2271.35 | D62: 2276.58 | E62: 2243.27 | F62: 2215.18 | G62: 2181.87 | H62: 2304.67 | I62: 2337.98 | J62: 2366.07 | K62: 2309.9 | L62: 2248.5 | M62: 1.40576
A63: 53 | B63: BALRAMCHIN | C63: 440.8 | D63: 442.83 | E63: 436.97 | F63: 433.13 | G63: 427.27 | H63: 446.67 | I63: 452.53 | J63: 456.37 | K63: 448.7 | L63: 439 | M63: 17.63533
A64: 54 | B64: BANDHANBNK | C64: 321.45 | D64: 320.90 | E64: 317.80 | F64: 314.15 | G64: 311.05 | H64: 324.55 | I64: 327.65 | J64: 331.30 | K64: 324 | L64: 317.25 | M64: 41.07513
A65: 55 | B65: BANKBARODA | C65: 114.7 | D65: 114.90 | E65: 113.40 | F65: 112.10 | G65: 110.60 | H65: 116.20 | I65: 117.70 | J65: 119.00 | K65: 116.4 | L65: 113.6 | M65: 401.78477
A66: 56 | B66: BANKINDIA | C66: 56.25 | D66: 56.65 | E66: 55.60 | F66: 54.95 | G66: 53.90 | H66: 57.30 | I66: 58.35 | J66: 59.00 | K66: 57.7 | L66: 56 | M66: 68.21612
A67: 57 | B67: BASF | C67: 2858.25 | D67: 2872.42 | E67: 2802.83 | F67: 2747.42 | G67: 2677.83 | H67: 2927.83 | I67: 2997.42 | J67: 3052.83 | K67: 2942 | L67: 2817 | M67: 0.89322
A68: 58 | B68: BATAINDIA | C68: 1900.8 | D68: 1903.62 | E68: 1889.23 | F68: 1877.67 | G68: 1863.28 | H68: 1915.18 | I68: 1929.57 | J68: 1941.13 | K68: 1918 | L68: 1892.05 | M68: 5.00272
A69: 59 | B69: BAYERCROP | C69: 4609.5 | D69: 4633.50 | E69: 4567.00 | F69: 4524.50 | G69: 4458.00 | H69: 4676.00 | I69: 4742.50 | J69: 4785.00 | K69: 4700 | L69: 4591 | M69: 0.7473
A70: 60 | B70: BBTC | C70: 1072.25 | D70: 1069.07 | E70: 1060.63 | F70: 1049.02 | G70: 1040.58 | H70: 1080.68 | I70: 1089.12 | J70: 1100.73 | K70: 1077.5 | L70: 1057.45 | M70: 0.26541
A71: 61 | B71: BDL | C71: 464.05 | D71: 467.08 | E71: 457.97 | F71: 451.88 | G71: 442.77 | H71: 473.17 | I71: 482.28 | J71: 488.37 | K71: 476.2 | L71: 461 | M71: 2.39475
A72: 62 | B72: BEL | C72: 202.8 | D72: 202.68 | E72: 200.62 | F72: 198.43 | G72: 196.37 | H72: 204.87 | I72: 206.93 | J72: 209.12 | K72: 204.75 | L72: 200.5 | M72: 40.34747
A73: 63 | B73: BEML | C73: 1860.75 | D73: 1874.32 | E73: 1823.63 | F73: 1786.52 | G73: 1735.83 | H73: 1911.43 | I73: 1962.12 | J73: 1999.23 | K73: 1925 | L73: 1837.2 | M73: 7.69734
A74: 64 | B74: BERGEPAINT | C74: 726.75 | D74: 726.03 | E74: 714.32 | F74: 701.88 | G74: 690.17 | H74: 738.47 | I74: 750.18 | J74: 762.62 | K74: 737.75 | L74: 713.6 | M74: 8.73044
A75: 65 | B75: BHARATFORG | C75: 729.9 | D75: 736.35 | E75: 705.55 | F75: 681.20 | G75: 650.40 | H75: 760.70 | I75: 791.50 | J75: 815.85 | K75: 767.15 | L75: 712 | M75: 47.38129
A76: 66 | B76: BHARATRAS | C76: 13094.65 | D76: 13092.22 | E76: 12912.43 | F76: 12730.22 | G76: 12550.43 | H76: 13274.43 | I76: 13454.22 | J76: 13636.43 | K76: 13272 | L76: 12910 | M76: 0.02634
A77: 67 | B77: BHARTIARTL | C77: 724.05 | D77: 719.87 | E77: 712.78 | F77: 701.52 | G77: 694.43 | H77: 731.13 | I77: 738.22 | J77: 749.48 | K77: 726.95 | L77: 708.6 | M77: 60.74014
A78: 68 | B78: BHEL | C78: 57.05 | D78: 56.70 | E78: 55.95 | F78: 54.85 | G78: 54.10 | H78: 57.80 | I78: 58.55 | J78: 59.65 | K78: 57.45 | L78: 55.6 | M78: 194.9866
A79: 69 | B79: BIOCON | C79: 403.7 | D79: 404.32 | E79: 400.63 | F79: 397.57 | G79: 393.88 | H79: 407.38 | I79: 411.07 | J79: 414.13 | K79: 408 | L79: 401.25 | M79: 15.56043
A80: 70 | B80: BIRLACORPN | C80: 1276.4 | D80: 1284.55 | E80: 1251.70 | F80: 1227.00 | G80: 1194.15 | H80: 1309.25 | I80: 1342.10 | J80: 1366.80 | K80: 1317.4 | L80: 1259.85 | M80: 0.89019
A81: 71 | B81: BLUEDART | C81: 6607.95 | D81: 6647.18 | E81: 6535.42 | F81: 6462.88 | G81: 6351.12 | H81: 6719.72 | I81: 6831.48 | J81: 6904.02 | K81: 6758.95 | L81: 6574.65 | M81: 0.07831
A82: 72 | B82: BLUESTARCO | C82: 1044.4 | D82: 1038.97 | E82: 1030.43 | F82: 1016.47 | G82: 1007.93 | H82: 1052.93 | I82: 1061.47 | J82: 1075.43 | K82: 1047.5 | L82: 1025 | M82: 0.46241
A83: 73 | B83: BOSCHLTD | C83: 16634.85 | D83: 16465.80 | E83: 16206.65 | F83: 15778.45 | G83: 15519.30 | H83: 16894.00 | I83: 17153.15 | J83: 17581.35 | K83: 16724.95 | L83: 16037.6 | M83: 0.33726
A84: 74 | B84: BPCL | C84: 369.65 | D84: 370.55 | E84: 367.60 | F84: 365.55 | G84: 362.60 | H84: 372.60 | I84: 375.55 | J84: 377.60 | K84: 373.5 | L84: 368.5 | M84: 61.41529
A85: 75 | B85: BRIGADE | C85: 508.1 | D85: 503.70 | E85: 494.40 | F85: 480.70 | G85: 471.40 | H85: 517.40 | I85: 526.70 | J85: 540.40 | K85: 513 | L85: 490 | M85: 3.83972
A86: 76 | B86: BRITANNIA | C86: 3534.55 | D86: 3521.13 | E86: 3498.42 | F86: 3462.28 | G86: 3439.57 | H86: 3557.27 | I86: 3579.98 | J86: 3616.12 | K86: 3543.85 | L86: 3485 | M86: 1.72088
A87: 77 | B87: BSE | C87: 2279.1 | D87: 2284.72 | E87: 2244.43 | F87: 2209.77 | G87: 2169.48 | H87: 2319.38 | I87: 2359.67 | J87: 2394.33 | K87: 2325 | L87: 2250.05 | M87: 25.36788
A88: 78 | B88: BSOFT | C88: 463.05 | D88: 461.65 | E88: 457.40 | F88: 451.75 | G88: 447.50 | H88: 467.30 | I88: 471.55 | J88: 477.20 | K88: 465.9 | L88: 456 | M88: 20.75464
A89: 79 | B89: BURGERKING | C89: 136.5 | D89: 136.78 | E89: 135.17 | F89: 133.83 | G89: 132.22 | H89: 138.12 | I89: 139.73 | J89: 141.07 | K89: 138.4 | L89: 135.45 | M89: 6.84908
A90: 80 | B90: CADILAHC | C90: 401.3 | D90: 403.30 | E90: 398.00 | F90: 394.70 | G90: 389.40 | H90: 406.60 | I90: 411.90 | J90: 415.20 | K90: 408.6 | L90: 400 | M90: 16.45393
A91: 81 | B91: CAMS | C91: 2598.35 | D91: 2628.77 | E91: 2549.58 | F91: 2500.82 | G91: 2421.63 | H91: 2677.53 | I91: 2756.72 | J91: 2805.48 | K91: 2707.95 | L91: 2580 | M91: 4.33245
A92: 82 | B92: CANBK | C92: 258.8 | D92: 259.50 | E92: 256.10 | F92: 253.40 | G92: 250.00 | H92: 262.20 | I92: 265.60 | J92: 268.30 | K92: 262.9 | L92: 256.8 | M92: 88.41159
A93: 83 | B93: CANFINHOME | C93: 640.55 | D93: 640.42 | E93: 627.43 | F93: 614.32 | G93: 601.33 | H93: 653.53 | I93: 666.52 | J93: 679.63 | K93: 653.4 | L93: 627.3 | M93: 5.42867
A94: 84 | B94: CAPLIPOINT | C94: 799.4 | D94: 794.62 | E94: 783.83 | F94: 768.27 | G94: 757.48 | H94: 810.18 | I94: 820.97 | J94: 836.53 | K94: 805.4 | L94: 779.05 | M94: 0.68059
A95: 85 | B95: CARBORUNIV | C95: 871.2 | D95: 867.62 | E95: 854.58 | F95: 837.97 | G95: 824.93 | H95: 884.23 | I95: 897.27 | J95: 913.88 | K95: 880.65 | L95: 851 | M95: 1.77341
A96: 86 | B96: CASTROLIND | C96: 120.1 | D96: 121.02 | E96: 119.08 | F96: 118.07 | G96: 116.13 | H96: 122.03 | I96: 123.97 | J96: 124.98 | K96: 122.95 | L96: 120 | M96: 13.76217
A97: 87 | B97: CCL | C97: 477.15 | D97: 481.42 | E97: 466.03 | F97: 454.92 | G97: 439.53 | H97: 492.53 | I97: 507.92 | J97: 519.03 | K97: 496.8 | L97: 470.3 | M97: 3.40355
A98: 88 | B98: CDSL | C98: 1522.8 | D98: 1524.35 | E98: 1510.70 | F98: 1498.60 | G98: 1484.95 | H98: 1536.45 | I98: 1550.10 | J98: 1562.20 | K98: 1538 | L98: 1512.25 | M98: 4.86801
A99: 89 | B99: CEATLTD | C99: 1064.25 | D99: 1070.53 | E99: 1053.72 | F99: 1043.18 | G99: 1026.37 | H99: 1081.07 | I99: 1097.88 | J99: 1108.42 | K99: 1087.35 | L99: 1060 | M99: 0.43493
A100: 90 | B100: CENTRALBK | C100: 21.15 | D100: 21.25 | E100: 21.00 | F100: 20.85 | G100: 20.60 | H100: 21.40 | I100: 21.65 | J100: 21.80 | K100: 21.5 | L100: 21.1 | M100: 26.96555
A101: 91 | B101: CENTURYPLY | C101: 636.4 | D101: 638.33 | E101: 628.67 | F101: 620.93 | G101: 611.27 | H101: 646.07 | I101: 655.73 | J101: 663.47 | K101: 648 | L101: 630.6 | M101: 0.83347
A102: 92 | B102: CENTURYTEX | C102: 867.45 | D102: 867.85 | E102: 854.60 | F102: 841.75 | G102: 828.50 | H102: 880.70 | I102: 893.95 | J102: 906.80 | K102: 881.1 | L102: 855 | M102: 2.62813
A103: 93 | B103: CERA | C103: 4488.45 | D103: 4512.53 | E103: 4431.12 | F103: 4373.78 | G103: 4292.37 | H103: 4569.87 | I103: 4651.28 | J103: 4708.62 | K103: 4593.95 | L103: 4455.2 | M103: 0.05804
A104: 94 | B104: CESC | C104: 83.7 | D104: 84.10 | E104: 83.10 | F104: 82.50 | G104: 81.50 | H104: 84.70 | I104: 85.70 | J104: 86.30 | K104: 85.1 | L104: 83.5 | M104: 14.8773
A105: 95 | B105: CGCL | C105: 576.9 | D105: 579.50 | E105: 572.40 | F105: 567.90 | G105: 560.80 | H105: 584.00 | I105: 591.10 | J105: 595.60 | K105: 586.6 | L105: 575 | M105: 0.25525
A106: 96 | B106: CGPOWER | C106: 172.8 | D106: 172.93 | E106: 170.72 | F106: 168.63 | G106: 166.42 | H106: 175.02 | I106: 177.23 | J106: 179.32 | K106: 175.15 | L106: 170.85 | M106: 9.04046
A107: 97 | B107: CHALET | C107: 254.05 | D107: 255.73 | E107: 250.27 | F107: 246.48 | G107: 241.02 | H107: 259.52 | I107: 264.98 | J107: 268.77 | K107: 261.2 | L107: 251.95 | M107: 1.50582
A108: 98 | B108: CHAMBLFERT | C108: 407.45 | D108: 406.32 | E108: 403.23 | F108: 399.02 | G108: 395.93 | H108: 410.53 | I108: 413.62 | J108: 417.83 | K108: 409.4 | L108: 402.1 | M108: 12.49509
A109: 99 | B109: CHOLAFIN | C109: 690.75 | D109: 687.57 | E109: 676.78 | F109: 662.82 | G109: 652.03 | H109: 701.53 | I109: 712.32 | J109: 726.28 | K109: 698.35 | L109: 673.6 | M109: 40.68283
A110: 100 | B110: CHOLAHLDNG | C110: 679.95 | D110: 683.90 | E110: 672.90 | F110: 665.85 | G110: 654.85 | H110: 690.95 | I110: 701.95 | J110: 709.00 | K110: 694.9 | L110: 676.85 | M110: 0.36377
A111: 101 | B111: CIPLA | C111: 975.05 | D111: 971.80 | E111: 966.25 | F111: 957.45 | G111: 951.90 | H111: 980.60 | I111: 986.15 | J111: 994.95 | K111: 977.35 | L111: 963 | M111: 20.44733
A112: 102 | B112: COALINDIA | C112: 168.05 | D112: 167.78 | E112: 165.27 | F112: 162.48 | G112: 159.97 | H112: 170.57 | I112: 173.08 | J112: 175.87 | K112: 170.3 | L112: 165 | M112: 177.24098
A113: 103 | B113: COCHINSHIP | C113: 340.85 | D113: 340.88 | E113: 339.12 | F113: 337.38 | G113: 335.62 | H113: 342.62 | I113: 344.38 | J113: 346.12 | K113: 342.65 | L113: 339.15 | M113: 0.63693
A114: 104 | B114: COFORGE | C114: 4729.55 | D114: 4754.07 | E114: 4688.98 | F114: 4648.42 | G114: 4583.33 | H114: 4794.63 | I114: 4859.72 | J114: 4900.28 | K114: 4819.15 | L114: 4713.5 | M114: 1.88286
A115: 105 | B115: COLPAL | C115: 1458.85 | D115: 1458.60 | E115: 1448.25 | F115: 1437.65 | G115: 1427.30 | H115: 1469.20 | I115: 1479.55 | J115: 1490.15 | K115: 1468.95 | L115: 1448 | M115: 2.38551
A116: 106 | B116: CONCOR | C116: 621.2 | D116: 621.88 | E116: 614.42 | F116: 607.63 | G116: 600.17 | H116: 628.67 | I116: 636.13 | J116: 642.92 | K116: 629.35 | L116: 615.1 | M116: 12.41177
A117: 107 | B117: COROMANDEL | C117: 807.75 | D117: 805.13 | E117: 798.92 | F117: 790.08 | G117: 783.87 | H117: 813.97 | I117: 820.18 | J117: 829.02 | K117: 811.35 | L117: 796.3 | M117: 1.40942
A118: 108 | B118: CREDITACC | C118: 759.75 | D118: 753.40 | E118: 742.35 | F118: 724.95 | G118: 713.90 | H118: 770.80 | I118: 781.85 | J118: 799.25 | K118: 764.45 | L118: 736 | M118: 2.06895
A119: 109 | B119: CRISIL | C119: 2763.3 | D119: 2754.95 | E119: 2728.35 | F119: 2693.40 | G119: 2666.80 | H119: 2789.90 | I119: 2816.50 | J119: 2851.45 | K119: 2781.55 | L119: 2720 | M119: 0.10388
A120: 110 | B120: CROMPTON | C120: 398.05 | D120: 400.50 | E120: 393.60 | F120: 389.15 | G120: 382.25 | H120: 404.95 | I120: 411.85 | J120: 416.30 | K120: 407.4 | L120: 396.05 | M120: 13.5112
A121: 111 | B121: CSBBANK | C121: 258.6 | D121: 257.20 | E121: 254.40 | F121: 250.20 | G121: 247.40 | H121: 261.40 | I121: 264.20 | J121: 268.40 | K121: 260 | L121: 253 | M121: 1.83136
A122: 112 | B122: CUB | C122: 139.9 | D122: 139.95 | E122: 138.95 | F122: 138.00 | G122: 137.00 | H122: 140.90 | I122: 141.90 | J122: 142.85 | K122: 140.95 | L122: 139 | M122: 9.17906
A123: 113 | B123: CUMMINSIND | C123: 930.2 | D123: 930.63 | E123: 919.02 | F123: 907.83 | G123: 896.22 | H123: 941.82 | I123: 953.43 | J123: 964.62 | K123: 942.25 | L123: 919.45 | M123: 7.10697
A124: 114 | B124: CYIENT | C124: 901.7 | D124: 904.98 | E124: 890.82 | F124: 879.93 | G124: 865.77 | H124: 915.87 | I124: 930.03 | J124: 940.92 | K124: 919.15 | L124: 894.1 | M124: 2.17774
A125: 115 | B125: DABUR | C125: 564.6 | D125: 565.37 | E125: 559.58 | F125: 554.57 | G125: 548.78 | H125: 570.38 | I125: 576.17 | J125: 581.18 | K125: 571.15 | L125: 560.35 | M125: 20.44201
A126: 116 | B126: DALBHARAT | C126: 1948.15 | D126: 1946.40 | E126: 1916.75 | F126: 1885.35 | G126: 1855.70 | H126: 1977.80 | I126: 2007.45 | J126: 2038.85 | K126: 1976.05 | L126: 1915 | M126: 0.84587
A127: 117 | B127: DBL | C127: 349.7 | D127: 351.50 | E127: 347.25 | F127: 344.80 | G127: 340.55 | H127: 353.95 | I127: 358.20 | J127: 360.65 | K127: 355.75 | L127: 349.05 | M127: 4.00987
A128: 118 | B128: DCBBANK | C128: 84.8 | D128: 85.07 | E128: 84.13 | F128: 83.47 | G128: 82.53 | H128: 85.73 | I128: 86.67 | J128: 87.33 | K128: 86 | L128: 84.4 | M128: 15.72001
A129: 119 | B129: DCMSHRIRAM | C129: 1148.25 | D129: 1146.93 | E129: 1122.92 | F129: 1097.58 | G129: 1073.57 | H129: 1172.27 | I129: 1196.28 | J129: 1221.62 | K129: 1170.95 | L129: 1121.6 | M129: 0.69759
A130: 120 | B130: DEEPAKNTR | C130: 2289.75 | D130: 2302.52 | E130: 2271.18 | F130: 2252.62 | G130: 2221.28 | H130: 2321.08 | I130: 2352.42 | J130: 2370.98 | K130: 2333.85 | L130: 2283.95 | M130: 3.81875
A131: 121 | B131: DELTACORP | C131: 288.25 | D131: 287.17 | E131: 284.33 | F131: 280.42 | G131: 277.58 | H131: 291.08 | I131: 293.92 | J131: 297.83 | K131: 290 | L131: 283.25 | M131: 23.92907
A132: 122 | B132: DHANI | C132: 140.95 | D132: 143.18 | E132: 137.32 | F132: 133.68 | G132: 127.82 | H132: 146.82 | I132: 152.68 | J132: 156.32 | K132: 149.05 | L132: 139.55 | M132: 82.00723
A133: 123 | B133: DHANUKA | C133: 768.25 | D133: 770.05 | E133: 760.20 | F133: 752.15 | G133: 742.30 | H133: 778.10 | I133: 787.95 | J133: 796.00 | K133: 779.9 | L133: 762 | M133: 0.10168
A134: 124 | B134: DIVISLAB | C134: 4313.75 | D134: 4325.25 | E134: 4288.55 | F134: 4263.35 | G134: 4226.65 | H134: 4350.45 | I134: 4387.15 | J134: 4412.35 | K134: 4361.95 | L134: 4300.05 | M134: 5.59595
A135: 125 | B135: DIXON | C135: 4499.55 | D135: 4495.32 | E135: 4452.63 | F135: 4405.72 | G135: 4363.03 | H135: 4542.23 | I135: 4584.92 | J135: 4631.83 | K135: 4538 | L135: 4448.4 | M135: 1.56483
A136: 126 | B136: DLF | C136: 391.15 | D136: 389.25 | E136: 383.90 | F136: 376.65 | G136: 371.30 | H136: 396.50 | I136: 401.85 | J136: 409.10 | K136: 394.6 | L136: 382 | M136: 47.47069
A137: 127 | B137: DMART | C137: 4162.7 | D137: 4115.23 | E137: 4048.47 | F137: 3934.23 | G137: 3867.47 | H137: 4229.47 | I137: 4296.23 | J137: 4410.47 | K137: 4182 | L137: 4001 | M137: 6.9925
A138: 128 | B138: DRREDDY | C138: 4370.7 | D138: 4364.38 | E138: 4340.02 | F138: 4309.33 | G138: 4284.97 | H138: 4395.07 | I138: 4419.43 | J138: 4450.12 | K138: 4388.75 | L138: 4333.7 | M138: 2.37865
A139: 129 | B139: ECLERX | C139: 2364.75 | D139: 2362.73 | E139: 2346.72 | F139: 2328.68 | G139: 2312.67 | H139: 2380.77 | I139: 2396.78 | J139: 2414.82 | K139: 2378.75 | L139: 2344.7 | M139: 0.5013
A140: 130 | B140: EDELWEISS | C140: 65.1 | D140: 65.78 | E140: 64.12 | F140: 63.13 | G140: 61.47 | H140: 66.77 | I140: 68.43 | J140: 69.42 | K140: 67.45 | L140: 64.8 | M140: 13.3056
A141: 131 | B141: EICHERMOT | C141: 2640.35 | D141: 2639.97 | E141: 2615.93 | F141: 2591.52 | G141: 2567.48 | H141: 2664.38 | I141: 2688.42 | J141: 2712.83 | K141: 2664 | L141: 2615.55 | M141: 5.58179
A142: 132 | B142: EIDPARRY | C142: 470.4 | D142: 474.93 | E142: 464.47 | F142: 458.53 | G142: 448.07 | H142: 480.87 | I142: 491.33 | J142: 497.27 | K142: 485.4 | L142: 469 | M142: 3.07898
A143: 133 | B143: EIHOTEL | C143: 136.5 | D143: 137.42 | E143: 135.13 | F143: 133.77 | G143: 131.48 | H143: 138.78 | I143: 141.07 | J143: 142.43 | K143: 139.7 | L143: 136.05 | M143: 1.78352
A144: 134 | B144: ELGIEQUIP | C144: 389.3 | D144: 389.58 | E144: 379.72 | F144: 370.13 | G144: 360.27 | H144: 399.17 | I144: 409.03 | J144: 418.62 | K144: 399.45 | L144: 380 | M144: 5.82486
A145: 135 | B145: EMAMILTD | C145: 501.3 | D145: 499.47 | E145: 494.43 | F145: 487.57 | G145: 482.53 | H145: 506.33 | I145: 511.37 | J145: 518.23 | K145: 504.5 | L145: 492.6 | M145: 1.5642
A146: 136 | B146: ENDURANCE | C146: 1466.5 | D146: 1458.12 | E146: 1432.18 | F146: 1397.87 | G146: 1371.93 | H146: 1492.43 | I146: 1518.37 | J146: 1552.68 | K146: 1484.05 | L146: 1423.8 | M146: 0.89592
A147: 137 | B147: ENGINERSIN | C147: 68.75 | D147: 68.78 | E147: 68.12 | F147: 67.48 | G147: 66.82 | H147: 69.42 | I147: 70.08 | J147: 70.72 | K147: 69.45 | L147: 68.15 | M147: 16.92356
A148: 138 | B148: EPL | C148: 179.7 | D148: 181.48 | E148: 177.27 | F148: 174.83 | G148: 170.62 | H148: 183.92 | I148: 188.13 | J148: 190.57 | K148: 185.7 | L148: 179.05 | M148: 4.36514
A149: 139 | B149: EQUITAS | C149: 117.8 | D149: 117.63 | E149: 116.37 | F149: 114.93 | G149: 113.67 | H149: 119.07 | I149: 120.33 | J149: 121.77 | K149: 118.9 | L149: 116.2 | M149: 4.95097
A150: 140 | B150: EQUITASBNK | C150: 56.75 | D150: 56.78 | E150: 55.97 | F150: 55.18 | G150: 54.37 | H150: 57.57 | I150: 58.38 | J150: 59.17 | K150: 57.6 | L150: 56 | M150: 2.0488
A151: 141 | B151: ERIS | C151: 699.45 | D151: 699.50 | E151: 695.15 | F151: 690.85 | G151: 686.50 | H151: 703.80 | I151: 708.15 | J151: 712.45 | K151: 703.85 | L151: 695.2 | M151: 0.12158
A152: 142 | B152: ESCORTS | C152: 1846.8 | D152: 1852.02 | E152: 1839.33 | F152: 1831.87 | G152: 1819.18 | H152: 1859.48 | I152: 1872.17 | J152: 1879.63 | K152: 1864.7 | L152: 1844.55 | M152: 4.11418
A153: 143 | B153: EXIDEIND | C153: 166.3 | D153: 166.58 | E153: 165.42 | F153: 164.53 | G153: 163.37 | H153: 167.47 | I153: 168.63 | J153: 169.52 | K153: 167.75 | L153: 165.7 | M153: 20.19215
A154: 144 | B154: FACT | C154: 129.95 | D154: 130.32 | E154: 128.63 | F154: 127.32 | G154: 125.63 | H154: 131.63 | I154: 133.32 | J154: 134.63 | K154: 132 | L154: 129 | M154: 1.79158
A155: 145 | B155: FDC | C155: 300.15 | D155: 302.97 | E155: 295.38 | F155: 290.62 | G155: 283.03 | H155: 307.73 | I155: 315.32 | J155: 320.08 | K155: 310.55 | L155: 298.2 | M155: 9.00474
A156: 146 | B156: FEDERALBNK | C156: 104.45 | D156: 103.45 | E156: 101.90 | F156: 99.35 | G156: 97.80 | H156: 106.00 | I156: 107.55 | J156: 110.10 | K156: 105 | L156: 100.9 | M156: 301.17303
A157: 147 | B157: FINCABLES | C157: 491.2 | D157: 493.40 | E157: 487.80 | F157: 484.40 | G157: 478.80 | H157: 496.80 | I157: 502.40 | J157: 505.80 | K157: 499 | L157: 490 | M157: 0.60188
A158: 148 | B158: FINEORG | C158: 3972.15 | D158: 3959.57 | E158: 3919.13 | F158: 3866.12 | G158: 3825.68 | H158: 4012.58 | I158: 4053.02 | J158: 4106.03 | K158: 4000 | L158: 3906.55 | M158: 0.08702
A159: 149 | B159: FINPIPE | C159: 173.2 | D159: 174.87 | E159: 170.23 | F159: 167.27 | G159: 162.63 | H159: 177.83 | I159: 182.47 | J159: 185.43 | K159: 179.5 | L159: 171.9 | M159: 6.79306
A160: 150 | B160: FLUOROCHEM | C160: 2937.6 | D160: 2912.57 | E160: 2840.13 | F160: 2742.67 | G160: 2670.23 | H160: 3010.03 | I160: 3082.47 | J160: 3179.93 | K160: 2985 | L160: 2815.1 | M160: 0.47339
A161: 151 | B161: FORTIS | C161: 261.9 | D161: 260.12 | E161: 257.03 | F161: 252.17 | G161: 249.08 | H161: 264.98 | I161: 268.07 | J161: 272.93 | K161: 263.2 | L161: 255.25 | M161: 16.76825
A162: 152 | B162: FRETAIL | C162: 47.55 | D162: 47.63 | E162: 47.27 | F162: 46.98 | G162: 46.62 | H162: 47.92 | I162: 48.28 | J162: 48.57 | K162: 48 | L162: 47.35 | M162: 12.90625
A163: 153 | B163: FSL | C163: 150.7 | D163: 149.28 | E163: 146.32 | F163: 141.93 | G163: 138.97 | H163: 153.67 | I163: 156.63 | J163: 161.02 | K163: 152.25 | L163: 144.9 | M163: 27.77079
A164: 154 | B164: GAEL | C164: 190.05 | D164: 191.55 | E164: 187.50 | F164: 184.95 | G164: 180.90 | H164: 194.10 | I164: 198.15 | J164: 200.70 | K164: 195.6 | L164: 189 | M164: 4.15863
A165: 155 | B165: GAIL | C165: 141.6 | D165: 141.80 | E165: 140.15 | F165: 138.70 | G165: 137.05 | H165: 143.25 | I165: 144.90 | J165: 146.35 | K165: 143.45 | L165: 140.35 | M165: 203.79088
A166: 156 | B166: GALAXYSURF | C166: 2956.5 | D166: 2958.80 | E166: 2907.70 | F166: 2858.90 | G166: 2807.80 | H166: 3007.60 | I166: 3058.70 | J166: 3107.50 | K166: 3009.9 | L166: 2910 | M166: 0.22986
A167: 157 | B167: GARFIBRES | C167: 3064.1 | D167: 3052.08 | E167: 3028.52 | F167: 2992.93 | G167: 2969.37 | H167: 3087.67 | I167: 3111.23 | J167: 3146.82 | K167: 3075.65 | L167: 3016.5 | M167: 0.0535
A168: 158 | B168: GESHIP | C168: 321.55 | D168: 319.67 | E168: 316.88 | F168: 312.22 | G168: 309.43 | H168: 324.33 | I168: 327.12 | J168: 331.78 | K168: 322.45 | L168: 315 | M168: 0.97526
A169: 159 | B169: GICRE | C169: 140 | D169: 140.50 | E169: 136.80 | F169: 133.60 | G169: 129.90 | H169: 143.70 | I169: 147.40 | J169: 150.60 | K169: 144.2 | L169: 137.3 | M169: 17.15753
A170: 160 | B170: GILLETTE | C170: 5089.75 | D170: 5103.25 | E170: 5071.50 | F170: 5053.25 | G170: 5021.50 | H170: 5121.50 | I170: 5153.25 | J170: 5171.50 | K170: 5135 | L170: 5085 | M170: 0.04364
A171: 161 | B171: GLAND | C171: 3454.65 | D171: 3477.88 | E171: 3406.77 | F171: 3358.88 | G171: 3287.77 | H171: 3525.77 | I171: 3596.88 | J171: 3644.77 | K171: 3549 | L171: 3430 | M171: 1.9385
A172: 162 | B172: GLAXO | C172: 1562.95 | D172: 1554.65 | E172: 1542.00 | F172: 1521.05 | G172: 1508.40 | H172: 1575.60 | I172: 1588.25 | J172: 1609.20 | K172: 1567.3 | L172: 1533.7 | M172: 0.38776
A173: 163 | B173: GLENMARK | C173: 501.45 | D173: 500.40 | E173: 495.80 | F173: 490.15 | G173: 485.55 | H173: 506.05 | I173: 510.65 | J173: 516.30 | K173: 505 | L173: 494.75 | M173: 13.29495
A174: 164 | B174: GMMPFAUDLR | C174: 4843.4 | D174: 4866.28 | E174: 4792.12 | F174: 4740.83 | G174: 4666.67 | H174: 4917.57 | I174: 4991.73 | J174: 5043.02 | K174: 4940.45 | L174: 4815 | M174: 0.2029
A175: 165 | B175: GMRINFRA | C175: 42.55 | D175: 42.93 | E175: 41.87 | F175: 41.18 | G175: 40.12 | H175: 43.62 | I175: 44.68 | J175: 45.37 | K175: 44 | L175: 42.25 | M175: 220.25673
A176: 166 | B176: GNFC | C176: 570.75 | D176: 561.75 | E176: 550.50 | F176: 530.25 | G176: 519.00 | H176: 582.00 | I176: 593.25 | J176: 613.50 | K176: 573 | L176: 541.5 | M176: 61.22332
A177: 167 | B177: GODFRYPHLP | C177: 1077.25 | D177: 1081.10 | E177: 1068.35 | F177: 1059.45 | G177: 1046.70 | H177: 1090.00 | I177: 1102.75 | J177: 1111.65 | K177: 1093.85 | L177: 1072.2 | M177: 0.11246
A178: 168 | B178: GODREJAGRO | C178: 507 | D178: 508.00 | E178: 504.00 | F178: 501.00 | G178: 497.00 | H178: 511.00 | I178: 515.00 | J178: 518.00 | K178: 512 | L178: 505 | M178: 0.41216
A179: 169 | B179: GODREJCP | C179: 853.1 | D179: 855.75 | E179: 846.55 | F179: 840.00 | G179: 830.80 | H179: 862.30 | I179: 871.50 | J179: 878.05 | K179: 864.95 | L179: 849.2 | M179: 7.11095
A180: 170 | B180: GODREJIND | C180: 582.9 | D180: 584.60 | E180: 576.35 | F180: 569.80 | G180: 561.55 | H180: 591.15 | I180: 599.40 | J180: 605.95 | K180: 592.85 | L180: 578.05 | M180: 0.90867
A181: 171 | B181: GODREJPROP | C181: 1576.7 | D181: 1567.90 | E181: 1550.80 | F181: 1524.90 | G181: 1507.80 | H181: 1593.80 | I181: 1610.90 | J181: 1636.80 | K181: 1585 | L181: 1542 | M181: 11.50733
A182: 172 | B182: GPPL | C182: 95.5 | D182: 95.98 | E182: 94.57 | F182: 93.63 | G182: 92.22 | H182: 96.92 | I182: 98.33 | J182: 99.27 | K182: 97.4 | L182: 95.05 | M182: 8.68905
A183: 173 | B183: GRANULES | C183: 313.4 | D183: 313.07 | E183: 310.78 | F183: 308.17 | G183: 305.88 | H183: 315.68 | I183: 317.97 | J183: 320.58 | K183: 315.35 | L183: 310.45 | M183: 5.46014
A184: 174 | B184: GRAPHITE | C184: 529.5 | D184: 531.93 | E184: 520.87 | F184: 512.23 | G184: 501.17 | H184: 540.57 | I184: 551.63 | J184: 560.27 | K184: 543 | L184: 523.3 | M184: 13.06449
A185: 175 | B185: GRASIM | C185: 1768.55 | D185: 1755.48 | E185: 1739.67 | F185: 1710.78 | G185: 1694.97 | H185: 1784.37 | I185: 1800.18 | J185: 1829.07 | K185: 1771.3 | L185: 1726.6 | M185: 6.22393
A186: 176 | B186: GREAVESCOT | C186: 200 | D186: 197.65 | E186: 193.45 | F186: 186.90 | G186: 182.70 | H186: 204.20 | I186: 208.40 | J186: 214.95 | K186: 201.85 | L186: 191.1 | M186: 36.1733
A187: 177 | B187: GRINDWELL | C187: 1728.2 | D187: 1737.37 | E187: 1710.83 | F187: 1693.47 | G187: 1666.93 | H187: 1754.73 | I187: 1781.27 | J187: 1798.63 | K187: 1763.9 | L187: 1720 | M187: 0.32124
A188: 178 | B188: GSFC | C188: 128.5 | D188: 128.93 | E188: 127.07 | F188: 125.63 | G188: 123.77 | H188: 130.37 | I188: 132.23 | J188: 133.67 | K188: 130.8 | L188: 127.5 | M188: 20.30287
A189: 179 | B189: GSPL | C189: 299.25 | D189: 301.22 | E189: 295.68 | F189: 292.12 | G189: 286.58 | H189: 304.78 | I189: 310.32 | J189: 313.88 | K189: 306.75 | L189: 297.65 | M189: 4.88662
A190: 180 | B190: GUJALKALI | C190: 778.6 | D190: 771.83 | E190: 751.67 | F190: 724.73 | G190: 704.57 | H190: 798.77 | I190: 818.93 | J190: 845.87 | K190: 792 | L190: 744.9 | M190: 10.87019
A191: 181 | B191: GUJGASLTD | C191: 647.65 | D191: 649.43 | E191: 639.77 | F191: 631.88 | G191: 622.22 | H191: 657.32 | I191: 666.98 | J191: 674.87 | K191: 659.1 | L191: 641.55 | M191: 12.78455
A192: 182 | B192: HAL | C192: 1397.85 | D192: 1406.28 | E192: 1374.57 | F192: 1351.28 | G192: 1319.57 | H192: 1429.57 | I192: 1461.28 | J192: 1484.57 | K192: 1438 | L192: 1383 | M192: 9.9682
A193: 183 | B193: HAPPSTMNDS | C193: 1082.3 | D193: 1083.25 | E193: 1062.05 | F193: 1041.80 | G193: 1020.60 | H193: 1103.50 | I193: 1124.70 | J193: 1144.95 | K193: 1104.45 | L193: 1063 | M193: 2.8041
A194: 184 | B194: HATHWAY | C194: 21.95 | D194: 22.17 | E194: 21.68 | F194: 21.42 | G194: 20.93 | H194: 22.43 | I194: 22.92 | J194: 23.18 | K194: 22.65 | L194: 21.9 | M194: 138.46836
A195: 185 | B195: HATSUN | C195: 1151.5 | D195: 1149.82 | E195: 1134.68 | F195: 1117.87 | G195: 1102.73 | H195: 1166.63 | I195: 1181.77 | J195: 1198.58 | K195: 1164.95 | L195: 1133 | M195: 0.24858
A196: 186 | B196: HAVELLS | C196: 1219.3 | D196: 1216.03 | E196: 1203.07 | F196: 1186.83 | G196: 1173.87 | H196: 1232.27 | I196: 1245.23 | J196: 1261.47 | K196: 1229 | L196: 1199.8 | M196: 7.04743
A197: 187 | B197: HCLTECH | C197: 1190.35 | D197: 1185.45 | E197: 1179.00 | F197: 1167.65 | G197: 1161.20 | H197: 1196.80 | I197: 1203.25 | J197: 1214.60 | K197: 1191.9 | L197: 1174.1 | M197: 20.53245
A198: 188 | B198: HDFC | C198: 2476.55 | D198: 2474.62 | E198: 2443.53 | F198: 2410.52 | G198: 2379.43 | H198: 2507.63 | I198: 2538.72 | J198: 2571.73 | K198: 2505.7 | L198: 2441.6 | M198: 63.46218
A199: 189 | B199: HDFCAMC | C199: 2220.9 | D199: 2223.20 | E199: 2201.40 | F199: 2181.90 | G199: 2160.10 | H199: 2242.70 | I199: 2264.50 | J199: 2284.00 | K199: 2245 | L199: 2203.7 | M199: 2.04512
A200: 190 | B200: HDFCBANK | C200: 1525.1 | D200: 1520.75 | E200: 1506.00 | F200: 1486.90 | G200: 1472.15 | H200: 1539.85 | I200: 1554.60 | J200: 1573.70 | K200: 1535.5 | L200: 1501.65 | M200: 71.57265
A201: 191 | B201: HDFCLIFE | C201: 606.25 | D201: 602.73 | E201: 593.97 | F201: 581.68 | G201: 572.92 | H201: 615.02 | I201: 623.78 | J201: 636.07 | K201: 611.5 | L201: 590.45 | M201: 62.31536
A202: 192 | B202: HEG | C202: 1512.2 | D202: 1528.00 | E202: 1491.05 | F202: 1469.90 | G202: 1432.95 | H202: 1549.15 | I202: 1586.10 | J202: 1607.25 | K202: 1564.95 | L202: 1506.85 | M202: 4.55234
A203: 193 | B203: HEIDELBERG | C203: 214.8 | D203: 214.28 | E203: 212.67 | F203: 210.53 | G203: 208.92 | H203: 216.42 | I203: 218.03 | J203: 220.17 | K203: 215.9 | L203: 212.15 | M203: 0.90902
A204: 194 | B204: HEMIPROP | C204: 128.85 | D204: 129.28 | E204: 127.67 | F204: 126.48 | G204: 124.87 | H204: 130.47 | I204: 132.08 | J204: 133.27 | K204: 130.9 | L204: 128.1 | M204: 7.04457
A205: 195 | B205: HEROMOTOCO | C205: 2734.1 | D205: 2728.72 | E205: 2706.43 | F205: 2678.77 | G205: 2656.48 | H205: 2756.38 | I205: 2778.67 | J205: 2806.33 | K205: 2751 | L205: 2701.05 | M205: 4.48648
A206: 196 | B206: HFCL | C206: 83 | D206: 82.52 | E206: 80.13 | F206: 77.27 | G206: 74.88 | H206: 85.38 | I206: 87.77 | J206: 90.63 | K206: 84.9 | L206: 79.65 | M206: 156.64502
... 320 more rows

Sheet Bulk Deals
E6: Back To Main Page
A7: Subject : | B7: BULK DEAL | D7: =Main!B10 -> 2022-02-11
A9: Date | B9: Scrip code | C9: Scrip Name | D9: Client Name | E9: Buy / Sell | F9: Quantity Traded | G9: Trade Price / Wt.Avg.trade price | H9: Exchange
A10: 2022-02-10 | B10: 539621 | C10: BCLENTERPR | D10: SANDHYA SINGH GAHLOUT | E10: BUY | F10: 30,000 | G10: 55.5 | H10: BSE
A11: 2022-02-10 | B11: 539621 | C11: BCLENTERPR | D11: SANDHIL CONSULTANCY SERVICES PRIVATE LIMITED . | E11: SELL | F11: 32,500 | G11: 61.3 | H11: BSE
A12: 2022-02-10 | B12: 543209 | C12: BILLWIN | D12: ZYANA STOCKS AND COMMODITIES | E12: BUY | F12: 21,000 | G12: 29.26 | H12: BSE
A13: 2022-02-10 | B13: 543209 | C13: BILLWIN | D13: SHERWOOD SECURITIES PVT LTD | E13: BUY | F13: 3,000 | G13: 27.25 | H13: BSE
A14: 2022-02-10 | B14: 543209 | C14: BILLWIN | D14: SHERWOOD SECURITIES PVT LTD | E14: SELL | F14: 12,000 | G14: 28.68 | H14: BSE
A15: 2022-02-10 | B15: 543172 | C15: COSPOWER | D15: JAGADEESHATUKURI | E15: BUY | F15: 8,000 | G15: 56 | H15: BSE
A16: 2022-02-10 | B16: 539405 | C16: DITCO | D16: SANTOSH JINDAL | E16: SELL | F16: 20,000 | G16: 19.4 | H16: BSE
A17: 2022-02-10 | B17: 539405 | C17: DITCO | D17: SAN FINANCIAL SERVICES LLP | E17: SELL | F17: 20,000 | G17: 19.4 | H17: BSE
A18: 2022-02-10 | B18: 539405 | C18: DITCO | D18: MANISHA VIVEK MEHTA | E18: BUY | F18: 34,403 | G18: 19.4 | H18: BSE
A19: 2022-02-10 | B19: 523277 | C19: GVFILM | D19: R SATHIAMURTHI | E19: BUY | F19: 15,600,754 | G19: 1.25 | H19: BSE
A20: 2022-02-10 | B20: 523277 | C20: GVFILM | D20: ALPHA LEON ENTERPRISES LLP | E20: SELL | F20: 6,500,000 | G20: 1.23 | H20: BSE
A21: 2022-02-10 | B21: 542332 | C21: HIKLASS | D21: KAPIL TANEJA | E21: SELL | F21: 37,500 | G21: 4.64 | H21: BSE
A22: 2022-02-10 | B22: 542332 | C22: HIKLASS | D22: ANJU AKSHAY SHAH | E22: BUY | F22: 40,000 | G22: 4.64 | H22: BSE
A23: 2022-02-10 | B23: 533506 | C23: INVENTURE | D23: ANKITA VISHAL SHAH | E23: BUY | F23: 75,011 | G23: 4.28 | H23: BSE
A24: 2022-02-10 | B24: 533506 | C24: INVENTURE | D24: ANKITA VISHAL SHAH | E24: SELL | F24: 9,675,011 | G24: 4.21 | H24: BSE
A25: 2022-02-10 | B25: 542924 | C25: JANUSCORP | D25: MANISH RAMESHBHAI PATEL | E25: BUY | F25: 57,000 | G25: 20.88 | H25: BSE
A26: 2022-02-10 | B26: 542924 | C26: JANUSCORP | D26: MANISH RAMESHBHAI PATEL | E26: SELL | F26: 49,500 | G26: 20.83 | H26: BSE
A27: 2022-02-10 | B27: 542924 | C27: JANUSCORP | D27: BANEESH DHAR | E27: SELL | F27: 102,000 | G27: 20.95 | H27: BSE
A28: 2022-02-10 | B28: 542924 | C28: JANUSCORP | D28: RIPALBEN DHARMIKKUMAR PARIKH | E28: BUY | F28: 30,000 | G28: 20.82 | H28: BSE
A29: 2022-02-10 | B29: 539910 | C29: KOCL | D29: HEMANT AGRAWAL | E29: BUY | F29: 110,000 | G29: 9.51 | H29: BSE
A30: 2022-02-10 | B30: 539910 | C30: KOCL | D30: PRATIBHA | E30: BUY | F30: 250,000 | G30: 9.51 | H30: BSE
A31: 2022-02-10 | B31: 539910 | C31: KOCL | D31: INDIGO TECH IND LIMITED | E31: SELL | F31: 470,000 | G31: 9.51 | H31: BSE
A32: 2022-02-10 | B32: 539894 | C32: MADHAVIPL | D32: BHARTIA BACHAT LTD | E32: BUY | F32: 1,493,902 | G32: 7.16 | H32: BSE
A33: 2022-02-10 | B33: 511000 | C33: MADHUSE | D33: AMARJIT KAUR | E33: SELL | F33: 50,000 | G33: 5.97 | H33: BSE
A34: 2022-02-10 | B34: 541352 | C34: MEGASTAR | D34: KOMALAY TECHTRONICS PRIVATE LIMITED | E34: BUY | F34: 104,000 | G34: 89.48 | H34: BSE
A35: 2022-02-10 | B35: 539767 | C35: MNIL | D35: MENIKA. | E35: BUY | F35: 14,999 | G35: 13.33 | H35: BSE
A36: 2022-02-10 | B36: 539767 | C36: MNIL | D36: KABIR SHRAN DAGAR | E36: BUY | F36: 96,404 | G36: 13.33 | H36: BSE
A37: 2022-02-10 | B37: 539767 | C37: MNIL | D37: MENIKA. | E37: SELL | F37: 29,562 | G37: 13 | H37: BSE
A38: 2022-02-10 | B38: 539767 | C38: MNIL | D38: KABIR SHRAN DAGAR | E38: SELL | F38: 115,500 | G38: 13.05 | H38: BSE
A39: 2022-02-10 | B39: 539767 | C39: MNIL | D39: SITA RAM | E39: BUY | F39: 118,010 | G39: 13.06 | H39: BSE
A40: 2022-02-10 | B40: 539767 | C40: MNIL | D40: SEEMA | E40: SELL | F40: 97,739 | G40: 13.25 | H40: BSE
A41: 2022-02-10 | B41: 539767 | C41: MNIL | D41: ANSHUL AGGARWAL | E41: BUY | F41: 50,000 | G41: 13 | H41: BSE
A42: 2022-02-10 | B42: 539767 | C42: MNIL | D42: CHANDER PRAKASH TALWANI | E42: BUY | F42: 50,000 | G42: 13 | H42: BSE
A43: 2022-02-10 | B43: 539767 | C43: MNIL | D43: REKHA DAGAR | E43: BUY | F43: 299 | G43: 13 | H43: BSE
A44: 2022-02-10 | B44: 539767 | C44: MNIL | D44: REKHA DAGAR | E44: SELL | F44: 35,350 | G44: 13 | H44: BSE
A45: 2022-02-10 | B45: 530557 | C45: NCLRESE | D45: TOPGAIN FINANCE PRIVATE LIMITED | E45: BUY | F45: 1,154,926 | G45: 1.82 | H45: BSE
A46: 2022-02-10 | B46: 530557 | C46: NCLRESE | D46: TOPGAIN FINANCE PRIVATE LIMITED | E46: SELL | F46: 3,454,926 | G46: 1.82 | H46: BSE
A47: 2022-02-10 | B47: 514330 | C47: ONEGLOBAL | D47: IMRAN MUSHTAK SHAIKH | E47: SELL | F47: 37,690 | G47: 20.7 | H47: BSE
A48: 2022-02-10 | B48: 540727 | C48: POOJA | D48: EPITOME TRADING AND INVESTMENTS | E48: BUY | F48: 303,533 | G48: 66.07 | H48: BSE
A49: 2022-02-10 | B49: 540727 | C49: POOJA | D49: EPITOME TRADING AND INVESTMENTS | E49: SELL | F49: 52,139 | G49: 64.07 | H49: BSE
A50: 2022-02-10 | B50: 540727 | C50: POOJA | D50: BHAWSINGHKA COMMODITY BROKING PRIVATE LIMITED | E50: BUY | F50: 35,950 | G50: 63.99 | H50: BSE
A51: 2022-02-10 | B51: 540727 | C51: POOJA | D51: BHAWSINGHKA COMMODITY BROKING PRIVATE LIMITED | E51: SELL | F51: 171,627 | G51: 66.15 | H51: BSE
A52: 2022-02-10 | B52: 543460 | C52: QRIL | D52: SHRENI SHARES PRIVATE LIMITED | E52: BUY | F52: 24,000 | G52: 53.57 | H52: BSE
A53: 2022-02-10 | B53: 543460 | C53: QRIL | D53: SHRENI SHARES PRIVATE LIMITED | E53: SELL | F53: 6,000 | G53: 52.6 | H53: BSE
A54: 2022-02-10 | B54: 543460 | C54: QRIL | D54: HARSHIT BIREN GANDHI | E54: SELL | F54: 10,000 | G54: 53.85 | H54: BSE
A55: 2022-02-10 | B55: 540358 | C55: RMC | D55: RASHMI RANI PAHWA | E55: BUY | F55: 42,000 | G55: 32.51 | H55: BSE
A56: 2022-02-10 | B56: 540259 | C56: SHANGAR | D56: RITADENNISDSOUZA | E56: BUY | F56: 104,737 | G56: 6.88 | H56: BSE
A57: 2022-02-10 | B57: 540259 | C57: SHANGAR | D57: D'SOUZA DARREN DENNIS | E57: SELL | F57: 102,765 | G57: 6.88 | H57: BSE
A58: 2022-02-10 | B58: 530433 | C58: SHIVAAGRO | D58: VRAMATH FINANCIAL SERVICES PRIVATE LIMTED | E58: BUY | F58: 50,000 | G58: 93.44 | H58: BSE
A59: 2022-02-10 | B59: 530419 | C59: SUMEDHA | D59: ANIL KUMAR GARG ANIL KUMAR GARG ANIL KUMAR GARG | E59: BUY | F59: 41,892 | G59: 59.86 | H59: BSE
A60: 2022-02-10 | B60: 530419 | C60: SUMEDHA | D60: ANIL KUMAR GARG ANIL KUMAR GARG ANIL KUMAR GARG | E60: SELL | F60: 41,892 | G60: 60.6 | H60: BSE
A61: 2022-02-10 | B61: 540332 | C61: TANVI | D61: KESARA CHARITA | E61: BUY | F61: 30,000 | G61: 61.1 | H61: BSE
A62: 2022-02-10 | B62: 540332 | C62: TANVI | D62: PRABODHA TUMMALA | E62: SELL | F62: 32,000 | G62: 61.13 | H62: BSE
A63: 2022-02-10 | B63: 511509 | C63: VIVOBIOT | D63: VEAN SMART INFRA PRIVATE LIMITED | E63: SELL | F63: 78,416 | G63: 48.64 | H63: BSE
A64: 2022-02-10 | B64: 540252 | C64: VSL | D64: KAMAL KUMAR JALAN SEC. PVT. LTD | E64: BUY | F64: 58,748 | G64: 171.57 | H64: BSE
A65: 2022-02-10 | B65: 540252 | C65: VSL | D65: KAMAL KUMAR JALAN SEC. PVT. LTD | E65: SELL | F65: 60,748 | G65: 172.87 | H65: BSE
A66: 2022-02-10 | B66: 513713 | C66: WHITEORG | D66: MANBHUPINDER SINGH ATWAL | E66: BUY | F66: 471,539 | G66: 19.75 | H66: BSE
A67: 2022-02-10 | B67: AJOONI | C67: Ajooni Biotech Limited | D67: OLGA TRADING PRIVATE LIMITED | E67: BUY | F67: 96,266 | G67: 80.65 | H67: NSE
A68: 2022-02-10 | B68: AJOONI | C68: Ajooni Biotech Limited | D68: SKSE SECURITIES LTD | E68: BUY | F68: 71,224 | G68: 80.84 | H68: NSE
A69: 2022-02-10 | B69: BALAJITELE | C69: Balaji Telefilms Limited | D69: JAI SALASAR BALAJI INDUSTRIES PRIVATE LIMITED | E69: BUY | F69: 579,224 | G69: 84.22 | H69: NSE
A70: 2022-02-10 | B70: BIRLACABLE | C70: Birla Cable Limited | D70: XTX MARKETS LLP | E70: BUY | F70: 211,743 | G70: 129.56 | H70: NSE
A71: 2022-02-10 | B71: BIRLACABLE | C71: Birla Cable Limited | D71: NK SECURITIES RESEARCH PRIVATE LIMITED | E71: BUY | F71: 166,975 | G71: 130.5 | H71: NSE
A72: 2022-02-10 | B72: BIRLACABLE | C72: Birla Cable Limited | D72: GRAVITON RESEARCH CAPITAL LLP | E72: BUY | F72: 255,399 | G72: 128.94 | H72: NSE
A73: 2022-02-10 | B73: CHEMCON | C73: Chemcon Special Chem Ltd | D73: KAMALKUMAR RAJENDRA AGGARWAL | E73: BUY | F73: 510,000 | G73: 341 | H73: NSE
A74: 2022-02-10 | B74: INVENTURE | C74: Inventure Gro & Sec Ltd | D74: ANKITA VISHAL SHAH | E74: BUY | F74: 15,436,190 | G74: 4.16 | H74: NSE
A75: 2022-02-10 | B75: INVENTURE | C75: Inventure Gro & Sec Ltd | D75: TOPGAIN FINANCE PRIVATE LIMITED | E75: BUY | F75: 3,690,861 | G75: 3.97 | H75: NSE
A76: 2022-02-10 | B76: INVENTURE | C76: Inventure Gro & Sec Ltd | D76: HI GROWTH CORPORATE SERVICES PVT LTD | E76: BUY | F76: 4,833,211 | G76: 4.01 | H76: NSE
A77: 2022-02-10 | B77: INVENTURE | C77: Inventure Gro & Sec Ltd | D77: AGRO TRADE SOLUTIONS | E77: BUY | F77: 8,338,344 | G77: 4.19 | H77: NSE
A78: 2022-02-10 | B78: LYKALABS | C78: Lyka Labs Ltd | D78: GANITA TECHNOLOGIES AND SERVICES PRIVATE LIMITED | E78: BUY | F78: 160,000 | G78: 161.5 | H78: NSE
A79: 2022-02-10 | B79: MHLXMIRU | C79: Mahalaxmi Rubtech Limited | D79: H S SHAH | E79: BUY | F79: 38,429 | G79: 124.53 | H79: NSE
A80: 2022-02-10 | B80: PRECISION | C80: Precision Metaliks Ltd | D80: BP EQUITIES PRIVATE LIMITED | E80: BUY | F80: 84,000 | G80: 49.96 | H80: NSE
A81: 2022-02-10 | B81: PRECISION | C81: Precision Metaliks Ltd | D81: NNM SECURITIES PVT LTD | E81: BUY | F81: 8,000 | G81: 53.19 | H81: NSE
A82: 2022-02-10 | B82: PULZ | C82: Pulz Electronics Limited | D82: BABALBHAI MANILAL PATEL | E82: BUY | F82: 48,000 | G82: 34.2 | H82: NSE
A83: 2022-02-10 | B83: PULZ | C83: Pulz Electronics Limited | D83: NIMISHA SARJU SHAH | E83: BUY | F83: 44,000 | G83: 34.09 | H83: NSE
A84: 2022-02-10 | B84: PULZ | C84: Pulz Electronics Limited | D84: NIKITA AKSHAY JADHAV | E84: BUY | F84: 32,000 | G84: 34.2 | H84: NSE
A85: 2022-02-10 | B85: RANASUG | C85: Rana Sugars Ltd | D85: ANANT WEALTH CONSULTANTS PRIVATE LIMITED | E85: BUY | F85: 1,356,359 | G85: 35.48 | H85: NSE
A86: 2022-02-10 | B86: VAISHALI | C86: Vaishali Pharma Limited | D86: SEEMA AGGARWAL | E86: BUY | F86: 200,000 | G86: 45.49 | H86: NSE
A87: 2022-02-10 | B87: VAISHALI | C87: Vaishali Pharma Limited | D87: H S SHAH | E87: BUY | F87: 190,000 | G87: 41.75 | H87: NSE
A88: 2022-02-10 | B88: VAISHALI | C88: Vaishali Pharma Limited | D88: VISHWAMURTE TRAD INVEST PE LTD | E88: BUY | F88: 248,645 | G88: 45.14 | H88: NSE
A89: 2022-02-10 | B89: VAISHALI | C89: Vaishali Pharma Limited | D89: MUKESH CHANDULAL DOSHI HUF | E89: BUY | F89: 54,267 | G89: 46.69 | H89: NSE
A90: 2022-02-10 | B90: VAISHALI | C90: Vaishali Pharma Limited | D90: ADROIT FINANCIAL SERVICES PVT LTD | E90: BUY | F90: 59,411 | G90: 48.14 | H90: NSE
A91: 2022-02-10 | B91: VAISHALI | C91: Vaishali Pharma Limited | D91: VIKRAMKUMAR KARANRAJ SAKARIA HUF DAKSH CORPORATION | E91: BUY | F91: 200,000 | G91: 41.75 | H91: NSE
A92: 2022-02-10 | B92: VAISHALI | C92: Vaishali Pharma Limited | D92: VIMAL TRADING | E92: BUY | F92: 100,000 | G92: 48.2 | H92: NSE
A93: 2022-02-10 | B93: VIVIDHA | C93: Visagar Polytex Ltd | D93: ALPHA LEON ENTERPRISES LLP | E93: BUY | F93: 1,700,000 | G93: 2 | H93: NSE
A94: 2022-02-10 | B94: AJOONI | C94: Ajooni Biotech Limited | D94: OLGA TRADING PRIVATE LIMITED | E94: SELL | F94: 59,727 | G94: 80.81 | H94: NSE
A95: 2022-02-10 | B95: AJOONI | C95: Ajooni Biotech Limited | D95: SKSE SECURITIES LTD | E95: SELL | F95: 71,224 | G95: 80.94 | H95: NSE
A96: 2022-02-10 | B96: BIRLACABLE | C96: Birla Cable Limited | D96: GRAVITON RESEARCH CAPITAL LLP | E96: SELL | F96: 255,399 | G96: 129.09 | H96: NSE
A97: 2022-02-10 | B97: BIRLACABLE | C97: Birla Cable Limited | D97: XTX MARKETS LLP | E97: SELL | F97: 210,574 | G97: 129.86 | H97: NSE
A98: 2022-02-10 | B98: BIRLACABLE | C98: Birla Cable Limited | D98: NK SECURITIES RESEARCH PRIVATE LIMITED | E98: SELL | F98: 166,975 | G98: 130.59 | H98: NSE
A99: 2022-02-10 | B99: CHEMCON | C99: Chemcon Special Chem Ltd | D99: KAMAL AGGARWAL MINAL | E99: SELL | F99: 510,000 | G99: 341 | H99: NSE
A100: 2022-02-10 | B100: INVENTURE | C100: Inventure Gro & Sec Ltd | D100: TOPGAIN FINANCE PRIVATE LIMITED | E100: SELL | F100: 6,290,861 | G100: 4.1 | H100: NSE
A101: 2022-02-10 | B101: INVENTURE | C101: Inventure Gro & Sec Ltd | D101: AGRO TRADE SOLUTIONS | E101: SELL | F101: 5,725,250 | G101: 4.18 | H101: NSE
A102: 2022-02-10 | B102: INVENTURE | C102: Inventure Gro & Sec Ltd | D102: ANKITA VISHAL SHAH | E102: SELL | F102: 5,836,190 | G102: 4.21 | H102: NSE
A103: 2022-02-10 | B103: INVENTURE | C103: Inventure Gro & Sec Ltd | D103: HI GROWTH CORPORATE SERVICES PVT LTD | E103: SELL | F103: 6,309,000 | G103: 4 | H103: NSE
A104: 2022-02-10 | B104: LYKALABS | C104: Lyka Labs Ltd | D104: RASHI FINCORP LTD | E104: SELL | F104: 160,000 | G104: 161.5 | H104: NSE
A105: 2022-02-10 | B105: MHLXMIRU | C105: Mahalaxmi Rubtech Limited | D105: H S SHAH | E105: SELL | F105: 90,429 | G105: 129.35 | H105: NSE
A106: 2022-02-10 | B106: PRECISION | C106: Precision Metaliks Ltd | D106: NNM SECURITIES PVT LTD | E106: SELL | F106: 104,000 | G106: 54.67 | H106: NSE
A107: 2022-02-10 | B107: PRECISION | C107: Precision Metaliks Ltd | D107: BP EQUITIES PRIVATE LIMITED | E107: SELL | F107: 6,000 | G107: 51.4 | H107: NSE
A108: 2022-02-10 | B108: PULZ | C108: Pulz Electronics Limited | D108: MANISH DHOOT | E108: SELL | F108: 60,000 | G108: 34.2 | H108: NSE
A109: 2022-02-10 | B109: RAMASTEEL | C109: Rama Steel Tubes Limited | D109: E TRAV TECH PRIVATE LIMITED . | E109: SELL | F109: 95,000 | G109: 339 | H109: NSE
A110: 2022-02-10 | B110: RANASUG | C110: Rana Sugars Ltd | D110: ANANT WEALTH CONSULTANTS PRIVATE LIMITED | E110: SELL | F110: 1,343,586 | G110: 35.64 | H110: NSE
A111: 2022-02-10 | B111: VAISHALI | C111: Vaishali Pharma Limited | D111: OPG SECURITIES PVT. LTD. | E111: SELL | F111: 58,054 | G111: 44.78 | H111: NSE
A112: 2022-02-10 | B112: VAISHALI | C112: Vaishali Pharma Limited | D112: H S SHAH | E112: SELL | F112: 28,276 | G112: 45.71 | H112: NSE
A113: 2022-02-10 | B113: VAISHALI | C113: Vaishali Pharma Limited | D113: VISHWAMURTE TRAD INVEST PE LTD | E113: SELL | F113: 248,645 | G113: 46.14 | H113: NSE
A114: 2022-02-10 | B114: VAISHALI | C114: Vaishali Pharma Limited | D114: VASANI ATUL ARVINDBHAI | E114: SELL | F114: 630,000 | G114: 41.75 | H114: NSE
A115: 2022-02-10 | B115: VAISHALI | C115: Vaishali Pharma Limited | D115: MUKESH CHANDULAL DOSHI HUF | E115: SELL | F115: 54,267 | G115: 47.67 | H115: NSE
A116: 2022-02-10 | B116: VAISHALI | C116: Vaishali Pharma Limited | D116: ADROIT FINANCIAL SERVICES PVT LTD | E116: SELL | F116: 48,414 | G116: 48.08 | H116: NSE
A117: 2022-02-10 | B117: VAISHALI | C117: Vaishali Pharma Limited | D117: P ESWARAMOORTHY | E117: SELL | F117: 75,000 | G117: 43.46 | H117: NSE

Sheet Call Tracker (Equity & F&O)
M5: Back To Main Page
A6: Retail Research Technical Calls & Fundamental Performance Report for the month of Feb-2022
M7: =Main!B10 -> 2022-02-11
B8: Positional Call
A9: Sr.no | B9: Date | D9: Company | E9: Rec | F9: Rec Price | G9: Stop Loss*** | H9: Call Closed At | I9: Target | J9: Remark | K9: Profit / Loss per Share | L9: All charges | M9: Net Gain / Loss % | N9: Status | O9: Closed Date | P9: Market Closing Price
A10: 1 | B10: 2022-01-21 | D10: HCLTECH | E10: Buy | F10: 1150-1170 | G10: 1090 | I10: 1250-1300 | J10: Open | P10: =VLOOKUP(D10,'MidCap Intra'!B55:C548,2,0) -> 1190.35 | R10: H
A11: 2 | B11: 2022-01-21 | D11: TCS | E11: Buy | F11: 3770-3780 | G11: 3590 | I11: 4000-4100 | J11: Open | P11: =VLOOKUP(D11,'MidCap Intra'!B56:C549,2,0) -> 3770.35 | R11: H
A12: 3 | B12: 2022-01-25 | D12: TATACOMM | E12: Buy | F12: 1255 | G12: 1190 | H12: 1,327.50 | I12: 1350-1400 | J12: Profit of Rs.72.5/- | K12: =H12-F12 -> 72.5 | L12: =(F12*-0.7)/100 -> -8.79 | M12: =(K12+L12)/F12 -> 5.08% | N12: Successful | O12: 2022-02-03 | R12: H
A13: 4 | B13: 2022-01-25 | D13: HDFC | E13: Buy | F13: 2500 | G13: 2340 | H13: 2,595.00 | I13: 2700-2800 | J13: Profit of Rs.95/- | K13: =H13-F13 -> 95 | L13: =(F13*-0.7)/100 -> -17.50 | M13: =(K13+L13)/F13 -> 3.10% | N13: Successful | O13: 2022-02-01 | R13: H
A14: 5 | B14: 2022-01-25 | D14: CARBORUNIV | E14: Buy | F14: 855 | G14: 815 | H14: 905.00 | I14: 900-930 | J14: Profit of Rs.50/- | K14: =H14-F14 -> 50 | L14: =(F14*-0.7)/100 -> -5.99 | M14: =(K14+L14)/F14 -> 5.15% | N14: Successful | O14: 2022-02-04 | R14: H
A15: 6 | B15: 2022-01-25 | D15: TRENT | E15: Buy | F15: 1060-1080 | G15: 995 | I15: 1150-1200 | J15: Open | P15: =VLOOKUP(D15,'MidCap Intra'!B62:C555,2,0) -> 1075.6 | R15: H
A16: 7 | B16: 2022-01-27 | D16: SRF | E16: Buy | F16: 2360 | G16: 2200 | H16: 2,505.00 | I16: 2550-2650 | J16: Profit of Rs.145/- | K16: =H16-F16 -> 145 | L16: =(F16*-0.7)/100 -> -16.52 | M16: =(K16+L16)/F16 -> 5.44% | N16: Successful | O16: 2022-02-07 | R16: N
A17: 8 | B17: 2022-01-28 | D17: INDIGO | E17: Buy | F17: 1860 | G17: 1695 | H17: 1,900.00 | I17: 2050-2150 | J17: Profit of Rs.40/- | K17: 40 | L17: -13.02 | M17: 1.45% | N17: Successful | O17: 2022-02-01 | R17: H
A18: 9 | B18: 2022-02-03 | D18: APOLLOTYRE | E18: Buy | F18: 222-225 | G18: 210 | I18: 240-250 | J18: Open | P18: =VLOOKUP(D18,'MidCap Intra'!B1:C558,2,0) -> 226.65 | R18: N
A19: 10 | B19: 2022-02-07 | D19: SUMICHEM | E19: Buy | F19: 410-415 | G19: 387 | I19: 440-460 | J19: Open | P19: =VLOOKUP(D19,'MidCap Intra'!B2:C559,2,0) -> 410.7 | R19: H
A20: 11 | B20: 2022-02-09 | D20: REDINGTON | E20: Buy | F20: 162.5 | G20: 149 | H20: 177.00 | I20: 180-190 | J20: Profit of Rs.14.5/- | K20: =H20-F20 -> 14.5 | L20: =(F20*-0.7)/100 -> -1.14 | M20: =(K20+L20)/F20 -> 8.22% | N20: Successful | O20: 2022-02-10 | R20: H
A25: CLBS = Closing Basis ***
A26: Dividend adjusted <> | F26: Reinitiated $
A27: Part book {} | D27: s | F27: Revised stoploss #
B29: Momentum Call
A30: Sr.no | B30: Date | D30: Company | E30: Rec | F30: Rec Price | G30: Stop Loss | H30: Call Closed At | I30: Target | J30: Remark | K30: Profit / Loss per Share/Lot | L30: All charges | M30: Net Gain / Loss % | N30: Status | O30: Closed Date
A31: 1 | B31: 2022-01-25 | D31: AVANTIFEED | E31: Buy | F31: 615 | G31: 595 | H31: 595 | I31: 645-655 | J31: Loss of Rs.20/- | K31: =H31-F31 -> -20 | L31: =(F31*-0.7)/100 -> -4.31 | M31: =(K31+L31)/F31 -> -3.95% | N31: Unsuccessful | O31: 2022-02-04 | R31: N
A32: 2 | B32: 2022-01-28 | D32: PNB | E32: Buy | F32: 41.15 | G32: 39.9 | H32: 42.7 | I32: 43-44 | J32: Profit of Rs.1.55/- | K32: =H32-F32 -> 1.55 | L32: =(F32*-0.7)/100 -> -0.29 | M32: =(K32+L32)/F32 -> 3.07% | N32: Successful | O32: 2022-02-02 | R32: H
A33: 3 | B33: 2022-02-01 | D33: LT | E33: Buy | F33: 1955 | G33: 1880 | H33: 1997.5 | I33: 2050-2100 | J33: Profit of Rs.42.5/- | K33: =H33-F33 -> 42.5 | L33: =(F33*-0.07)/100 -> -1.37 | M33: =(K33+L33)/F33 -> 2.10% | N33: Successful | O33: 2022-02-01 | R33: H
A34: 4 | B34: 2022-02-01 | D34: IRCTC | E34: Buy | F34: 863.5 | G34: 839 | H34: 839 | I34: 900-920 | J34: Loss of Rs.24.50/- | K34: -24.5 | L34: =(F34*-0.7)/100 -> -6.04 | M34: -3.54% | N34: Unsuccessful | O34: 2022-02-07 | R34: H
A35: 5 | B35: 2022-02-01 | D35: AMBUJACEM | E35: Buy | F35: 374 | G35: 364 | H35: 385 | I35: 395-405 | J35: Profit of Rs.11/- | K35: =H35-F35 -> 11 | L35: =(F35*-0.7)/100 -> -2.62 | M35: =(K35+L35)/F35 -> 2.24% | N35: Successful | O35: 2022-02-02 | R35: H
A36: 6 | B36: 2022-02-01 | D36: HINDCOPPER | E36: Buy | F36: 126.5 | G36: 122 | H36: 130.25 | I36: 134-140 | J36: Profit of Rs.3.75/- | K36: =H36-F36 -> 3.75 | L36: =(F36*-0.7)/100 -> -0.89 | M36: =(K36+L36)/F36 -> 2.26% | N36: Successful | O36: 2022-02-02 | R36: N
A37: 7 | B37: 2022-02-01 | D37: JKCEMENT | E37: Buy | F37: 3355-3360 | G37: 3250 | I37: 3500-3550 | J37: Open | R37: N
A38: 8 | B38: 2022-02-03 | D38: APOLLOTYRE | E38: Buy | F38: 219.5 | G38: 213.5 | H38: 226 | I38: 228-234 | J38: Profit of Rs.6.5/- | K38: =H38-F38 -> 6.5 | L38: =(F38*-0.07)/100 -> -0.15 | M38: =(K38+L38)/F38 -> 2.89% | N38: Successful | O38: 2022-02-03 | R38: N
A39: 9 | B39: 2022-02-03 | D39: LT | E39: Buy | F39: 1950-1955 | G39: 1890 | I39: 2030-2060 | J39: Open | R39: H
A40: 10 | B40: 2022-02-07 | D40: MAXHEALTH | E40: Buy | F40: 348 | G40: 338 | H40: 358.5 | I40: 375-380 | J40: Profit of Rs.10.5/- | K40: =H40-F40 -> 10.5 | L40: =(F40*-0.7)/100 -> -2.44 | M40: =(K40+L40)/F40 -> 2.32% | N40: Successful | O40: 2022-02-08 | R40: H
A41: 11 | B41: 2022-02-09 | D41: MASTEK | E41: Buy | F41: 2670-2680 | G41: 2590 | I41: 2800-2850 | J41: Open | R41: H
A42: 12 | B42: 2022-02-09 | D42: MAXHEALTH | E42: Buy | F42: 361.5 | G42: 349 | H42: 372.5 | I42: 375-385 | J42: Profit of Rs.11/- | K42: =H42-F42 -> 11 | L42: =(F42*-0.7)/100 -> -2.53 | M42: =(K42+L42)/F42 -> 2.34% | N42: Successful | O42: 2022-02-10 | R42: H
A43: 13 | B43: 2022-02-10 | D43: TATACHEM | E43: Buy | F43: 965-970 | G43: 940 | I43: 1010-1030 | J43: Open | R43: N
A48: CLBS = Closing Basis *** | H48: *
A49: Dividend adjusted <> | F49: Reinitiated $
F50: Revised stoploss #
A52: Master Trade High Risk
A53: Sr.no | B53: Date | D53: Company | E53: Rec | F53: Rec Price | G53: Stop Loss | H53: Call Closed At | I53: Target | J53: Remark | K53: Profit / Loss per share | L53: All charges | M53: Gain / Loss per Lot | N53: Lot | O53: Status | P53: Closed Date
A54: 1 | B54: 2022-02-01 | D54: TITAN FEB FUT | E54: Buy | F54: 2414 | G54: 238 | H54: 2380 | I54: 2460-2480 | J54: Loss of Rs.34.5/- | K54: =H54-F54 -> -34 | L54: =(H54*N54)*0.07% -> 624.75 | M54: =(K54*N54)-L54 -> -13374.8 | N54: 375 | O54: Unsuccessful | P54: 2021-02-01 | R54: H
A55: 2 | B55: 2022-02-03 | D55: HDFCLIFE FEB FUT | E55: Buy | F55: 640 | G55: 630 | H55: 630 | I55: 655-660 | J55: Loss of Rs.10/- | K55: =H55-F55 -> -10 | L55: =(H55*N55)*0.07% -> 485.10 | M55: =(K55*N55)-L55 -> -11485.1 | N55: 1100 | O55: Unsuccessful | P55: 2021-02-04 | R55: H
A56: 3 | B56: 2022-02-03 | D56: SBIN FEB FUT | E56: Buy | F56: 545 | G56: 534 | H56: 534 | I56: 565 | J56: Loss of Rs.6/- | K56: =H56-F56 -> -11.00 | L56: 560.70 | M56: =(-1500*6)-660.7 -> -9660.7 | N56: 1,500.00 | O56: Unsuccessful | P56: 2022-02-04 | R56: H
D57: SBIN 560 CE FEB | E57: Sell | F57: 14.5 | H57: 9.5 | K57: =F57-H57 -> 5.00 | L57: 100.00 | R57: H
A58: 4 | B58: 2022-02-07 | D58: MPHASIS FEB FUT | E58: Buy | F58: 3020 | G58: 2940 | H58: 3080 | I58: 3100-3180 | J58: Profit of Rs.60/- | K58: =H58-F58 -> 60 | L58: =(H58*N58)*0.07% -> 377.30 | M58: =(K58*N58)-L58 -> 10122.7 | N58: 175 | O58: Successful | P58: 2021-02-09 | R58: N
A59: 5 | B59: 2022-02-07 | D59: APOLLOTYRE FEB FUT | E59: Buy | F59: 221 | G59: 216 | H59: 225.5 | I59: 227-230 | J59: Profit of Rs.4.5/- | K59: =H59-F59 -> 4.5 | L59: =(H59*N59)*0.07% -> 394.63 | M59: =(K59*N59)-L59 -> 10855.4 | N59: 2500 | O59: Successful | P59: 2021-02-07 | R59: H
A60: 6 | B60: 2022-02-07 | D60: NIFTY FEB FUT | E60: Buy | F60: 17300 | G60: 17170 | H60: 17170 | I60: 17500 | J60: Loss of Rs.130/- | K60: -130 | L60: 600.95 | M60: -7101.0 | N60: 50 | O60: Unsuccessful | P60: 2021-02-07 | R60: H
A61: 7 | B61: 2022-02-09 | D61: SIEMENS FEB FUT | E61: Buy | F61: 2377.5 | G61: 2325 | H61: 2415 | I61: 2430-2470 | J61: Profit of Rs.37.5/- | K61: =H61-F61 -> 37.5 | L61: =(H61*N61)*0.07% -> 464.89 | M61: =(K61*N61)-L61 -> 9847.6 | N61: 275 | O61: Successful | P61: 2021-02-09 | R61: N
A62: 8 | B62: 2022-02-09 | D62: TATASTEEL FEB FUT | E62: Buy | F62: 1217.5 | G62: 1188 | H62: 1243 | I62: 1260-1280 | J62: Profit of Rs.25.5/- | K62: 25.5 | L62: 369.79 | M62: 10467.7 | N62: 425 | O62: Successful | P62: 2021-02-10 | R62: H
A63: 9 | B63: 2022-02-10 | D63: GSPL FEB FUT | E63: Buy | F63: 304-306 | G63: 297 | I63: 313-318 | J63: Open | R63: N
A68: Master Trade Medium Risk
A69: Sr.no | B69: Date | D69: Company | E69: Rec | F69: Rec Price | G69: Stop Loss | H69: Call Closed At | I69: Target | J69: Remark | K69: Profit/ Loss per lot | L69: All charges | M69: Gain / Loss per Lot | N69: Lot | O69: Status | P69: Closed Date
A70: 1 | B70: 2022-01-25 | D70: TCS 3860 CE FEB | E70: Buy | F70: 82 | H70: 46-50 | J70: Open | R70: H
D71: TCS 4000 CE FEB | E71: Sell | F71: 46 | R71: H
A72: 2 | B72: 2022-01-31 | D72: NIFTY 17000 PE 3-FEB | E72: Buy | F72: 107.5 | G72: 60 | H72: 57.5 | I72: 180-200 | J72: Loss of Rs.50/- | K72: =H72-F72 -> -50 | L72: 100.00 | M72: =(K72*N72)-L72 -> -2600.0 | N72: 50 | O72: Unsuccessful | P72: 2021-02-01 | R72: N
A73: 3 | B73: 2022-01-31 | D73: TATACOMM 1400 CE FEB | E73: Buy | F73: 26.5 | G73: 17 | H73: 17 | I73: 38-45 | J73: Loss of Rs.9.5/- | K73: -9.5 | L73: 100.00 | M73: -3900.0 | N73: 400 | O73: Unsuccessful | P73: 2021-02-07 | R73: H
A74: 4 | B74: 2022-01-31 | D74: PIIND 2600 CE FEB | E74: Buy | F74: 57.5 | G74: 38 | H74: 40 | I74: 80-100 | J74: Loss of Rs.17.5/- | K74: =H74-F74 -> -17.5 | L74: 100.00 | M74: =(K74*N74)-L74 -> -4475.0 | N74: 250 | O74: Unsuccessful | P74: 2021-02-01 | R74: H
A75: 5 | B75: 2022-02-01 | D75: NIFTY 17500 PE 3-FEB | E75: Buy | F75: 202.5 | H75: 335 | J75: Profit of Rs.90/- | K75: =H75-F75 -> 132.50 | L75: 100.00 | M75: 4300 | N75: 50 | O75: Successful | P75: 2022-02-01 | R75: H
D76: NIFTY 17200 PE 3-FEB | E76: Sell | F76: 102.5 | H76: 145 | K76: =F76-H76 -> -42.50 | L76: 100.00 | R76: H
A77: 6 | B77: 2022-02-02 | D77: NIFTY 17700 PE 3-FEB | E77: Buy | F77: 90 | G77: 45 | H77: 45 | I77: 140-160 | J77: Loss of Rs.45/- | K77: =H77-F77 -> -45 | L77: 100.00 | M77: =(K77*N77)-L77 -> -2350.0 | N77: 50 | O77: Unsuccessful | P77: 2021-02-02 | R77: H
A78: 7 | B78: 2022-02-03 | D78: BANKNIFTY 39400 CE 3-FEB | E78: Buy | F78: 65 | G78: 0 | H78: 0 | I78: 120-170 | J78: Loss of Rs.65/- | K78: =H78-F78 -> -65 | L78: 100.00 | M78: =(K78*N78)-L78 -> -1725.0 | N78: 25 | O78: Unsuccessful | P78: 2021-02-03 | R78: N
A79: 8 | B79: 2022-02-04 | D79: NIFTY 17500 PE 10-FEB | E79: Buy | F79: 110 | G79: 65 | H79: 135 | I79: 160-190 | J79: Profit of Rs.25/- | K79: 25 | L79: 100.00 | M79: 1150.0 | N79: 50 | O79: Successful | P79: 2021-02-04 | R79: N
A80: 9 | B80: 2022-02-07 | D80: NIFTY 17500 CE 10-FEB | E80: Buy | F80: 83 | G80: 40 | H80: 40 | I80: 130-150 | J80: Loss of Rs.43/- | K80: -43 | L80: 100.00 | M80: -2250.0 | N80: 50 | O80: Unsuccessful | P80: 2021-02-07 | R80: N
A81: 10 | B81: 2022-02-07 | D81: BANKNIFTY 38700 CE 10-FEB | E81: Buy | F81: 180 | G81: 90 | H81: 90 | I81: 250-300 | J81: Loss of Rs.90/- | K81: =H81-F81 -> -90 | L81: 100.00 | M81: =(K81*N81)-L81 -> -2350.0 | N81: 25 | O81: Unsuccessful | P81: 2021-02-08 | R81: H
A85: Techno -Funda (positional)
A86: Sr.no | B86: Date | D86: Company | E86: Rec | F86: Rec Price | G86: Stop Loss*** | H86: Call Closed At | I86: Target | J86: Remark | K86: Profit / Loss per Share/Lot | L86: All charges | M86: Net Gain / Loss % | N86: Status | O86: Closed Date | P86: Market Closing Price
A87: 1 | B87: 2021-10-19 | D87: ITC | E87: Buy | F87: 230-251 | G87: 198 | I87: 320-340 | J87: Open | R87: H
A88: 2 | B88: 2022-02-07 | D88: BEL | E88: Buy | F88: 198-202 | G88: 183 | I88: 230-240 | J88: Open | R88: H
A90: CLBS = Closing Basis *** | F90: Reinitiated $
A91: Dividend adjusted <> | F91: Revised stoploss # | H91: .................
B93: Intrday Call
A94: Sr.no | B94: Date | D94: Company | E94: Rec | F94: Rec Price | G94: Stop Loss | H94: Call Closed At | I94: Target | J94: Remark | K94: Profit / Loss per Share/Lot | L94: Gain / Loss per Lot | M94: Lot | N94: All charges | O94: Net Gain / Loss % | P94: Status | Q94: Closed Date
B107: Investment Idea
A108: Sr.no | B108: Date | D108: Company | E108: Rec | F108: Rec Price | G108: Point of Review | H108: Close Rate | I108: Target | J108: Remark | K108: Profit / Loss per Share | L108: Gain / Loss % | M108: Status | N108: Closed Date
A109: 1 | B109: 2013-11-01 | D109: L&T Finance Holding | E109: Accu | F109: 82.00 | G109: - | H109: 100 | I109: 100.00 | J109: Target Achieved | K109: =H109-F109 -> 18.00 | L109: =K109/F109 -> 21.95% | M109: Successful | N109: 2016-10-14
A110: 2 | B110: 2014-06-04 | D110: Finolex Inds | E110: Buy | F110: 257.00 | G110: - | H110: 300 | I110: 300.00 | J110: Target Achieved | K110: 43.00 | L110: 16.73% | M110: Successful | N110: 2014-07-02
A111: 3 | B111: 2014-07-08 | D111: JK Cement | E111: Buy | F111: 393.00 | G111: - | H111: 468 | I111: 468.00 | J111: Target Achieved | K111: 75.00 | L111: 19.08% | M111: Successful | N111: 2014-08-12
A112: 4 | B112: 2014-08-06 | D112: Finolex Cables | E112: Buy | F112: 205.00 | G112: - | H112: 275 | I112: 250.00 | J112: Target Achieved | K112: 70.00 | L112: 34.15% | M112: Successful | N112: 2014-11-19
A113: 5 | B113: 2014-09-04 | D113: Exide Inds | E113: Buy | F113: 162.00 | G113: - | H113: 190 | I113: 190.00 | J113: Target Achieved | K113: 28.00 | L113: 17.28% | M113: Successful | N113: 2015-01-02
A114: 6 | B114: 2014-09-04 | D114: Deepak Nitrite | E114: Buy | F114: 75.00 | G114: - | H114: 91.5 | I114: 95-100 | J114: Profit of Rs.16.50/- | K114: 16.50 | L114: 22.00% | M114: Successful | N114: 2014-11-11
A115: 7 | B115: 2014-10-01 | D115: Mercks | E115: Buy | F115: 850.00 | G115: - | H115: 982.5 | I115: 1050.00 | J115: Profit of Rs.132.50/- | K115: 132.50 | L115: 15.59% | M115: Successful | N115: 2015-02-04
A116: 8 | B116: 2014-10-01 | D116: Grindwell Norton | E116: Buy | F116: 475.00 | G116: - | H116: 515 | I116: 600.00 | J116: Profit of Rs.40/- | K116: 40.00 | L116: 8.42% | M116: Successful | N116: 2014-10-27
A117: 9 | B117: 2014-10-01 | D117: Snowman Logistics | E117: Buy | F117: 86.00 | G117: - | H117: 99 | I117: 140.00 | J117: Profit of Rs.13.00/- | K117: 13.00 | L117: 15.12% | M117: Successful | N117: 2014-10-27
A118: 10 | B118: 2014-10-14 | D118: Birla Corp | E118: Buy | F118: 496.60 | G118: - | H118: 621 | I118: 580.00 | J118: Target Achieved | K118: 124.40 | L118: 25.05% | M118: Successful | N118: 2016-08-23
A119: 11 | B119: 2014-10-14 | D119: Ultratech Cem | E119: Buy | F119: 2481.90 | G119: - | H119: 2840 | I119: 2870.00 | J119: Profit of Rs.358.10/- | K119: 358.10 | L119: 14.43% | M119: Successful | N119: 2015-01-13
A120: 12 | B120: 2014-10-16 | D120: Sintex Inds | E120: Buy | F120: 84.50 | G120: - | H120: 93 | I120: 110.00 | J120: Profit of Rs.8.50/- | K120: 8.50 | L120: 10.06% | M120: Successful | N120: 2014-10-27
A121: 13 | B121: 2014-10-16 | D121: HSIL | E121: Buy | F121: 401.00 | G121: - | H121: 428 | I121: 450.00 | J121: Profit of Rs.27.00/- | K121: 27.00 | L121: 6.73% | M121: Successful | N121: 2015-01-16
A122: 14 | B122: 2014-10-16 | D122: Eveready Inds | E122: Buy | F122: 101.00 | G122: - | H122: 112 | I122: 120.00 | J122: Profit of Rs.11.00/- | K122: 11.00 | L122: 10.89% | M122: Successful | N122: 2014-10-27
A123: 15 | B123: 2014-11-11 | D123: Pennar Inds | E123: Buy | F123: 59.00 | G123: - | H123: 76 | I123: 76.00 | J123: Target Achieved | K123: 17.00 | L123: 28.81% | M123: Successful | N123: 2017-10-24
A124: 16 | B124: 2014-11-11 | D124: Snowman Logistics | E124: Buy | F124: 99.00 | G124: - | H124: 120 | I124: 120.00 | J124: Profit of Rs.21/- | K124: 21.00 | L124: 21.21% | M124: Successful | N124: 2014-11-17
A125: 17 | B125: 2014-11-13 | D125: Dharamsi Morarji Chem | E125: Buy | F125: 22.00 | G125: - | H125: 33.55 | I125: 32.00 | J125: Profit of Rs 11.55/- | K125: 11.55 | L125: 52.50% | M125: Successful | N125: 2015-07-03
A126: 18 | B126: 2014-12-03 | D126: Tatachem | E126: Buy | F126: 440.00 | G126: - | H126: 520 | I126: 520.00 | J126: Profit of Rs 80.00/- | K126: 80.00 | L126: 18.18% | M126: Successful | N126: 2015-07-23
A127: 19 | B127: 2014-12-03 | D127: Advanta | E127: Buy | F127: 360.00 | G127: - | H127: 427 | I127: 425.00 | J127: Profit of Rs.67.00/- | K127: 67.00 | L127: 18.61% | M127: Successful | N127: 2015-02-23
A128: 20 | B128: 2015-01-08 | D128: GDL | E128: Buy | F128: 360.00 | G128: - | H128: 455 | I128: 420.00 | J128: Profit of Rs.95.00/- | K128: 95.00 | L128: 26.39% | M128: Successful | N128: 2015-01-20
A129: 21 | B129: 2015-01-08 | D129: NRB Bearing | E129: Buy | F129: 130.00 | H129: 175.5 | I129: 165.00 | J129: Profit of Rs 45.50/- | K129: 45.50 | L129: 35.00% | M129: Successful | N129: 2017-12-19
A130: 22 | B130: 2015-02-05 | D130: GSFC | E130: Accu | F130: 98.00 | H130: 120 | I130: 120.00 | J130: Target Achieved | K130: 22.00 | L130: 22.45% | M130: Successful | N130: 2017-01-18
A131: 23 | B131: 2015-02-05 | D131: Sundrmfast | E131: Accu | F131: 196.00 | H131: 262 | I131: 255.00 | J131: Target Achieved | K131: 66.00 | L131: 33.67% | M131: Successful | N131: 2016-08-17
A132: 24 | B132: 2015-03-04 | D132: GPPL | E132: Accu | F132: 235 | H132: 77.00 | I132: 280-285 | J132: Loss of Rs.158/- | K132: -158.00 | L132: -67.23% | M132: Unsuccessful | N132: 2019-02-26
A133: 25 | B133: 2015-03-04 | D133: ORIENTCEM | E133: Accu | F133: 185.00 | H133: 224 | I133: 220-225 | J133: Target Achieved | K133: 39.00 | L133: 21.08% | M133: Successful | N133: 2016-10-04
A134: 26 | B134: 2015-03-27 | D134: PFS | E134: Accu | F134: 49.5 | H134: 15.85 | I134: 67.00 | J134: Loss of Rs.33.65/- | K134: -33.65 | L134: -68% | M134: Unsuccessful | N134: 2019-06-11
A135: 27 | B135: 2015-03-30 | D135: Walchandnagar Ind Ltd | E135: Accu | F135: 183.50 | H135: 219 | I135: 218.00 | J135: Profit of Rs.35.50/- | K135: 35.50 | L135: 19.35% | M135: Successful | N135: 2015-04-09
A136: 28 | B136: 2015-04-20 | D136: Kalpataru Power Transmission Ltd | E136: Accu | F136: =(227+237)/2 -> 232.00 | H136: 298 | I136: 298.00 | J136: Target Achieved | K136: 66.00 | L136: 28.45% | M136: Successful | N136: 2017-03-29
A137: 29 | B137: 2015-05-04 | D137: Mastek Ltd | E137: Buy | F137: 385.00 | H137: =212.5+331 -> 543.5 | I137: 510.00 | J137: Profit of Rs 158.50/- | K137: 158.50 | L137: 41.17% | M137: Successful | N137: 2015-08-19
A138: 30 | B138: 2015-05-04 | D138: Suprajit Eng | E138: Buy | F138: 115.50 | H138: 146 | I138: 142.00 | J138: Profit of Rs 30.50/- | K138: 30.50 | L138: 26.41% | M138: Successful | N138: 2015-07-17
A139: 31 | B139: 2015-05-27 | D139: TCI | E139: Buy | F139: 237.50 | H139: 279.5 | I139: 278.00 | J139: Target Achieved | K139: 42.00 | L139: 17.68% | M139: Successful | N139: 2015-08-06
A140: 32 | B140: 2015-06-19 | D140: HSIL | E140: Accu | F140: 340.00 | H140: 448 | I140: 448.00 | J140: Target Achieved | K140: 108.00 | L140: 31.76% | M140: Successful | N140: 2017-10-10
A141: 33 | B141: 2015-07-06 | D141: Capital First | E141: Accu | F141: 390.00 | H141: 460 | I141: 460.00 | J141: Target Achieved | K141: 70.00 | L141: 17.95% | M141: Successful | N141: 2016-04-18
A142: 34 | B142: 2015-07-10 | D142: Dolphin OffShore | E142: Accu | F142: 122.5 | H142: 61.00 | I142: 172.00 | J142: Loss of Rs.61.50/- | K142: -61.50 | L142: -50.20% | M142: Unsuccessful | N142: 2018-08-21
A143: 35 | B143: 2015-08-03 | D143: Allcargo logistics | E143: Accu | F143: 297.50 | H143: 350 | I143: 360.00 | J143: Profit of Rs 52.50/- | K143: 52.50 | L143: 17.65% | M143: Successful | N143: 2015-08-16
A144: 36 | B144: 2015-08-03 | D144: Camline Fine | E144: Accu | F144: 115.50 | H144: 149 | I144: 140.00 | J144: Profit of Rs 33.50/- | K144: 33.50 | L144: 29.00% | M144: Successful | N144: 2017-01-05
A145: 37 | B145: 2015-09-04 | D145: TCI | E145: Accu | F145: 226.00 | H145: 292 | I145: 292.00 | J145: Target Achieved | K145: 66.00 | L145: 29.20% | M145: Successful | N145: 2015-10-09
A146: 38 | B146: 2015-09-07 | D146: Kalpataru Power Transmission Ltd | E146: Accu | F146: 232.50 | H146: 312.5 | I146: 310.00 | J146: Target Achieved | K146: 80.00 | L146: 34.41% | M146: Successful | N146: 2017-03-29
A147: 39 | B147: 2015-09-21 | D147: LLOYD ELECTRIC & ENG LTD | E147: Accu | F147: 196.50 | H147: 238 | I147: 238.00 | J147: Target Achieved | K147: 41.50 | L147: 21.12% | M147: Successful | N147: 2015-10-14
A148: 40 | B148: 2015-09-24 | D148: L&T Finance Holding | E148: Accu | F148: 65.00 | H148: 82 | I148: 82.00 | J148: Target Achieved | K148: 17.00 | L148: 26.15% | M148: Successful | N148: 2016-07-27
A149: 41 | B149: 2015-10-14 | D149: KEC International ltd | E149: Accu | F149: 144.00 | H149: 182.5 | I149: 181.00 | J149: Target Achieved | K149: 38.50 | L149: 26.74% | M149: Successful | N149: 2017-03-23
A150: 42 | B150: 2015-10-14 | D150: Gruh Finance | E150: Accu | F150: 264.00 | H150: 311 | I150: 311.00 | J150: Target Achieved | K150: 47.00 | L150: 17.80% | M150: Successful | N150: 2016-08-22
A151: 43 | B151: 2015-11-10 | D151: Pidilitind | E151: Buy | F151: 549.50 | H151: 630 | I151: 630.00 | J151: Target Achieved | K151: 80.50 | L151: 14.65% | M151: Successful | N151: 2016-02-19
A152: 44 | B152: 2015-12-04 | D152: Zensar Technology | E152: Accu | F152: 1027.50 | H152: 1315 | I152: 1250.00 | J152: Target Achieved | K152: 287.50 | L152: 27.98% | M152: Successful | N152: 2018-05-24
A153: 45 | B153: 2015-12-29 | D153: Vinati Organics Ltd | E153: Accu | F153: 465.00 | H153: 540 | I153: 540.00 | J153: Target Achieved | K153: 75.00 | L153: 16.13% | M153: Successful | N153: 2016-06-09
A154: 46 | B154: 2016-01-11 | D154: GSFC | E154: Buy | F154: 81.00 | H154: 110 | I154: 110.00 | J154: Target Achieved | K154: 29.00 | L154: 35.80% | M154: Successful | N154: 2017-01-10
A155: 47 | B155: 2016-01-13 | D155: SSWL | E155: Buy | F155: 417.50 | H155: 547 | I155: 535.00 | J155: Target Achieved | K155: 129.50 | L155: 31.02% | M155: Successful | N155: 2016-07-27
A156: 48 | B156: 2016-02-08 | D156: Persistent System Ltd | E156: Accu | F156: 650.00 | H156: 800 | I156: 800.00 | J156: Target Achieved | K156: 150.00 | L156: 23.08% | M156: Successful | N156: 2018-02-23
A157: 49 | B157: 2016-03-04 | D157: UPL | E157: Accu | F157: 437.50 | H157: 504.5 | I157: 522.00 | J157: Profit of Rs.67/- | K157: 67.00 | L157: 15.31% | M157: Successful | N157: 2016-04-20
A158: 50 | B158: 2016-03-09 | D158: Ashoka Buildcon Ltd | E158: Accu | F158: 189.50 | H158: 218 | I158: 218.00 | J158: Target Achieved | K158: 28.50 | L158: 15.04% | M158: Successful | N158: 2017-10-26
A159: 51 | B159: 2016-04-11 | D159: PTC INDIA FIN SERV LTD | E159: Accu | F159: 36.5 | H159: 15.85 | I159: 60.00 | J159: Loss of Rs.20.65/- | K159: -20.65 | L159: -56.58% | M159: Unsuccessful | N159: 2019-06-11
A160: 52 | B160: 2016-04-12 | D160: CAMLINFINE $ | E160: Accu | F160: 93.00 | H160: 149 | I160: 140.00 | J160: Profit of Rs 56/- | K160: 56.00 | L160: 60.22% | M160: Successful | N160: 2017-01-05
A161: 53 | B161: 2016-04-12 | D161: Greaves Cotton Ltd. | E161: Accu | F161: 130.00 | H161: 150 | I161: 150-155 | J161: Target Achieved | K161: 20.00 | L161: 15.38% | M161: Successful | N161: 2016-07-13
A162: 54 | B162: 2016-04-13 | D162: DHFL | E162: Accu | F162: 196.00 | H162: 299 | I162: 299.00 | J162: Target Achieved | K162: 103.00 | L162: 52.55% | M162: Successful | N162: 2016-09-07
A163: 55 | B163: 2016-04-13 | D163: Magma | E163: Accu | F163: 88.00 | H163: 103 | I163: 103.00 | J163: Target Achieved | K163: 15.00 | L163: 17.05% | M163: Successful | N163: 2016-06-09
A164: 56 | B164: 2016-05-02 | D164: KEC International ltd $ | E164: Accu | F164: 127.50 | H164: 148 | I164: 148-150 | J164: Target Achieved | K164: =H164-F164 -> 20.50 | L164: =K164/F164 -> 16.08% | M164: Successful | N164: 2016-07-13
A165: 57 | B165: 2016-05-03 | D165: Mindtree | E165: Accu | F165: 675.00 | H165: 815 | I165: 790-800 | J165: Target Achieved | K165: 140.00 | L165: 20.74% | M165: Successful | N165: 2018-02-23
A166: 58 | B166: 2016-06-01 | D166: Atulauto | E166: Accu | F166: 500 | H166: 232.50 | I166: 565-570 | J166: Loss of Rs.267.50 /- | K166: -267.50 | L166: -53.50% | M166: Unsuccessful | N166: 2019-09-27
A167: 59 | B167: 2016-06-06 | D167: TRITURBINE | E167: Accu | F167: 110.00 | H167: 126.5 | I167: 125.00 | J167: Profit of Rs.16.50/- | K167: 16.50 | L167: 15.00% | M167: Successful | N167: 2016-07-01
A168: 60 | B168: 2016-06-17 | D168: Pennar Industries Ltd | E168: Accu | F168: 44.00 | H168: 69.5 | I168: 69.50 | J168: Profit of Rs.25.50/- | K168: 25.50 | L168: 57.95% | M168: Successful | N168: 2017-08-30
A169: 61 | B169: 2016-06-28 | D169: EVEREADY | E169: Accu | F169: 262.50 | H169: 340 | I169: 333.00 | J169: Profit of Rs.77.50/- | K169: 77.50 | L169: 29.52% | M169: Successful | N169: 2017-10-09
A170: 62 | B170: 2016-06-28 | D170: FIEMIND | E170: Accu | F170: 840.00 | H170: 1230 | I170: 1230.00 | J170: Target Achieved | K170: 390.00 | L170: 46.43% | M170: Successful | N170: 2016-10-06
A171: 63 | B171: 2016-07-05 | D171: Bajaj Corp Ltd | E171: Accu | F171: 395 | H171: =(468.5+342.5)/2 -> 405.50 | I171: 510.00 | J171: Profit of Rs.10.50/- | K171: =H171-F171 -> 10.50 | L171: =K171/F171 -> 3% | M171: Neutral | N171: 2019-05-21
A172: 64 | B172: 2016-08-02 | D172: GPPL $ | E172: Buy | F172: =169.5-12.8 -> 156.7 | H172: 77.00 | I172: 198-200 | J172: Loss of Rs.79.7/- | K172: -79.70 | L172: -50.86% | M172: Unsuccessful | N172: 2019-02-26
A173: 65 | B173: 2016-08-04 | D173: WONDERLA HOLIDAYS LTD | E173: Accu | F173: 400 | H173: 305.00 | I173: 475.00 | J173: Loss of Rs.95/- | K173: -95.00 | L173: -23.75% | M173: Unsuccessful | N173: 2019-05-21
A174: 66 | B174: 2016-08-11 | D174: CAMLINFINE | E174: Accu | F174: 86.50 | H174: 130 | I174: 130.00 | J174: Profit of Rs.43.50/- | K174: 43.50 | L174: 50.29% | M174: Successful | N174: 2017-12-22
A175: 67 | B175: 2016-08-18 | D175: GRANULES | E175: Accu | F175: 133.5 | H175: 126.50 | I175: 178.00 | J175: Exit | K175: -7.00 | L175: -5.24% | M175: Unsuccessful | N175: 2016-09-02
A176: 68 | B176: 2016-08-31 | D176: VA TECH WABAG | E176: Accu | F176: 560.00 | H176: 725 | I176: 725.00 | J176: Target Achieved | K176: 165.00 | L176: 29.46% | M176: Successful | N176: 2016-03-27
A177: 69 | B177: 2016-09-01 | D177: SKIPPER LIMITED | E177: Accu | F177: 160.50 | H177: 210 | I177: 210.00 | J177: Target Achieved | K177: 49.50 | L177: 30.84% | M177: Successful | N177: 2017-05-16
A178: 70 | B178: 2016-10-03 | D178: IFBIND | E178: Accu | F178: 430.00 | H178: 596 | I178: 575.00 | J178: Profit of Rs.166/- | K178: 166.00 | L178: 38.60% | M178: Successful | N178: 2017-02-03
A179: 71 | B179: 2016-10-14 | D179: ASIANTILES | E179: Accu | F179: 280.00 | H179: 345 | I179: 345.00 | J179: Target Achieved | K179: =H179-F179 -> 65.00 | L179: =K179/F179 -> 23.21% | M179: Successful | N179: 2017-03-20
A180: 72 | B180: 2016-10-14 | D180: DEEPIND | E180: Accu | F180: 245.00 | H180: 325.5 | I180: 330.00 | J180: Profit of Rs.80.5/- | K180: 80.50 | L180: 32.86% | M180: Successful | N180: 2017-02-03
A181: 73 | B181: 2016-10-17 | D181: DCBBANK | E181: Accu | F181: 125.00 | H181: 160 | I181: 160.00 | J181: Target Achieved | K181: 35.00 | L181: 28.00% | M181: Successful | N181: 2017-03-09
A182: 74 | B182: 2016-10-17 | D182: ORIENTREF | E182: Accu | F182: 114.00 | H182: 145 | I182: 145.00 | J182: Target Achieved | K182: 31.00 | L182: =K182/F182 -> 27.19% | M182: Successful | N182: 2017-05-04
A183: 75 | B183: 2016-10-17 | D183: GANECOS | E183: Accu | F183: 212.00 | H183: 280 | I183: 276.00 | J183: Profit of Rs.68/- | K183: 68.00 | L183: 32.08% | M183: Successful | N183: 2017-05-03
A184: 76 | B184: 2016-11-04 | D184: NBCC | E184: Accu | F184: 155.00 | H184: 210 | I184: 210.00 | J184: Profit of Rs.55/- | K184: 55.00 | L184: 35.48% | M184: Successful | N184: 2017-07-28
A185: 77 | B185: 2016-12-06 | D185: PRECAM | E185: Accu | F185: 150.5 | H185: 72.50 | I185: 174.00 | J185: Loss of Rs.78/- | K185: -78.00 | L185: -51.83% | M185: Unsuccessful | N185: 2018-08-21
A186: 78 | B186: 2016-12-08 | D186: INFRATEL | E186: Accu | F186: 380.00 | H186: 478 | I186: 468.00 | J186: Target Achieved | K186: =H186-F186 -> 98.00 | L186: =K186/F186 -> 25.79% | M186: Successful | N186: 2017-10-17
A187: 79 | B187: 2016-12-30 | D187: GODREJPROP | E187: Accu | F187: 305.00 | H187: 375 | I187: 375.00 | J187: Target Achieved | K187: 70.00 | L187: 22.95% | M187: Successful | N187: 2017-02-02
A188: 80 | B188: 2017-01-04 | D188: DEEPAKNTR | E188: Accu | F188: 99.50 | H188: 158 | I188: 158.00 | J188: Target Achieved | K188: 58.50 | L188: 58.79% | M188: Successful | N188: 2017-06-12
A189: 81 | B189: 2017-01-04 | D189: DEEPAKNTR | E189: Accu | F189: 99.50 | H189: 158 | I189: 158.00 | J189: Target Achieved | K189: 58.50 | L189: 58.79% | M189: Successful | N189: 2017-06-12
A190: 82 | B190: 2017-02-20 | D190: RECLTD | E190: Accu | F190: 140.50 | H190: 220 | I190: 220.00 | J190: Target Achieved | K190: =H190-F190 -> 79.50 | L190: =K190/F190 -> 56.58% | M190: Successful | N190: 2017-05-09
A191: 83 | B191: 2017-02-20 | D191: SUBROS | E191: Accu | F191: 202.50 | H191: 234 | I191: 234.00 | J191: Target Achieved | K191: 31.50 | L191: 15.56% | M191: Successful | N191: 2017-04-11
A192: 84 | B192: 2017-03-24 | D192: VRLLOG | E192: Accu | F192: 300.50 | H192: 417.5 | I192: 420.00 | J192: Profit of Rs.117/- | K192: =H192-F192 -> 117.00 | L192: =K192/F192 -> 38.94% | M192: Successful | N192: 2017-12-01
A193: 85 | B193: 2017-03-24 | D193: FIEMIND | E193: Accu | F193: 850.00 | H193: 1042.5 | I193: 1023.00 | J193: Profit of Rs 192.50/- | K193: 192.50 | L193: 22.65% | M193: Successful | N193: 2017-04-05
A194: 86 | B194: 2017-04-05 | D194: RATNAMANI | E194: Accu | F194: 785.00 | H194: 930 | I194: 920.00 | J194: Profit of Rs.145/- | K194: =H194-F194 -> 145.00 | L194: =K194/F194 -> 18.47% | M194: Successful | N194: 2017-08-29
A195: 87 | B195: 2017-04-06 | D195: ZEEMEDIA | E195: Accu | F195: 40 | H195: 13.10 | I195: 60.00 | J195: Loss of Rs.26.9/- | K195: -26.90 | L195: -67.25% | M195: Unsuccessful | N195: 2018-02-07
A196: 88 | B196: 2017-04-12 | D196: DABUR | E196: Accu | F196: 289.50 | H196: 354 | I196: 360.00 | J196: Profit of Rs.64.5/- | K196: =H196-F196 -> 64.50 | L196: =K196/F196 -> 22.28% | M196: Successful | N196: 2017-11-01
A197: 89 | B197: 2017-04-20 | D197: KPRMILL | E197: Accu | F197: 700.00 | H197: 840 | I197: 840.00 | J197: Profit of Rs.140/- | K197: 140.00 | L197: 20.00% | M197: Successful | N197: 2017-06-07
A198: 90 | B198: 2017-06-01 | D198: ESSELPACK | E198: Accu | F198: 130.00 | H198: 144.25 | I198: 170.00 | J198: Profit of Rs.14.25/- | K198: 14.25 | L198: 10.96% | M198: Successful | N198: 2019-07-29
A199: 91 | B199: 2017-06-15 | D199: KEI | E199: Accu | F199: 214.50 | H199: 262 | I199: 262.00 | J199: Profit of Rs.47.5/- | K199: 47.50 | L199: 22.14% | M199: Successful | N199: 2017-08-30
A200: 92 | B200: 2017-07-17 | D200: MAYURUNIQ | E200: Accu | F200: 370.00 | H200: 447.5 | I200: 450.00 | J200: Target Achieved | K200: 77.50 | L200: 20.95% | M200: Successful | N200: 2017-10-27
A201: 93 | B201: 2017-07-27 | D201: RAMCOCEM | E201: Accu | F201: 657.50 | H201: 825 | I201: 820.00 | J201: Target Achieved | K201: 167.50 | L201: 25.48% | M201: Successful | N201: 2017-12-21
A202: 94 | B202: 2017-08-17 | D202: FINPIPE | E202: Accu | F202: 605.00 | H202: 750 | I202: 750.00 | J202: Profit of Rs.145/- | K202: 145.00 | L202: 23.97% | M202: Successful | N202: 2017-10-19
A203: 95 | B203: 2017-09-01 | D203: SHK | E203: Accu | F203: 255 | H203: 217.25 | I203: 320.00 | J203: Loss of Rs.37.75/- | K203: -37.75 | L203: -15% | M203: Unsuccessful | N203: 2019-07-15
A204: 96 | B204: 2017-09-19 | D204: SKIPPER | E204: Accu | F204: 215.00 | H204: 258 | I204: 258.00 | J204: Target Achieved | K204: 43.00 | L204: 20.00% | M204: Successful | N204: 2017-11-01
A205: 97 | B205: 2017-09-19 | D205: SKIPPER | E205: Accu | F205: 215.00 | H205: 258 | I205: 258.00 | J205: Target Achieved | K205: 43.00 | L205: 20.00% | M205: Successful | N205: 2017-11-01
A206: 98 | B206: 2017-09-20 | D206: CAMLINFINE$ | E206: Accu | F206: 75.00 | H206: 90 | I206: 90.00 | J206: Profit of Rs.15.00/- | K206: =H206-F206 -> 15.00 | L206: =K206/F206 -> 20.00% | M206: Successful | N206: 2017-10-11
A207: 99 | B207: 2017-10-03 | D207: GNA | E207: Accu | F207: 315.00 | H207: 392 | I207: 384.00 | J207: Profit of Rs.77/- | K207: 77.00 | L207: 24.44% | M207: Successful | N207: 2017-10-09
A208: 100 | B208: 2017-10-05 | D208: NOCIL | E208: Accu | F208: 145.00 | H208: 179 | I208: 180.00 | J208: Profit of Rs.34/- | K208: 34.00 | L208: 23.45% | M208: Successful | N208: 2017-10-17
A209: 101 | B209: 2017-10-06 | D209: CENTURYPLY | E209: Accu | F209: 256.00 | H209: 323 | I209: 320.00 | J209: Target Achieved | K209: 67.00 | L209: 26.17% | M209: Successful | N209: 2017-11-28
A210: 102 | B210: 2017-10-09 | D210: EIHOTEL | E210: Accu | F210: 137.50 | H210: 184 | I210: 183.00 | J210: Profit of Rs.46.5/- | K210: 46.50 | L210: 33.82% | M210: Successful | N210: 2018-01-08
A211: 103 | B211: 2017-10-10 | D211: NRBBEARING | E211: Accu | F211: 125.50 | H211: 158 | I211: 155.00 | J211: Profit of Rs.32.5/- | K211: 32.50 | L211: 25.90% | M211: Successful | N211: 2017-11-28
A212: 104 | B212: 2017-10-10 | D212: BOROSIL | E212: Accu | F212: 895.00 | H212: 1122.5 | I212: 1078.00 | J212: Profit of Rs.227.5/- | K212: 227.50 | L212: 25.42% | M212: Successful | N212: 2018-01-17
A213: 105 | B213: 2017-10-12 | D213: CYIENT | E213: Accu | F213: 525.00 | H213: 629 | I213: 629.00 | J213: Target Achieved | K213: 104.00 | L213: 19.81% | M213: Successful | N213: 2018-01-19
A214: 106 | B214: 2017-11-07 | D214: HATSUN | E214: Accu | F214: 740.00 | H214: 892.5 | I214: 900.00 | J214: Profit of Rs.152.5/- | K214: =H214-F214 -> 152.50 | L214: =K214/F214 -> 20.61% | M214: Successful | N214: 2017-11-13
A215: 107 | B215: 2017-12-04 | D215: SANGHIIND | E215: Accu | F215: 118.50 | H215: 143.5 | I215: 145.00 | J215: Profit of Rs.25/- | K215: 25.00 | L215: 21.10% | M215: Successful | N215: 2017-12-28
A216: 108 | B216: 2017-12-21 | D216: KAJARIACER | E216: Accu | F216: 715 | H216: 500.00 | I216: 872.00 | J216: Loss of Rs.215/- | K216: -215.00 | L216: -30.07% | M216: Unsuccessful | N216: 2019-07-24
A217: 109 | B217: 2017-12-29 | D217: GNA | E217: Accu | F217: 435.00 | H217: 542.5 | I217: 539.00 | J217: Target Achieved | K217: 107.50 | L217: 24.71% | M217: Successful | N217: 2018-04-16
A218: 110 | B218: 2017-12-29 | D218: ZENSARTECH | E218: Accu | F218: 885.00 | H218: 1090 | I218: 1084.00 | J218: Target Achieved | K218: 205.00 | L218: 23.16% | M218: Successful | N218: 2018-04-23
A219: 111 | B219: 2018-04-02 | D219: EVERESTIND | E219: Accu | F219: 478.50 | H219: 442 | I219: 613.00 | J219: Loss of Rs.36.50 /- | K219: =H219-F219 -> -36.50 | L219: =K219/F219 -> -7.63% | M219: Unsuccessful | N219: 2019-10-24
A220: 112 | B220: 2018-04-04 | D220: GPPL$ | E220: Accu | F220: =141.5-7.3 -> 134.2 | H220: 77.00 | I220: 180.00 | J220: Loss of Rs.57.2/- | K220: -57.20 | L220: -42.62% | M220: Unsuccessful | N220: 2019-02-26
A221: 113 | B221: 2018-04-19 | D221: MANPASAND | E221: Accu | F221: 430 | H221: 220.00 | I221: 537.00 | J221: Loss of Rs.210/- | K221: -210.00 | L221: -48.84% | M221: Unsuccessful | N221: 2018-06-01
A222: 114 | B222: 2018-04-30 | D222: HEIDELBERG | E222: Accu | F222: 153.5 | H222: 196 | I222: 196.00 | J222: Profit of Rs.42.50/- | K222: 42.50 | L222: 27.69% | M222: Successful | N222: 2019-05-20
A223: 115 | B223: 2018-07-25 | D223: ZEEMEDIA | E223: Accu | F223: 27.5 | H223: 13.10 | I223: 60.00 | J223: Loss of Rs.14.40/- | K223: -14.40 | L223: -52.36% | M223: Unsuccessful | N223: 2018-02-07
A224: 116 | B224: 2018-08-06 | D224: GABRIEL | E224: Accu | F224: 148.5 | H224: 102 | I224: 182.00 | J224: Loss of Rs.46.50/- | K224: =H224-F224 -> -46.50 | L224: =K224/F224 -> -31.31% | M224: Unsuccessful | N224: 2019-07-15
A225: 117 | B225: 2018-08-23 | D225: INDIANHUME | E225: Accu | F225: 285 | H225: 355 | I225: 364.00 | J225: Profit of Rs.70/- | K225: 70.00 | L225: 24.56% | M225: Successful | N225: 2018-12-21
A226: 118 | B226: 2018-08-29 | D226: GRINDWELL | E226: Accu | F226: 525 | H226: 585 | I226: 635.00 | J226: Profit of Rs.60- | K226: =H226-F226 -> 60.00 | L226: =K226/F226 -> 11.43% | M226: Successful | N226: 2019-07-16
A227: 119 | B227: 2018-10-22 | D227: FINPIPE | E227: Accu | F227: 475 | H227: 574 | I227: 570.00 | J227: Target Achieved | K227: 99.00 | L227: 20.84% | M227: Successful | N227: 2018-10-30
A228: 120 | B228: 2018-10-24 | D228: GULFOILLUB | E228: Accu | F228: 707.5 | H228: 872 | I228: 872.00 | J228: Target Achieved | K228: 164.50 | L228: 23.25% | M228: Successful | N228: 2019-01-17
A229: 121 | B229: 2018-10-25 | D229: DBCORP | E229: Accu | F229: 162 | H229: 204 | I229: 209.00 | J229: Profit of Rs.42/- | K229: 42.00 | L229: 25.93% | M229: Successful | N229: 2019-03-15
A230: 122 | B230: 2018-10-26 | D230: RITES | E230: Accu | F230: 240 | H230: 297 | I230: 297.00 | J230: Target Achieved | K230: 57.00 | L230: 23.75% | M230: Successful | N230: 2018-11-13
A231: 123 | B231: 2018-12-05 | D231: BRIGADE | E231: Accu | F231: 202.5 | H231: 255 | I231: 252.00 | J231: Target Achieved | K231: 52.50 | L231: 25.93% | M231: Successful | N231: 2019-03-18 | R231: V
A232: 124 | B232: 2018-12-31 | D232: JKCEMENT | E232: Accu | F232: 710 | H232: 866 | I232: 866.00 | J232: Target Achieved | K232: 156.00 | L232: 21.97% | M232: Successful | N232: 2019-03-29 | R232: V
A233: 125 | B233: 2019-02-26 | D233: MARICO | E233: Accu | F233: 337.25 | H233: 398.5 | I233: 411.00 | J233: Profit of Rs.61.25/- | K233: 61.25 | L233: 18.16% | M233: Successful | N233: 2019-10-22 | R233: V
A234: 126 | B234: 2019-04-04 | D234: ITDCEM | E234: Accu | F234: 130 | H234: 65 | I234: 158.00 | J234: Loss of Rs.65 /- | K234: -65.00 | L234: -50.00% | M234: Unsuccessful | N234: 2019-09-18 | R234: K
A235: 127 | B235: 2017-10-09 | D235: RECLTD | E235: Accu | F235: 141.5 | H235: 183.5 | I235: 210.00 | J235: Profit of Rs.42/- | K235: 42.00 | L235: 29.68% | M235: Successful | N235: 2017-11-03 | R235: K
... 47 more rows
